Workbook

Sheet WDM-JUN
A1: DSKD 69. Deutsche Meisterschaft und 19. Europameisterschaft 2017 Mettingen ESKD
A2: DM - Wertungsläufe in der JUNIOR - Klasse
A3: 10 Endlauf-Teilnehmer | S3: Bestzeit
A4: Wird der Lauf gewertet? dann 0 oder 1 eintragen | G4: 0 | H4: 1 | I4: 1 | J4: 1 | K4: 1 | L4: 1 | S4: in Vorläufen
E5: Bestzeit je Lauf | G5: =MIN(G9:G149) -> 37.92 | H5: 38.07 | I5: 37.91 | J5: 37.89 | K5: 37.89 | L5: 100 | S5: =MIN((IF(G4=1,G5,99)), (IF(H4=1,H5,99)), (IF(I4=1,I5,99)), (IF(J4=1,J5,99)), (IF(K4=1,K5,99)), (IF(L4=1,L5,99)) ) -> 37.89
E6: Mittelwert je Lauf | G6: =IF(G5>0,AVERAGE(G9:G149),0) -> 38.50785714 | H6: 38.55178571 | I6: 38.33444444 | J6: 38.48642857 | K6: 38.49178571 | L6: 100
A7: Start Nummer | B7: Gruppe | C7: startet | D7: Name | E7: Vorname | F7: Verein | G7: Lauf 1 | H7: Lauf 2 | I7: Lauf 3 | J7: Lauf 4 | K7: Lauf 5 | L7: Lauf 6 | M7: Summe der gewerteten Läufe | O7: Platz | Q7: Mittelwert | S7: Platz
A9: 124 | B9: JUN | D9: Meyhoff | E9: Moritz | F9: Jugendclub Mettinger SK-Derby | G9: 38.2 | H9: 38.08 | I9: 37.94 | J9: 37.89 | K9: 37.89 | M9: =(G9*$G$4+H9*$H$4+I9*$I$4+J9*$J$4+K9*$K$4+L9*$L$4) -> 151.8 | N9: =IF(M9>0,M9*-1,-1000) -> -151.8 | O9: =IF(M9>0,RANK(N9,N:N),0) -> 1 | Q9: =IF((G9*$G$4+H9*$H$4+I9*$I$4+J9*$J$4+K9*$K$4+L9*$L$4)>0,(G9*$G$4+H9*$H$4+I9*$I$4+J9*$J$4+K9*$K$4+L9*$L$4)/(IF(G9>0,1*$G$4,0)+IF(H9>0,1*$H$4,0)+IF(I9>0,1*$I$4,0)+IF(J9>0,1*$J$4,0)+IF(K9>0,1*$K$4,0)+IF(L9>0,1*$L$4,0)),0) -> 37.95 | R9: =IF(Q9>0,Q9*-1,-1000) -> -37.95 | S9: =IF(Q9>0,RANK(R9,R:R),0) -> 1
A10: 113 | B10: JUN | D10: Paschedag | E10: Mia | F10: Seifenkistengruppe Stromberg | G10: 38.24 | H10: 38.13 | I10: 37.91 | J10: 38.11 | K10: 38.16 | M10: 152.31 | N10: -152.31 | O10: 2 | Q10: 38.0775 | R10: -38.0775 | S10: 2
A11: 121 | B11: JUN | D11: Plath | E11: Marvin | F11: Jugendclub Mettinger SK-Derby | G11: 38.54 | H11: 38.09 | I11: 38.04 | J11: 38.26 | K11: 38.08 | M11: 152.47 | N11: -152.47 | O11: 3 | Q11: 38.1175 | R11: -38.1175 | S11: 3
A12: 114 | B12: JUN | D12: Lampe | E12: Ida | F12: Jugendclub Mettinger SK-Derby | G12: 38.27 | H12: 38.35 | I12: 37.92 | J12: 38.16 | K12: 38.19 | M12: 152.62 | N12: -152.62 | O12: 4 | Q12: 38.155 | R12: -38.155 | S12: 4
A13: 120 | B13: JUN | D13: Reinstein | E13: Carlos | F13: MSVg Gerolzhofen | G13: 38.43 | H13: 38.17 | I13: 38.1 | J13: 38 | K13: 38.45 | M13: 152.72 | N13: -152.72 | O13: 5 | Q13: 38.18 | R13: -38.18 | S13: 5
A14: 112 | B14: JUN | D14: Klein | E14: Mika | F14: SKK Moselflitzer Klüsserath | G14: 38.55 | H14: 38.07 | I14: 38.08 | J14: 38.19 | K14: 38.54 | M14: 152.88 | N14: -152.88 | O14: 6 | Q14: 38.22 | R14: -38.22 | S14: 6
A15: 106 | B15: JUN | D15: Klimpel | E15: Beatrice | F15: Power Crew Berlin | G15: 38.26 | H15: 38.38 | I15: 38.15 | J15: 38.12 | K15: 38.26 | M15: 152.91 | N15: -152.91 | O15: 7 | Q15: 38.2275 | R15: -38.2275 | S15: 7
A16: 104 | B16: JUN | D16: Freudenstein | E16: Romy | F16: Jugendclub Mettinger SK-Derby | G16: 37.92 | H16: 38.13 | I16: 38.16 | J16: 38.39 | K16: 38.34 | M16: 153.02 | N16: -153.02 | O16: 8 | Q16: 38.255 | R16: -38.255 | S16: 8
A17: 127 | B17: JUN | D17: Schleuß | E17: Melina | F17: Power Crew Berlin | G17: 38.25 | H17: 38.4 | I17: 38.44 | J17: 38.15 | K17: 38.13 | M17: 153.12 | N17: -153.12 | O17: 9 | Q17: 38.28 | R17: -38.28 | S17: 9
A18: 111 | B18: JUN | D18: Bednarski | E18: Maximilian | F18: Jugendclub Mettinger SK-Derby | G18: 38.33 | H18: 38.37 | I18: 38.03 | J18: 38.29 | K18: 38.53 | M18: 153.22 | N18: -153.22 | O18: 10 | Q18: 38.305 | R18: -38.305 | S18: 10
A19: 109 | B19: JUN | D19: Kapraun | E19: Tim | F19: Roadrunners Dreieich | G19: 38.21 | H19: 38.48 | I19: 37.99 | J19: 38.42 | K19: 38.48 | M19: 153.37 | N19: -153.37 | O19: 11 | Q19: 38.3425 | R19: -38.3425 | S19: 11
A20: 119 | B20: JUN | D20: Brandt | E20: Jana | F20: MSVg Gerolzhofen | G20: 38.49 | H20: 38.47 | I20: 38.13 | J20: 38.25 | K20: 38.6 | M20: 153.45 | N20: -153.45 | O20: 12 | Q20: 38.3625 | R20: -38.3625 | S20: 12
A21: 117 | B21: JUN | D21: Salewski | E21: Ben | F21: SKK Moselflitzer Klüsserath | G21: 38.44 | H21: 38.41 | I21: 38.18 | J21: 38.52 | K21: 38.34 | M21: 153.45 | N21: -153.45 | O21: 13 | Q21: 38.3625 | R21: -38.3625 | S21: 13
A22: 122 | B22: JUN | D22: Gahler | E22: Hendrik | F22: Jugendclub Mettinger SK-Derby | G22: 38.74 | H22: 38.4 | I22: 38.45 | J22: 38.48 | K22: 38.41 | M22: 153.74 | N22: -153.74 | O22: 14 | Q22: 38.435 | R22: -38.435 | S22: 14
A23: 101 | B23: JUN | D23: Pufahl | E23: Maximilian | F23: Jugendclub Mettinger SK-Derby | G23: 38.46 | H23: 38.79 | I23: 38.32 | J23: 38.24 | K23: 38.53 | M23: 153.88 | N23: -153.88 | O23: 15 | Q23: 38.47 | R23: -38.47 | S23: 15
A24: 102 | B24: JUN | D24: Klein | E24: Til | F24: SKK Moselflitzer Klüsserath | G24: 38.49 | H24: 38.77 | I24: 38.48 | J24: 38.22 | K24: 38.49 | M24: 153.96 | N24: -153.96 | O24: 16 | Q24: 38.49 | R24: -38.49 | S24: 16
A25: 110 | B25: JUN | D25: Milbach | E25: Leif | F25: Joker Team Berlin | G25: 38.24 | H25: 38.38 | I25: 37.96 | J25: 39.28 | K25: 38.39 | M25: 154.01 | N25: -154.01 | O25: 17 | Q25: 38.5025 | R25: -38.5025 | S25: 17
A26: 115 | B26: JUN | D26: Demleiter | E26: Angelike Chantalle | F26: Immer auf Achse Bergkamen | G26: 38.63 | H26: 38.36 | I26: 38.47 | J26: 38.63 | K26: 38.55 | M26: 154.01 | N26: -154.01 | O26: 17 | Q26: 38.5025 | R26: -38.5025 | S26: 17
A27: 108 | B27: JUN | D27: Gerland | E27: Lio | F27: SKK Moselflitzer Klüsserath | G27: 38.72 | H27: 38.85 | I27: 38.49 | J27: 38.45 | K27: 38.61 | M27: 154.4 | N27: -154.4 | O27: 19 | Q27: 38.6 | R27: -38.6 | S27: 19
A28: 107 | B28: JUN | D28: Gebert | E28: Philipp Norbert | F28: SKK Moselflitzer Klüsserath | G28: 38.36 | H28: 38.89 | I28: 38.35 | J28: 38.74 | K28: 38.57 | M28: 154.55 | N28: -154.55 | O28: 20 | Q28: 38.6375 | R28: -38.6375 | S28: 20
A29: 103 | B29: JUN | D29: Schier | E29: Finn | F29: Seifenkistengruppe Stromberg | G29: 38.07 | H29: 38.64 | I29: 38.38 | J29: 38.83 | K29: 38.72 | M29: 154.57 | N29: -154.57 | O29: 21 | Q29: 38.6425 | R29: -38.6425 | S29: 21
A30: 123 | B30: JUN | D30: Claus | E30: Florentina | F30: Immer auf Achse Bergkamen | G30: 38.79 | H30: 38.7 | I30: 38.63 | J30: 38.74 | K30: 38.52 | M30: 154.59 | N30: -154.59 | O30: 22 | Q30: 38.6475 | R30: -38.6475 | S30: 22
A31: 116 | B31: JUN | D31: May | E31: Elias | F31: SKK Moselflitzer Klüsserath | G31: 38.72 | H31: 38.57 | I31: 38.69 | J31: 38.82 | K31: 38.77 | M31: 154.85 | N31: -154.85 | O31: 23 | Q31: 38.7125 | R31: -38.7125 | S31: 23
A32: 126 | B32: JUN | D32: Gerland | E32: Nils | F32: SKK Moselflitzer Klüsserath | G32: 38.8 | H32: 39.09 | I32: 38.64 | J32: 38.66 | K32: 38.54 | M32: 154.93 | N32: -154.93 | O32: 24 | Q32: 38.7325 | R32: -38.7325 | S32: 24
A33: 125 | B33: JUN | D33: Zaruba | E33: Max | F33: Jugendclub Mettinger SK-Derby | M33: 0 | N33: -1000 | O33: 0 | Q33: 0 | R33: -1000 | S33: 0
A34: 128 | B34: JUN | D34: Hieb | E34: Fynn | F34: Familiennetzwerk Hanau | G34: 38.73 | H34: 39.07 | I34: 39.03 | J34: 38.53 | K34: 38.57 | M34: 155.2 | N34: -155.2 | O34: 25 | Q34: 38.8 | R34: -38.8 | S34: 25
A35: 118 | B35: JUN | D35: Behr | E35: Matthis | F35: SG 1998 Partenheim | G35: 40.53 | H35: 39.87 | I35: 39.7 | J35: 40.28 | K35: 40.16 | M35: 160.01 | N35: -160.01 | O35: 26 | Q35: 40.0025 | R35: -40.0025 | S35: 26
A36: 129 | B36: JUN | C36: EM | D36: Nicolescu | E36: Theodor | F36: Rumänien | G36: 38.48 | H36: 38.85 | J36: 38.55 | K36: 38.61 | L36: 100 | M36: 216.01 | N36: -216.01 | O36: 27 | Q36: 54.0025 | R36: -54.0025 | S36: 28
A37: 105 | B37: JUN | C37: EM | D37: Marunde | E37: Timéo | F37: Frankreich | G37: 38.33 | H37: 38.69 | I37: 38.37 | J37: 38.42 | K37: 38.34 | L37: 100 | M37: 253.82 | N37: -253.82 | O37: 28 | Q37: 50.764 | R37: -50.764 | S37: 27
M38: 0 | N38: -1000 | O38: 0 | Q38: 0 | R38: -1000 | S38: 0
M39: 0 | N39: -1000 | O39: 0 | Q39: 0 | R39: -1000 | S39: 0
M40: 0 | N40: -1000 | O40: 0 | Q40: 0 | R40: -1000 | S40: 0
M41: 0 | N41: -1000 | O41: 0 | Q41: 0 | R41: -1000 | S41: 0
M42: 0 | N42: -1000 | O42: 0 | Q42: 0 | R42: -1000 | S42: 0
M43: 0 | N43: -1000 | O43: 0 | Q43: 0 | R43: -1000 | S43: 0
M44: 0 | N44: -1000 | O44: 0 | Q44: 0 | R44: -1000 | S44: 0
M45: 0 | N45: -1000 | O45: 0 | Q45: 0 | R45: -1000 | S45: 0
M46: 0 | N46: -1000 | O46: 0 | Q46: 0 | R46: -1000 | S46: 0
M47: 0 | N47: -1000 | O47: 0 | Q47: 0 | R47: -1000 | S47: 0
M48: 0 | N48: -1000 | O48: 0 | Q48: 0 | R48: -1000 | S48: 0
M49: 0 | N49: -1000 | O49: 0 | Q49: 0 | R49: -1000 | S49: 0
M50: 0 | N50: -1000 | O50: 0 | Q50: 0 | R50: -1000 | S50: 0
M51: 0 | N51: -1000 | O51: 0 | Q51: 0 | R51: -1000 | S51: 0
M52: 0 | N52: -1000 | O52: 0 | Q52: 0 | R52: -1000 | S52: 0
M53: 0 | N53: -1000 | O53: 0 | Q53: 0 | R53: -1000 | S53: 0
M54: 0 | N54: -1000 | O54: 0 | Q54: 0 | R54: -1000 | S54: 0
M55: 0 | N55: -1000 | O55: 0 | Q55: 0 | R55: -1000 | S55: 0
M56: 0 | N56: -1000 | O56: 0 | Q56: 0 | R56: -1000 | S56: 0
M57: 0 | N57: -1000 | O57: 0 | Q57: 0 | R57: -1000 | S57: 0
M58: 0 | N58: -1000 | O58: 0 | Q58: 0 | R58: -1000 | S58: 0
M59: 0 | N59: -1000 | O59: 0 | Q59: 0 | R59: -1000 | S59: 0
M60: 0 | N60: -1000 | O60: 0 | Q60: 0 | R60: -1000 | S60: 0
M61: 0 | N61: -1000 | O61: 0 | Q61: 0 | R61: -1000 | S61: 0
M62: 0 | N62: -1000 | O62: 0 | Q62: 0 | R62: -1000 | S62: 0
M63: 0 | N63: -1000 | O63: 0 | Q63: 0 | R63: -1000 | S63: 0
M64: 0 | N64: -1000 | O64: 0 | Q64: 0 | R64: -1000 | S64: 0
M65: 0 | N65: -1000 | O65: 0 | Q65: 0 | R65: -1000 | S65: 0
M66: 0 | N66: -1000 | O66: 0 | Q66: 0 | R66: -1000 | S66: 0
M67: 0 | N67: -1000 | O67: 0 | Q67: 0 | R67: -1000 | S67: 0
M68: 0 | N68: -1000 | O68: 0 | Q68: 0 | R68: -1000 | S68: 0
M69: 0 | N69: -1000 | O69: 0 | Q69: 0 | R69: -1000 | S69: 0
M70: 0 | N70: -1000 | O70: 0 | Q70: 0 | R70: -1000 | S70: 0
M71: 0 | N71: =IF(M71>0,M71*-1,-1000) -> -1000 | O71: 0 | Q71: 0 | R71: -1000 | S71: 0
M72: 0 | N72: =IF(M72>0,M72*-1,-1000) -> -1000 | O72: 0 | Q72: 0 | R72: -1000 | S72: 0
M73: =(G73*$G$4+H73*$H$4+I73*$I$4+J73*$J$4+K73*$K$4+L73*$L$4) -> 0 | N73: =IF(M73>0,M73*-1,-1000) -> -1000 | O73: =IF(M73>0,RANK(N73,N:N),0) -> 0 | Q73: =IF((G73*$G$4+H73*$H$4+I73*$I$4+J73*$J$4+K73*$K$4+L73*$L$4)>0,(G73*$G$4+H73*$H$4+I73*$I$4+J73*$J$4+K73*$K$4+L73*$L$4)/(IF(G73>0,1*$G$4,0)+IF(H73>0,1*$H$4,0)+IF(I73>0,1*$I$4,0)+IF(J73>0,1*$J$4,0)+IF(K73>0,1*$K$4,0)+IF(L73>0,1*$L$4,0)),0) -> 0 | R73: =IF(Q73>0,Q73*-1,-1000) -> -1000 | S73: =IF(Q73>0,RANK(R73,R:R),0) -> 0
M74: 0 | N74: =IF(M74>0,M74*-1,-1000) -> -1000 | O74: 0 | Q74: 0 | R74: -1000 | S74: 0
M75: 0 | N75: =IF(M75>0,M75*-1,-1000) -> -1000 | O75: 0 | Q75: 0 | R75: -1000 | S75: 0
M76: 0 | N76: =IF(M76>0,M76*-1,-1000) -> -1000 | O76: 0 | Q76: 0 | R76: -1000 | S76: 0
M77: 0 | N77: =IF(M77>0,M77*-1,-1000) -> -1000 | O77: 0 | Q77: 0 | R77: -1000 | S77: 0
M78: 0 | N78: -1000 | O78: 0 | Q78: 0 | R78: -1000 | S78: 0
M79: 0 | N79: -1000 | O79: 0 | Q79: 0 | R79: -1000 | S79: 0
M80: 0 | N80: =IF(M80>0,M80*-1,-1000) -> -1000 | O80: 0 | Q80: 0 | R80: -1000 | S80: 0
M81: 0 | N81: =IF(M81>0,M81*-1,-1000) -> -1000 | O81: 0 | Q81: 0 | R81: -1000 | S81: 0
M82: 0 | N82: =IF(M82>0,M82*-1,-1000) -> -1000 | O82: 0 | Q82: 0 | R82: -1000 | S82: 0
M83: 0 | N83: -1000 | O83: 0 | Q83: 0 | R83: -1000 | S83: 0
M84: 0 | N84: -1000 | O84: 0 | Q84: 0 | R84: -1000 | S84: 0
M85: 0 | N85: -1000 | O85: 0 | Q85: 0 | R85: -1000 | S85: 0
M86: 0 | N86: -1000 | O86: 0 | Q86: 0 | R86: -1000 | S86: 0
M87: 0 | N87: -1000 | O87: 0 | Q87: 0 | R87: -1000 | S87: 0
M88: 0 | N88: -1000 | O88: 0 | Q88: 0 | R88: -1000 | S88: 0
M89: 0 | N89: -1000 | O89: 0 | Q89: 0 | R89: -1000 | S89: 0
M90: 0 | N90: =IF(M90>0,M90*-1,-1000) -> -1000 | O90: 0 | Q90: 0 | R90: -1000 | S90: 0
M91: 0 | N91: -1000 | O91: 0 | Q91: 0 | R91: -1000 | S91: 0
M92: 0 | N92: -1000 | O92: 0 | Q92: 0 | R92: -1000 | S92: 0
M93: 0 | N93: -1000 | O93: 0 | Q93: 0 | R93: -1000 | S93: 0
M94: 0 | N94: -1000 | O94: 0 | Q94: 0 | R94: -1000 | S94: 0
M95: 0 | N95: =IF(M95>0,M95*-1,-1000) -> -1000 | O95: 0 | Q95: 0 | R95: -1000 | S95: 0
M96: 0 | N96: -1000 | O96: 0 | Q96: 0 | R96: -1000 | S96: 0
M97: 0 | N97: -1000 | O97: 0 | Q97: 0 | R97: -1000 | S97: 0
M98: 0 | N98: -1000 | O98: 0 | Q98: 0 | R98: -1000 | S98: 0
M99: 0 | N99: -1000 | O99: 0 | Q99: 0 | R99: -1000 | S99: 0
M100: 0 | N100: -1000 | O100: 0 | Q100: 0 | R100: -1000 | S100: 0
M101: 0 | N101: -1000 | O101: 0 | Q101: 0 | R101: -1000 | S101: 0
M102: 0 | N102: -1000 | O102: 0 | Q102: 0 | R102: -1000 | S102: 0
M103: 0 | N103: -1000 | O103: 0 | Q103: 0 | R103: -1000 | S103: 0
M104: 0 | N104: -1000 | O104: 0 | Q104: 0 | R104: -1000 | S104: 0
M105: 0 | N105: -1000 | O105: 0 | Q105: 0 | R105: -1000 | S105: 0
M106: 0 | N106: -1000 | O106: 0 | Q106: 0 | R106: -1000 | S106: 0
M107: 0 | N107: -1000 | O107: 0 | Q107: 0 | R107: -1000 | S107: 0
M108: 0 | N108: -1000 | O108: 0 | Q108: 0 | R108: -1000 | S108: 0
M109: 0 | N109: -1000 | O109: 0 | Q109: 0 | R109: -1000 | S109: 0
M110: 0 | N110: -1000 | O110: 0 | Q110: 0 | R110: -1000 | S110: 0
M111: 0 | N111: -1000 | O111: 0 | Q111: 0 | R111: -1000 | S111: 0
M112: 0 | N112: -1000 | O112: 0 | Q112: 0 | R112: -1000 | S112: 0
M113: 0 | N113: -1000 | O113: 0 | Q113: 0 | R113: -1000 | S113: 0
M114: 0 | N114: -1000 | O114: 0 | Q114: 0 | R114: -1000 | S114: 0
M115: 0 | N115: -1000 | O115: 0 | Q115: 0 | R115: -1000 | S115: 0
M116: 0 | N116: -1000 | O116: 0 | Q116: 0 | R116: -1000 | S116: 0
M117: 0 | N117: -1000 | O117: 0 | Q117: 0 | R117: -1000 | S117: 0
M118: 0 | N118: -1000 | O118: 0 | Q118: 0 | R118: -1000 | S118: 0
M119: 0 | N119: -1000 | O119: 0 | Q119: 0 | R119: -1000 | S119: 0
M120: 0 | N120: -1000 | O120: 0 | Q120: 0 | R120: -1000 | S120: 0
M121: 0 | N121: -1000 | O121: 0 | Q121: 0 | R121: -1000 | S121: 0
M122: 0 | N122: -1000 | O122: 0 | Q122: 0 | R122: -1000 | S122: 0
M123: 0 | N123: -1000 | O123: 0 | Q123: 0 | R123: -1000 | S123: 0
M124: 0 | N124: -1000 | O124: 0 | Q124: 0 | R124: -1000 | S124: 0
M125: 0 | N125: -1000 | O125: 0 | Q125: 0 | R125: -1000 | S125: 0
M126: 0 | N126: -1000 | O126: 0 | Q126: 0 | R126: -1000 | S126: 0
M127: 0 | N127: -1000 | O127: 0 | Q127: 0 | R127: -1000 | S127: 0
M128: 0 | N128: -1000 | O128: 0 | Q128: 0 | R128: -1000 | S128: 0
M129: 0 | N129: -1000 | O129: 0 | Q129: 0 | R129: -1000 | S129: 0
M130: 0 | N130: -1000 | O130: 0 | Q130: 0 | R130: -1000 | S130: 0
M131: 0 | N131: -1000 | O131: 0 | Q131: 0 | R131: -1000 | S131: 0
M132: 0 | N132: -1000 | O132: 0 | Q132: 0 | R132: -1000 | S132: 0
M133: 0 | N133: -1000 | O133: 0 | Q133: 0 | R133: -1000 | S133: 0
M134: 0 | N134: -1000 | O134: 0 | Q134: 0 | R134: -1000 | S134: 0
M135: 0 | N135: -1000 | O135: 0 | Q135: 0 | R135: -1000 | S135: 0
M136: 0 | N136: -1000 | O136: 0 | Q136: 0 | R136: -1000 | S136: 0
M137: =(G137*$G$4+H137*$H$4+I137*$I$4+J137*$J$4+K137*$K$4+L137*$L$4) -> 0 | N137: -1000 | O137: =IF(M137>0,RANK(N137,N:N),0) -> 0 | Q137: =IF((G137*$G$4+H137*$H$4+I137*$I$4+J137*$J$4+K137*$K$4+L137*$L$4)>0,(G137*$G$4+H137*$H$4+I137*$I$4+J137*$J$4+K137*$K$4+L137*$L$4)/(IF(G137>0,1*$G$4,0)+IF(H137>0,1*$H$4,0)+IF(I137>0,1*$I$4,0)+IF(J137>0,1*$J$4,0)+IF(K137>0,1*$K$4,0)+IF(L137>0,1*$L$4,0)),0) -> 0 | R137: -1000 | S137: =IF(Q137>0,RANK(R137,R:R),0) -> 0
M138: 0 | N138: -1000 | O138: 0 | Q138: 0 | R138: -1000 | S138: 0
M139: 0 | N139: -1000 | O139: 0 | Q139: 0 | R139: -1000 | S139: 0
M140: 0 | N140: -1000 | O140: 0 | Q140: 0 | R140: -1000 | S140: 0
M141: 0 | N141: -1000 | O141: 0 | Q141: 0 | R141: -1000 | S141: 0
M142: 0 | N142: -1000 | O142: 0 | Q142: 0 | R142: -1000 | S142: 0
M143: 0 | N143: -1000 | O143: 0 | Q143: 0 | R143: -1000 | S143: 0
M144: 0 | N144: -1000 | O144: 0 | Q144: 0 | R144: -1000 | S144: 0
M145: 0 | N145: -1000 | O145: 0 | Q145: 0 | R145: -1000 | S145: 0
M146: 0 | N146: -1000 | O146: 0 | Q146: 0 | R146: -1000 | S146: 0
M147: 0 | N147: -1000 | O147: 0 | Q147: 0 | R147: -1000 | S147: 0
M148: 0 | N148: -1000 | O148: 0 | Q148: 0 | R148: -1000 | S148: 0
M149: 0 | N149: -1000 | O149: 0 | Q149: 0 | R149: -1000 | S149: 0

Sheet WDM-SEN
A1: DSKD 69. Deutsche Meisterschaft und 19. Europameisterschaft 2017 Mettingen ESKD
A2: DM - Wertungsläufe in der SENIOR - Klasse
A3: 10 Endlauf-Teilnehmer | S3: Bestzeit
A4: Wird der Lauf gewertet? dann 0 oder 1 eintragen | G4: 0 | H4: 1 | I4: 1 | J4: 1 | K4: 1 | L4: 0 | S4: in Vorläufen
E5: Bestzeit je Lauf | G5: =MIN(G9:G149) -> 36.85 | H5: 36.86 | I5: 36.67 | J5: 36.63 | K5: 36.56 | L5: 200 | S5: =MIN((IF(G4=1,G5,99)), (IF(H4=1,H5,99)), (IF(I4=1,I5,99)), (IF(J4=1,J5,99)), (IF(K4=1,K5,99)), (IF(L4=1,L5,99)) ) -> 36.56
E6: Mittelwert je Lauf | G6: =IF(G5>0,AVERAGE(G9:G149),0) -> 37.12966667 | H6: 37.19857143 | I6: 37.02857143 | J6: 36.92321429 | K6: 36.86285714 | L6: 200
A7: Start Nummer | B7: Gruppe | C7: startet | D7: Name | E7: Vorname | F7: Verein | G7: Lauf 1 | H7: Lauf 2 | I7: Lauf 3 | J7: Lauf 4 | K7: Lauf 5 | L7: Lauf 6 | M7: Summe der gewerteten Läufe | O7: Platz | Q7: Mittelwert | S7: Platz
A9: 407 | B9: SEN | D9: Meyer | E9: Henry | F9: Jugendclub Mettinger SK-Derby | G9: 36.85 | H9: 36.86 | I9: 36.84 | J9: 36.75 | K9: 36.56 | M9: =(G9*$G$4+H9*$H$4+I9*$I$4+J9*$J$4+K9*$K$4+L9*$L$4) -> 147.01 | N9: =IF(M9>0,M9*-1,-1000) -> -147.01 | O9: =IF(M9>0,RANK(N9,N:N),0) -> 1 | Q9: =IF((G9*$G$4+H9*$H$4+I9*$I$4+J9*$J$4+K9*$K$4+L9*$L$4)>0,(G9*$G$4+H9*$H$4+I9*$I$4+J9*$J$4+K9*$K$4+L9*$L$4)/(IF(G9>0,1*$G$4,0)+IF(H9>0,1*$H$4,0)+IF(I9>0,1*$I$4,0)+IF(J9>0,1*$J$4,0)+IF(K9>0,1*$K$4,0)+IF(L9>0,1*$L$4,0)),0) -> 36.7525 | R9: =IF(Q9>0,Q9*-1,-1000) -> -36.7525 | S9: =IF(Q9>0,RANK(R9,R:R),0) -> 1
A10: 415 | B10: SEN | D10: Freudenstein | E10: Rieke | F10: Jugendclub Mettinger SK-Derby | G10: 36.98 | H10: 36.91 | I10: 36.81 | J10: 36.73 | K10: 36.73 | M10: 147.18 | N10: -147.18 | O10: 2 | Q10: 36.795 | R10: -36.795 | S10: 2
A11: 426 | B11: SEN | D11: Reuscher | E11: Sanja | F11: Joker-Team Berlin | G11: 36.99 | H11: 37.1 | I11: 36.67 | J11: 36.86 | K11: 36.78 | M11: 147.41 | N11: -147.41 | O11: 3 | Q11: 36.8525 | R11: -36.8525 | S11: 3
A12: 428 | B12: SEN | D12: Förster | E12: Maurice | F12: Eifeler-Seifenkistenfreunde Simmerath | G12: 37.03 | H12: 37.04 | I12: 36.86 | J12: 36.85 | K12: 36.69 | M12: 147.44 | N12: -147.44 | O12: 4 | Q12: 36.86 | R12: -36.86 | S12: 4
A13: 409 | B13: SEN | D13: Reinstein | E13: Marie | F13: MSVg Gerolzhofen | G13: 37.16 | H13: 37.14 | I13: 36.89 | J13: 36.64 | K13: 36.77 | M13: 147.44 | N13: -147.44 | O13: 4 | Q13: 36.86 | R13: -36.86 | S13: 4
A14: 410 | B14: SEN | D14: Hoebertz | E14: Max Ole | F14: Power Crew Berlin | G14: 37.03 | H14: 37.08 | I14: 36.9 | J14: 36.71 | K14: 36.76 | M14: 147.45 | N14: -147.45 | O14: 6 | Q14: 36.8625 | R14: -36.8625 | S14: 6
A15: 427 | B15: SEN | D15: Lammers | E15: Laura | F15: ConAction Köln | G15: 37.08 | H15: 37.07 | I15: 36.93 | J15: 36.78 | K15: 36.67 | M15: 147.45 | N15: -147.45 | O15: 6 | Q15: 36.8625 | R15: -36.8625 | S15: 6
A16: 423 | B16: SEN | D16: Gößling | E16: Jule | F16: Jugendclub Mettinger SK-Derby | G16: 37.02 | H16: 37.21 | I16: 36.97 | J16: 36.63 | K16: 36.73 | M16: 147.54 | N16: -147.54 | O16: 8 | Q16: 36.885 | R16: -36.885 | S16: 8
A17: 401 | B17: SEN | D17: Meyer | E17: Johann | F17: Jugendclub Mettinger SK-Derby | G17: 37.01 | H17: 37.12 | I17: 36.94 | J17: 36.8 | K17: 36.69 | M17: 147.55 | N17: -147.55 | O17: 9 | Q17: 36.8875 | R17: -36.8875 | S17: 9
A18: 420 | B18: SEN | D18: Schrüfer | E18: Stella | F18: Seifenkistenfreunde Nürnberg | G18: 36.94 | H18: 37.07 | I18: 36.97 | J18: 36.87 | K18: 36.64 | M18: 147.55 | N18: -147.55 | O18: 9 | Q18: 36.8875 | R18: -36.8875 | S18: 9
A19: 425 | B19: SEN | D19: Kerner | E19: Vanessa | F19: SK-Verband Baden-Württemberg | G19: 36.95 | H19: 37.14 | I19: 36.8 | J19: 36.91 | K19: 36.8 | M19: 147.65 | N19: -147.65 | O19: 11 | Q19: 36.9125 | R19: -36.9125 | S19: 11
A20: 404 | B20: SEN | D20: Lampe | E20: Pia | F20: Jugendclub Mettinger SK-Derby | G20: 36.94 | H20: 37.17 | I20: 36.96 | J20: 36.9 | K20: 36.77 | M20: 147.8 | N20: -147.8 | O20: 12 | Q20: 36.95 | R20: -36.95 | S20: 12
A21: 413 | B21: SEN | D21: Lutterbach | E21: Roman | F21: Eifeler-Seifenkistenfreunde Simmerath | G21: 37.16 | H21: 37.18 | I21: 36.91 | J21: 36.86 | K21: 36.88 | M21: 147.83 | N21: -147.83 | O21: 13 | Q21: 36.9575 | R21: -36.9575 | S21: 13
A22: 417 | B22: SEN | D22: Krebs | E22: Luca | F22: Roadrunners Dreieich | G22: 37.15 | H22: 37.26 | I22: 36.95 | J22: 36.88 | K22: 36.83 | M22: 147.92 | N22: -147.92 | O22: 14 | Q22: 36.98 | R22: -36.98 | S22: 14
A23: 429 | B23: SEN | D23: Sonneborn | E23: Ina | F23: Seifenkistengruppe Stromberg | G23: 37.01 | H23: 37.1 | I23: 37 | J23: 37.01 | K23: 36.86 | M23: 147.97 | N23: -147.97 | O23: 15 | Q23: 36.9925 | R23: -36.9925 | S23: 15
A24: 430 | B24: SEN | D24: Zaruba | E24: Max | F24: Jugendclub Mettinger SK-Derby | G24: 36.97 | H24: 36.99 | I24: 37.08 | J24: 37.05 | K24: 36.86 | M24: 147.98 | N24: -147.98 | O24: 16 | Q24: 36.995 | R24: -36.995 | S24: 16
A25: 419 | B25: SEN | D25: Becker | E25: Robin | F25: Immer auf Achse Bergkamen | G25: 37.14 | H25: 37.27 | I25: 37.03 | J25: 36.94 | K25: 36.78 | M25: 148.02 | N25: -148.02 | O25: 17 | Q25: 37.005 | R25: -37.005 | S25: 17
A26: 411 | B26: SEN | D26: Hollweck | E26: Annika | F26: MSVg Gerolzhofen | G26: 37.12 | H26: 37.31 | I26: 37 | J26: 36.93 | K26: 36.84 | M26: 148.08 | N26: -148.08 | O26: 18 | Q26: 37.02 | R26: -37.02 | S26: 18
A27: 416 | B27: SEN | D27: Klimpel | E27: Benedikt | F27: SK-Verband Baden-Württemberg | G27: 37.16 | H27: 37.16 | I27: 37.1 | J27: 36.95 | K27: 36.88 | M27: 148.09 | N27: -148.09 | O27: 19 | Q27: 37.0225 | R27: -37.0225 | S27: 19
A28: 421 | B28: SEN | D28: Keßling | E28: Sophie | F28: Jugendclub Mettinger SK-Derby | G28: 37.24 | H28: 37.23 | I28: 37.13 | J28: 36.85 | K28: 36.95 | M28: 148.16 | N28: -148.16 | O28: 20 | Q28: 37.04 | R28: -37.04 | S28: 20
A29: 422 | B29: SEN | D29: Neuhaus | E29: Robin | F29: Jugendclub Mettinger SK-Derby | G29: 37.26 | H29: 37.34 | I29: 37.03 | J29: 36.93 | K29: 36.91 | M29: 148.21 | N29: -148.21 | O29: 21 | Q29: 37.0525 | R29: -37.0525 | S29: 21
A30: 405 | B30: SEN | D30: Lutterbach | E30: Eric | F30: Eifeler-Seifenkistenfreunde Simmerath | G30: 37.18 | H30: 37.19 | I30: 37.15 | J30: 36.97 | K30: 36.97 | M30: 148.28 | N30: -148.28 | O30: 22 | Q30: 37.07 | R30: -37.07 | S30: 22
A31: 412 | B31: SEN | D31: Salewski | E31: Lena | F31: SKK Moselflitzer Klüsserath | G31: 37.17 | H31: 37.28 | I31: 37.16 | J31: 37.04 | K31: 37 | M31: 148.48 | N31: -148.48 | O31: 23 | Q31: 37.12 | R31: -37.12 | S31: 23
A32: 418 | B32: SEN | D32: Reuscher | E32: Silas | F32: Joker-Team Berlin | G32: 37.38 | H32: 37.33 | I32: 37.13 | J32: 37 | K32: 37.03 | M32: 148.49 | N32: -148.49 | O32: 24 | Q32: 37.1225 | R32: -37.1225 | S32: 24
A33: 403 | B33: SEN | D33: Ricker | E33: Sarah | F33: Berkel Raser Billerbeck | G33: 37.21 | H33: 37.42 | I33: 37.3 | J33: 37.15 | K33: 37.07 | M33: 148.94 | N33: -148.94 | O33: 25 | Q33: 37.235 | R33: -37.235 | S33: 25
A34: 424 | B34: SEN | D34: Brandelik | E34: Wiebke | F34: SK-Verband Baden-Württemberg | G34: 37.46 | H34: 37.47 | I34: 37.36 | J34: 37.16 | K34: 37.2 | M34: 149.19 | N34: -149.19 | O34: 26 | Q34: 37.2975 | R34: -37.2975 | S34: 26
A35: 414 | B35: SEN | D35: Adam | E35: Alexander | F35: Familiennetzwerk Hanau | G35: 37.51 | H35: 37.51 | I35: 37.31 | J35: 37.23 | K35: 37.22 | M35: 149.27 | N35: -149.27 | O35: 27 | Q35: 37.3175 | R35: -37.3175 | S35: 27
A36: 402 | B36: SEN | D36: Braun | E36: Kerstin | F36: MSVg Gerolzhofen | G36: 37.5 | H36: 37.61 | I36: 37.62 | J36: 37.47 | K36: 37.29 | M36: 149.99 | N36: -149.99 | O36: 28 | Q36: 37.4975 | R36: -37.4975 | S36: 28
A37: 408 | B37: SEN | D37: Steinberg | E37: Kimberly | F37: Berkel Raser Billerbeck | G37: 37.29 | L37: 200 | M37: 0 | N37: -1000 | O37: 0 | Q37: 0 | R37: -1000 | S37: 0
A38: 406 | B38: SEN | D38: Wetter | E38: Stefanie | F38: Berkel Raser Billerbeck | G38: 37 | L38: 200 | M38: 0 | N38: -1000 | O38: 0 | Q38: 0 | R38: -1000 | S38: 0
A39: 431 | B39: SEN | M39: 0 | N39: -1000 | O39: 0 | Q39: 0 | R39: -1000 | S39: 0
A40: 432 | B40: SEN | M40: 0 | N40: -1000 | O40: 0 | Q40: 0 | R40: -1000 | S40: 0
A41: 433 | B41: SEN | M41: 0 | N41: -1000 | O41: 0 | Q41: 0 | R41: -1000 | S41: 0
M42: 0 | N42: -1000 | O42: 0 | Q42: 0 | R42: -1000 | S42: 0
M43: 0 | N43: -1000 | O43: 0 | Q43: 0 | R43: -1000 | S43: 0
M44: 0 | N44: -1000 | O44: 0 | Q44: 0 | R44: -1000 | S44: 0
M45: 0 | N45: -1000 | O45: 0 | Q45: 0 | R45: -1000 | S45: 0
M46: 0 | N46: -1000 | O46: 0 | Q46: 0 | R46: -1000 | S46: 0
M47: 0 | N47: -1000 | O47: 0 | Q47: 0 | R47: -1000 | S47: 0
M48: 0 | N48: -1000 | O48: 0 | Q48: 0 | R48: -1000 | S48: 0
M49: 0 | N49: -1000 | O49: 0 | Q49: 0 | R49: -1000 | S49: 0
M50: 0 | N50: -1000 | O50: 0 | Q50: 0 | R50: -1000 | S50: 0
M51: 0 | N51: -1000 | O51: 0 | Q51: 0 | R51: -1000 | S51: 0
M52: 0 | N52: -1000 | O52: 0 | Q52: 0 | R52: -1000 | S52: 0
M53: 0 | N53: -1000 | O53: 0 | Q53: 0 | R53: -1000 | S53: 0
M54: 0 | N54: -1000 | O54: 0 | Q54: 0 | R54: -1000 | S54: 0
M55: 0 | N55: -1000 | O55: 0 | Q55: 0 | R55: -1000 | S55: 0
M56: 0 | N56: -1000 | O56: 0 | Q56: 0 | R56: -1000 | S56: 0
M57: 0 | N57: -1000 | O57: 0 | Q57: 0 | R57: -1000 | S57: 0
M58: 0 | N58: -1000 | O58: 0 | Q58: 0 | R58: -1000 | S58: 0
M59: 0 | N59: -1000 | O59: 0 | Q59: 0 | R59: -1000 | S59: 0
M60: 0 | N60: -1000 | O60: 0 | Q60: 0 | R60: -1000 | S60: 0
M61: 0 | N61: -1000 | O61: 0 | Q61: 0 | R61: -1000 | S61: 0
M62: 0 | N62: -1000 | O62: 0 | Q62: 0 | R62: -1000 | S62: 0
M63: 0 | N63: -1000 | O63: 0 | Q63: 0 | R63: -1000 | S63: 0
M64: 0 | N64: -1000 | O64: 0 | Q64: 0 | R64: -1000 | S64: 0
M65: 0 | N65: -1000 | O65: 0 | Q65: 0 | R65: -1000 | S65: 0
M66: 0 | N66: -1000 | O66: 0 | Q66: 0 | R66: -1000 | S66: 0
M67: 0 | N67: -1000 | O67: 0 | Q67: 0 | R67: -1000 | S67: 0
M68: 0 | N68: -1000 | O68: 0 | Q68: 0 | R68: -1000 | S68: 0
M69: 0 | N69: -1000 | O69: 0 | Q69: 0 | R69: -1000 | S69: 0
M70: 0 | N70: -1000 | O70: 0 | Q70: 0 | R70: -1000 | S70: 0
M71: 0 | N71: =IF(M71>0,M71*-1,-1000) -> -1000 | O71: 0 | Q71: 0 | R71: -1000 | S71: 0
M72: 0 | N72: =IF(M72>0,M72*-1,-1000) -> -1000 | O72: 0 | Q72: 0 | R72: -1000 | S72: 0
M73: =(G73*$G$4+H73*$H$4+I73*$I$4+J73*$J$4+K73*$K$4+L73*$L$4) -> 0 | N73: =IF(M73>0,M73*-1,-1000) -> -1000 | O73: =IF(M73>0,RANK(N73,N:N),0) -> 0 | Q73: =IF((G73*$G$4+H73*$H$4+I73*$I$4+J73*$J$4+K73*$K$4+L73*$L$4)>0,(G73*$G$4+H73*$H$4+I73*$I$4+J73*$J$4+K73*$K$4+L73*$L$4)/(IF(G73>0,1*$G$4,0)+IF(H73>0,1*$H$4,0)+IF(I73>0,1*$I$4,0)+IF(J73>0,1*$J$4,0)+IF(K73>0,1*$K$4,0)+IF(L73>0,1*$L$4,0)),0) -> 0 | R73: =IF(Q73>0,Q73*-1,-1000) -> -1000 | S73: =IF(Q73>0,RANK(R73,R:R),0) -> 0
M74: 0 | N74: =IF(M74>0,M74*-1,-1000) -> -1000 | O74: 0 | Q74: 0 | R74: -1000 | S74: 0
M75: 0 | N75: =IF(M75>0,M75*-1,-1000) -> -1000 | O75: 0 | Q75: 0 | R75: -1000 | S75: 0
M76: 0 | N76: =IF(M76>0,M76*-1,-1000) -> -1000 | O76: 0 | Q76: 0 | R76: -1000 | S76: 0
M77: 0 | N77: =IF(M77>0,M77*-1,-1000) -> -1000 | O77: 0 | Q77: 0 | R77: -1000 | S77: 0
M78: 0 | N78: -1000 | O78: 0 | Q78: 0 | R78: -1000 | S78: 0
M79: 0 | N79: -1000 | O79: 0 | Q79: 0 | R79: -1000 | S79: 0
M80: 0 | N80: =IF(M80>0,M80*-1,-1000) -> -1000 | O80: 0 | Q80: 0 | R80: -1000 | S80: 0
M81: 0 | N81: =IF(M81>0,M81*-1,-1000) -> -1000 | O81: 0 | Q81: 0 | R81: -1000 | S81: 0
M82: 0 | N82: =IF(M82>0,M82*-1,-1000) -> -1000 | O82: 0 | Q82: 0 | R82: -1000 | S82: 0
M83: 0 | N83: -1000 | O83: 0 | Q83: 0 | R83: -1000 | S83: 0
M84: 0 | N84: -1000 | O84: 0 | Q84: 0 | R84: -1000 | S84: 0
M85: 0 | N85: -1000 | O85: 0 | Q85: 0 | R85: -1000 | S85: 0
M86: 0 | N86: -1000 | O86: 0 | Q86: 0 | R86: -1000 | S86: 0
M87: 0 | N87: -1000 | O87: 0 | Q87: 0 | R87: -1000 | S87: 0
M88: 0 | N88: -1000 | O88: 0 | Q88: 0 | R88: -1000 | S88: 0
M89: 0 | N89: -1000 | O89: 0 | Q89: 0 | R89: -1000 | S89: 0
M90: 0 | N90: =IF(M90>0,M90*-1,-1000) -> -1000 | O90: 0 | Q90: 0 | R90: -1000 | S90: 0
M91: 0 | N91: -1000 | O91: 0 | Q91: 0 | R91: -1000 | S91: 0
M92: 0 | N92: -1000 | O92: 0 | Q92: 0 | R92: -1000 | S92: 0
M93: 0 | N93: -1000 | O93: 0 | Q93: 0 | R93: -1000 | S93: 0
M94: 0 | N94: -1000 | O94: 0 | Q94: 0 | R94: -1000 | S94: 0
M95: 0 | N95: =IF(M95>0,M95*-1,-1000) -> -1000 | O95: 0 | Q95: 0 | R95: -1000 | S95: 0
M96: 0 | N96: -1000 | O96: 0 | Q96: 0 | R96: -1000 | S96: 0
M97: 0 | N97: -1000 | O97: 0 | Q97: 0 | R97: -1000 | S97: 0
M98: 0 | N98: -1000 | O98: 0 | Q98: 0 | R98: -1000 | S98: 0
M99: 0 | N99: -1000 | O99: 0 | Q99: 0 | R99: -1000 | S99: 0
M100: 0 | N100: -1000 | O100: 0 | Q100: 0 | R100: -1000 | S100: 0
M101: 0 | N101: -1000 | O101: 0 | Q101: 0 | R101: -1000 | S101: 0
M102: 0 | N102: -1000 | O102: 0 | Q102: 0 | R102: -1000 | S102: 0
M103: 0 | N103: -1000 | O103: 0 | Q103: 0 | R103: -1000 | S103: 0
M104: 0 | N104: -1000 | O104: 0 | Q104: 0 | R104: -1000 | S104: 0
M105: 0 | N105: -1000 | O105: 0 | Q105: 0 | R105: -1000 | S105: 0
M106: 0 | N106: -1000 | O106: 0 | Q106: 0 | R106: -1000 | S106: 0
M107: 0 | N107: -1000 | O107: 0 | Q107: 0 | R107: -1000 | S107: 0
M108: 0 | N108: -1000 | O108: 0 | Q108: 0 | R108: -1000 | S108: 0
M109: 0 | N109: -1000 | O109: 0 | Q109: 0 | R109: -1000 | S109: 0
M110: 0 | N110: -1000 | O110: 0 | Q110: 0 | R110: -1000 | S110: 0
M111: 0 | N111: -1000 | O111: 0 | Q111: 0 | R111: -1000 | S111: 0
M112: 0 | N112: -1000 | O112: 0 | Q112: 0 | R112: -1000 | S112: 0
M113: 0 | N113: -1000 | O113: 0 | Q113: 0 | R113: -1000 | S113: 0
M114: 0 | N114: -1000 | O114: 0 | Q114: 0 | R114: -1000 | S114: 0
M115: 0 | N115: -1000 | O115: 0 | Q115: 0 | R115: -1000 | S115: 0
M116: 0 | N116: -1000 | O116: 0 | Q116: 0 | R116: -1000 | S116: 0
M117: 0 | N117: -1000 | O117: 0 | Q117: 0 | R117: -1000 | S117: 0
M118: 0 | N118: -1000 | O118: 0 | Q118: 0 | R118: -1000 | S118: 0
M119: 0 | N119: -1000 | O119: 0 | Q119: 0 | R119: -1000 | S119: 0
M120: 0 | N120: -1000 | O120: 0 | Q120: 0 | R120: -1000 | S120: 0
M121: 0 | N121: -1000 | O121: 0 | Q121: 0 | R121: -1000 | S121: 0
M122: 0 | N122: -1000 | O122: 0 | Q122: 0 | R122: -1000 | S122: 0
M123: 0 | N123: -1000 | O123: 0 | Q123: 0 | R123: -1000 | S123: 0
M124: 0 | N124: -1000 | O124: 0 | Q124: 0 | R124: -1000 | S124: 0
M125: 0 | N125: -1000 | O125: 0 | Q125: 0 | R125: -1000 | S125: 0
M126: 0 | N126: -1000 | O126: 0 | Q126: 0 | R126: -1000 | S126: 0
M127: 0 | N127: -1000 | O127: 0 | Q127: 0 | R127: -1000 | S127: 0
M128: 0 | N128: -1000 | O128: 0 | Q128: 0 | R128: -1000 | S128: 0
M129: 0 | N129: -1000 | O129: 0 | Q129: 0 | R129: -1000 | S129: 0
M130: 0 | N130: -1000 | O130: 0 | Q130: 0 | R130: -1000 | S130: 0
M131: 0 | N131: -1000 | O131: 0 | Q131: 0 | R131: -1000 | S131: 0
M132: 0 | N132: -1000 | O132: 0 | Q132: 0 | R132: -1000 | S132: 0
M133: 0 | N133: -1000 | O133: 0 | Q133: 0 | R133: -1000 | S133: 0
M134: 0 | N134: -1000 | O134: 0 | Q134: 0 | R134: -1000 | S134: 0
M135: 0 | N135: -1000 | O135: 0 | Q135: 0 | R135: -1000 | S135: 0
M136: 0 | N136: -1000 | O136: 0 | Q136: 0 | R136: -1000 | S136: 0
M137: =(G137*$G$4+H137*$H$4+I137*$I$4+J137*$J$4+K137*$K$4+L137*$L$4) -> 0 | N137: -1000 | O137: =IF(M137>0,RANK(N137,N:N),0) -> 0 | Q137: =IF((G137*$G$4+H137*$H$4+I137*$I$4+J137*$J$4+K137*$K$4+L137*$L$4)>0,(G137*$G$4+H137*$H$4+I137*$I$4+J137*$J$4+K137*$K$4+L137*$L$4)/(IF(G137>0,1*$G$4,0)+IF(H137>0,1*$H$4,0)+IF(I137>0,1*$I$4,0)+IF(J137>0,1*$J$4,0)+IF(K137>0,1*$K$4,0)+IF(L137>0,1*$L$4,0)),0) -> 0 | R137: -1000 | S137: =IF(Q137>0,RANK(R137,R:R),0) -> 0
M138: 0 | N138: -1000 | O138: 0 | Q138: 0 | R138: -1000 | S138: 0
M139: 0 | N139: -1000 | O139: 0 | Q139: 0 | R139: -1000 | S139: 0
M140: 0 | N140: -1000 | O140: 0 | Q140: 0 | R140: -1000 | S140: 0
M141: 0 | N141: -1000 | O141: 0 | Q141: 0 | R141: -1000 | S141: 0
M142: 0 | N142: -1000 | O142: 0 | Q142: 0 | R142: -1000 | S142: 0
M143: 0 | N143: -1000 | O143: 0 | Q143: 0 | R143: -1000 | S143: 0
M144: 0 | N144: -1000 | O144: 0 | Q144: 0 | R144: -1000 | S144: 0
M145: 0 | N145: -1000 | O145: 0 | Q145: 0 | R145: -1000 | S145: 0
M146: 0 | N146: -1000 | O146: 0 | Q146: 0 | R146: -1000 | S146: 0
M147: 0 | N147: -1000 | O147: 0 | Q147: 0 | R147: -1000 | S147: 0
M148: 0 | N148: -1000 | O148: 0 | Q148: 0 | R148: -1000 | S148: 0
M149: 0 | N149: -1000 | O149: 0 | Q149: 0 | R149: -1000 | S149: 0

Sheet WDM-XL
A1: DSKD 69. Deutsche Meisterschaft und 19. Europameisterschaft 2017 Mettingen ESKD
A2: DM - Wertungsläufe in der Elite XL - Klasse
A3: 4 Endlauf-Teilnehmer | S3: Bestzeit
A4: Wird der Lauf gewertet? dann 0 oder 1 eintragen | G4: 0 | H4: 1 | I4: 1 | J4: 1 | K4: 1 | L4: 1 | S4: in Vorläufen
E5: Bestzeit je Lauf | G5: =MIN(G9:G149) -> 36.68 | H5: 36.67 | I5: 36.83 | J5: 36.68 | K5: 36.83 | L5: 0 | S5: =MIN((IF(G4=1,G5,99)), (IF(H4=1,H5,99)), (IF(I4=1,I5,99)), (IF(J4=1,J5,99)), (IF(K4=1,K5,99)), (IF(L4=1,L5,99)) ) -> 0
E6: Mittelwert je Lauf | G6: =IF(G5>0,AVERAGE(G9:G149),0) -> 37.09583333 | H6: 37.08583333 | I6: 37.17666667 | J6: 37.05833333 | K6: 37.2075 | L6: 0
A7: Start Nummer | B7: Gruppe | C7: startet | D7: Name | E7: Vorname | F7: Verein | G7: Lauf 1 | H7: Lauf 2 | I7: Lauf 3 | J7: Lauf 4 | K7: Lauf 5 | L7: Lauf 6 | M7: Summe der gewerteten Läufe | O7: Platz | Q7: Mittelwert | S7: Platz
A9: 213 | B9: Elite XL | D9: Leismann | E9: Dominik | F9: Jugendclub Mettinger SK-Derby | M9: =(G9*$G$4+H9*$H$4+I9*$I$4+J9*$J$4+K9*$K$4+L9*$L$4) -> 0 | N9: =IF(M9>0,M9*-1,-1000) -> -1000 | O9: =IF(M9>0,RANK(N9,N:N),0) -> 0 | Q9: =IF((G9*$G$4+H9*$H$4+I9*$I$4+J9*$J$4+K9*$K$4+L9*$L$4)>0,(G9*$G$4+H9*$H$4+I9*$I$4+J9*$J$4+K9*$K$4+L9*$L$4)/(IF(G9>0,1*$G$4,0)+IF(H9>0,1*$H$4,0)+IF(I9>0,1*$I$4,0)+IF(J9>0,1*$J$4,0)+IF(K9>0,1*$K$4,0)+IF(L9>0,1*$L$4,0)),0) -> 0 | R9: =IF(Q9>0,Q9*-1,-1000) -> -1000 | S9: =IF(Q9>0,RANK(R9,R:R),0) -> 0
A10: 210 | B10: Elite XL | D10: Strohmaier | E10: Sebastian | F10: SV Losaurach | G10: 36.68 | H10: 36.67 | I10: 36.83 | J10: 36.68 | K10: 36.83 | M10: 147.01 | N10: -147.01 | O10: 1 | Q10: 36.7525 | R10: -36.7525 | S10: 1
A11: 205 | B11: Elite XL | D11: Braun | E11: Armin | F11: MSVg Gerolzhofen | G11: 36.89 | H11: 36.85 | I11: 36.9 | J11: 36.84 | K11: 36.96 | M11: 147.55 | N11: -147.55 | O11: 2 | Q11: 36.8875 | R11: -36.8875 | S11: 2
A12: 202 | B12: Elite XL | D12: Schmidt | E12: Marvin | F12: Friesenflitzer Varel | G12: 36.86 | H12: 36.93 | I12: 36.92 | J12: 36.73 | K12: 37.03 | M12: 147.61 | N12: -147.61 | O12: 3 | Q12: 36.9025 | R12: -36.9025 | S12: 3
A13: 206 | B13: Elite XL | D13: Schlösser | E13: Timon | F13: Seifenkistengruppe Stromberg | G13: 37.13 | H13: 36.97 | I13: 37.12 | J13: 37.02 | K13: 37.22 | M13: 148.33 | N13: -148.33 | O13: 4 | Q13: 37.0825 | R13: -37.0825 | S13: 4
A14: 212 | B14: Elite XL | D14: Ricker | E14: Jana-Lena | F14: Berkel Raser Billerbeck | G14: 37.12 | H14: 37.09 | I14: 37.22 | J14: 37.06 | K14: 37.09 | M14: 148.46 | N14: -148.46 | O14: 5 | Q14: 37.115 | R14: -37.115 | S14: 5
A15: 201 | B15: Elite XL | D15: Herberth | E15: Laura | F15: SK-Verband Baden-Württemberg | G15: 37.05 | H15: 37.3 | I15: 37.11 | J15: 37.03 | K15: 37.25 | M15: 148.69 | N15: -148.69 | O15: 6 | Q15: 37.1725 | R15: -37.1725 | S15: 6
A16: 203 | B16: Elite XL | D16: Reinicke | E16: Tim | F16: Power Crew Berlin | G16: 37.24 | H16: 37.07 | I16: 37.27 | J16: 37.13 | K16: 37.38 | M16: 148.85 | N16: -148.85 | O16: 7 | Q16: 37.2125 | R16: -37.2125 | S16: 7
A17: 207 | B17: Elite XL | D17: Herberth | E17: Yannick | F17: SK-Verband Baden-Württemberg | G17: 37.25 | H17: 37.2 | I17: 37.21 | J17: 37.13 | K17: 37.36 | M17: 148.9 | N17: -148.9 | O17: 8 | Q17: 37.225 | R17: -37.225 | S17: 8
A18: 209 | B18: Elite XL | D18: Nießen | E18: Nicolas | F18: Eifeler-Seifenkistenfreunde Simmerath | G18: 37.03 | H18: 37.2 | I18: 37.26 | J18: 37.23 | K18: 37.31 | M18: 149 | N18: -149 | O18: 9 | Q18: 37.25 | R18: -37.25 | S18: 9
A19: 208 | B19: Elite XL | D19: Marx | E19: Fabian | F19: ConAction Köln | G19: 37.31 | H19: 37.19 | I19: 37.36 | J19: 37.23 | K19: 37.24 | M19: 149.02 | N19: -149.02 | O19: 10 | Q19: 37.255 | R19: -37.255 | S19: 10
A20: 204 | B20: Elite XL | D20: Fischer | E20: Moritz | F20: Joker-Team Berlin | G20: 37.28 | H20: 37.16 | I20: 37.48 | J20: 37.16 | K20: 37.48 | M20: 149.28 | N20: -149.28 | O20: 11 | Q20: 37.32 | R20: -37.32 | S20: 11
A21: 211 | B21: Elite XL | D21: Elges | E21: Erik | F21: Seifenkistengruppe Stromberg | G21: 37.31 | H21: 37.4 | I21: 37.44 | J21: 37.46 | K21: 37.34 | M21: 149.64 | N21: -149.64 | O21: 12 | Q21: 37.41 | R21: -37.41 | S21: 12
M22: 0 | N22: -1000 | O22: 0 | Q22: 0 | R22: -1000 | S22: 0
M23: 0 | N23: -1000 | O23: 0 | Q23: 0 | R23: -1000 | S23: 0
M24: 0 | N24: -1000 | O24: 0 | Q24: 0 | R24: -1000 | S24: 0
M25: 0 | N25: =IF(M25>0,M25*-1,-1000) -> -1000 | O25: 0 | Q25: 0 | R25: -1000 | S25: 0
M26: 0 | N26: =IF(M26>0,M26*-1,-1000) -> -1000 | O26: 0 | Q26: 0 | R26: -1000 | S26: 0
M27: 0 | N27: =IF(M27>0,M27*-1,-1000) -> -1000 | O27: 0 | Q27: 0 | R27: -1000 | S27: 0
M28: 0 | N28: -1000 | O28: 0 | Q28: 0 | R28: -1000 | S28: 0
M29: 0 | N29: -1000 | O29: 0 | Q29: 0 | R29: -1000 | S29: 0
M30: 0 | N30: -1000 | O30: 0 | Q30: 0 | R30: -1000 | S30: 0
M31: 0 | N31: -1000 | O31: 0 | Q31: 0 | R31: -1000 | S31: 0
M32: 0 | N32: -1000 | O32: 0 | Q32: 0 | R32: -1000 | S32: 0
M33: 0 | N33: -1000 | O33: 0 | Q33: 0 | R33: -1000 | S33: 0
M34: 0 | N34: -1000 | O34: 0 | Q34: 0 | R34: -1000 | S34: 0
M35: 0 | N35: -1000 | O35: 0 | Q35: 0 | R35: -1000 | S35: 0
M36: 0 | N36: =IF(M36>0,M36*-1,-1000) -> -1000 | O36: 0 | Q36: 0 | R36: -1000 | S36: 0
M37: 0 | N37: =IF(M37>0,M37*-1,-1000) -> -1000 | O37: 0 | Q37: 0 | R37: -1000 | S37: 0
M38: 0 | N38: =IF(M38>0,M38*-1,-1000) -> -1000 | O38: 0 | Q38: 0 | R38: -1000 | S38: 0
M39: 0 | N39: =IF(M39>0,M39*-1,-1000) -> -1000 | O39: 0 | Q39: 0 | R39: -1000 | S39: 0
M40: 0 | N40: =IF(M40>0,M40*-1,-1000) -> -1000 | O40: 0 | Q40: 0 | R40: -1000 | S40: 0
M41: 0 | N41: -1000 | O41: 0 | Q41: 0 | R41: -1000 | S41: 0
M42: 0 | N42: =IF(M42>0,M42*-1,-1000) -> -1000 | O42: 0 | Q42: 0 | R42: -1000 | S42: 0
M43: 0 | N43: =IF(M43>0,M43*-1,-1000) -> -1000 | O43: 0 | Q43: 0 | R43: -1000 | S43: 0
M44: 0 | N44: -1000 | O44: 0 | Q44: 0 | R44: -1000 | S44: 0
M45: 0 | N45: -1000 | O45: 0 | Q45: 0 | R45: -1000 | S45: 0
M46: 0 | N46: -1000 | O46: 0 | Q46: 0 | R46: -1000 | S46: 0
M47: 0 | N47: -1000 | O47: 0 | Q47: 0 | R47: -1000 | S47: 0
M48: 0 | N48: -1000 | O48: 0 | Q48: 0 | R48: -1000 | S48: 0
M49: 0 | N49: -1000 | O49: 0 | Q49: 0 | R49: -1000 | S49: 0
M50: 0 | N50: -1000 | O50: 0 | Q50: 0 | R50: -1000 | S50: 0
M51: 0 | N51: -1000 | O51: 0 | Q51: 0 | R51: -1000 | S51: 0
M52: 0 | N52: -1000 | O52: 0 | Q52: 0 | R52: -1000 | S52: 0
M53: 0 | N53: -1000 | O53: 0 | Q53: 0 | R53: -1000 | S53: 0
M54: 0 | N54: -1000 | O54: 0 | Q54: 0 | R54: -1000 | S54: 0
M55: 0 | N55: -1000 | O55: 0 | Q55: 0 | R55: -1000 | S55: 0
M56: 0 | N56: -1000 | O56: 0 | Q56: 0 | R56: -1000 | S56: 0
M57: 0 | N57: -1000 | O57: 0 | Q57: 0 | R57: -1000 | S57: 0
M58: 0 | N58: -1000 | O58: 0 | Q58: 0 | R58: -1000 | S58: 0
M59: 0 | N59: -1000 | O59: 0 | Q59: 0 | R59: -1000 | S59: 0
M60: 0 | N60: -1000 | O60: 0 | Q60: 0 | R60: -1000 | S60: 0
M61: 0 | N61: -1000 | O61: 0 | Q61: 0 | R61: -1000 | S61: 0
M62: 0 | N62: -1000 | O62: 0 | Q62: 0 | R62: -1000 | S62: 0
M63: 0 | N63: -1000 | O63: 0 | Q63: 0 | R63: -1000 | S63: 0
M64: 0 | N64: -1000 | O64: 0 | Q64: 0 | R64: -1000 | S64: 0
M65: 0 | N65: -1000 | O65: 0 | Q65: 0 | R65: -1000 | S65: 0
M66: 0 | N66: -1000 | O66: 0 | Q66: 0 | R66: -1000 | S66: 0
M67: 0 | N67: -1000 | O67: 0 | Q67: 0 | R67: -1000 | S67: 0
M68: 0 | N68: -1000 | O68: 0 | Q68: 0 | R68: -1000 | S68: 0
M69: 0 | N69: -1000 | O69: 0 | Q69: 0 | R69: -1000 | S69: 0
M70: 0 | N70: -1000 | O70: 0 | Q70: 0 | R70: -1000 | S70: 0
M71: 0 | N71: =IF(M71>0,M71*-1,-1000) -> -1000 | O71: 0 | Q71: 0 | R71: -1000 | S71: 0
M72: 0 | N72: =IF(M72>0,M72*-1,-1000) -> -1000 | O72: 0 | Q72: 0 | R72: -1000 | S72: 0
M73: =(G73*$G$4+H73*$H$4+I73*$I$4+J73*$J$4+K73*$K$4+L73*$L$4) -> 0 | N73: =IF(M73>0,M73*-1,-1000) -> -1000 | O73: =IF(M73>0,RANK(N73,N:N),0) -> 0 | Q73: =IF((G73*$G$4+H73*$H$4+I73*$I$4+J73*$J$4+K73*$K$4+L73*$L$4)>0,(G73*$G$4+H73*$H$4+I73*$I$4+J73*$J$4+K73*$K$4+L73*$L$4)/(IF(G73>0,1*$G$4,0)+IF(H73>0,1*$H$4,0)+IF(I73>0,1*$I$4,0)+IF(J73>0,1*$J$4,0)+IF(K73>0,1*$K$4,0)+IF(L73>0,1*$L$4,0)),0) -> 0 | R73: =IF(Q73>0,Q73*-1,-1000) -> -1000 | S73: =IF(Q73>0,RANK(R73,R:R),0) -> 0
M74: 0 | N74: =IF(M74>0,M74*-1,-1000) -> -1000 | O74: 0 | Q74: 0 | R74: -1000 | S74: 0
M75: 0 | N75: =IF(M75>0,M75*-1,-1000) -> -1000 | O75: 0 | Q75: 0 | R75: -1000 | S75: 0
M76: 0 | N76: =IF(M76>0,M76*-1,-1000) -> -1000 | O76: 0 | Q76: 0 | R76: -1000 | S76: 0
M77: 0 | N77: =IF(M77>0,M77*-1,-1000) -> -1000 | O77: 0 | Q77: 0 | R77: -1000 | S77: 0
M78: 0 | N78: -1000 | O78: 0 | Q78: 0 | R78: -1000 | S78: 0
M79: 0 | N79: -1000 | O79: 0 | Q79: 0 | R79: -1000 | S79: 0
M80: 0 | N80: =IF(M80>0,M80*-1,-1000) -> -1000 | O80: 0 | Q80: 0 | R80: -1000 | S80: 0
M81: 0 | N81: =IF(M81>0,M81*-1,-1000) -> -1000 | O81: 0 | Q81: 0 | R81: -1000 | S81: 0
M82: 0 | N82: =IF(M82>0,M82*-1,-1000) -> -1000 | O82: 0 | Q82: 0 | R82: -1000 | S82: 0
M83: 0 | N83: -1000 | O83: 0 | Q83: 0 | R83: -1000 | S83: 0
M84: 0 | N84: -1000 | O84: 0 | Q84: 0 | R84: -1000 | S84: 0
M85: 0 | N85: -1000 | O85: 0 | Q85: 0 | R85: -1000 | S85: 0
M86: 0 | N86: -1000 | O86: 0 | Q86: 0 | R86: -1000 | S86: 0
M87: 0 | N87: -1000 | O87: 0 | Q87: 0 | R87: -1000 | S87: 0
M88: 0 | N88: -1000 | O88: 0 | Q88: 0 | R88: -1000 | S88: 0
M89: 0 | N89: -1000 | O89: 0 | Q89: 0 | R89: -1000 | S89: 0
M90: 0 | N90: =IF(M90>0,M90*-1,-1000) -> -1000 | O90: 0 | Q90: 0 | R90: -1000 | S90: 0
M91: 0 | N91: -1000 | O91: 0 | Q91: 0 | R91: -1000 | S91: 0
M92: 0 | N92: -1000 | O92: 0 | Q92: 0 | R92: -1000 | S92: 0
M93: 0 | N93: -1000 | O93: 0 | Q93: 0 | R93: -1000 | S93: 0
M94: 0 | N94: -1000 | O94: 0 | Q94: 0 | R94: -1000 | S94: 0
M95: 0 | N95: =IF(M95>0,M95*-1,-1000) -> -1000 | O95: 0 | Q95: 0 | R95: -1000 | S95: 0
M96: 0 | N96: -1000 | O96: 0 | Q96: 0 | R96: -1000 | S96: 0
M97: 0 | N97: -1000 | O97: 0 | Q97: 0 | R97: -1000 | S97: 0
M98: 0 | N98: -1000 | O98: 0 | Q98: 0 | R98: -1000 | S98: 0
M99: 0 | N99: -1000 | O99: 0 | Q99: 0 | R99: -1000 | S99: 0
M100: 0 | N100: -1000 | O100: 0 | Q100: 0 | R100: -1000 | S100: 0
M101: 0 | N101: -1000 | O101: 0 | Q101: 0 | R101: -1000 | S101: 0
M102: 0 | N102: -1000 | O102: 0 | Q102: 0 | R102: -1000 | S102: 0
M103: 0 | N103: -1000 | O103: 0 | Q103: 0 | R103: -1000 | S103: 0
M104: 0 | N104: -1000 | O104: 0 | Q104: 0 | R104: -1000 | S104: 0
M105: 0 | N105: -1000 | O105: 0 | Q105: 0 | R105: -1000 | S105: 0
M106: 0 | N106: -1000 | O106: 0 | Q106: 0 | R106: -1000 | S106: 0
M107: 0 | N107: -1000 | O107: 0 | Q107: 0 | R107: -1000 | S107: 0
M108: 0 | N108: -1000 | O108: 0 | Q108: 0 | R108: -1000 | S108: 0
M109: 0 | N109: -1000 | O109: 0 | Q109: 0 | R109: -1000 | S109: 0
M110: 0 | N110: -1000 | O110: 0 | Q110: 0 | R110: -1000 | S110: 0
M111: 0 | N111: -1000 | O111: 0 | Q111: 0 | R111: -1000 | S111: 0
M112: 0 | N112: -1000 | O112: 0 | Q112: 0 | R112: -1000 | S112: 0
M113: 0 | N113: -1000 | O113: 0 | Q113: 0 | R113: -1000 | S113: 0
M114: 0 | N114: -1000 | O114: 0 | Q114: 0 | R114: -1000 | S114: 0
M115: 0 | N115: -1000 | O115: 0 | Q115: 0 | R115: -1000 | S115: 0
M116: 0 | N116: -1000 | O116: 0 | Q116: 0 | R116: -1000 | S116: 0
M117: 0 | N117: -1000 | O117: 0 | Q117: 0 | R117: -1000 | S117: 0
M118: 0 | N118: -1000 | O118: 0 | Q118: 0 | R118: -1000 | S118: 0
M119: 0 | N119: -1000 | O119: 0 | Q119: 0 | R119: -1000 | S119: 0
M120: 0 | N120: -1000 | O120: 0 | Q120: 0 | R120: -1000 | S120: 0
M121: 0 | N121: -1000 | O121: 0 | Q121: 0 | R121: -1000 | S121: 0
M122: 0 | N122: -1000 | O122: 0 | Q122: 0 | R122: -1000 | S122: 0
M123: 0 | N123: -1000 | O123: 0 | Q123: 0 | R123: -1000 | S123: 0
M124: 0 | N124: -1000 | O124: 0 | Q124: 0 | R124: -1000 | S124: 0
M125: 0 | N125: -1000 | O125: 0 | Q125: 0 | R125: -1000 | S125: 0
M126: 0 | N126: -1000 | O126: 0 | Q126: 0 | R126: -1000 | S126: 0
M127: 0 | N127: -1000 | O127: 0 | Q127: 0 | R127: -1000 | S127: 0
M128: 0 | N128: -1000 | O128: 0 | Q128: 0 | R128: -1000 | S128: 0
M129: 0 | N129: -1000 | O129: 0 | Q129: 0 | R129: -1000 | S129: 0
M130: 0 | N130: -1000 | O130: 0 | Q130: 0 | R130: -1000 | S130: 0
M131: 0 | N131: -1000 | O131: 0 | Q131: 0 | R131: -1000 | S131: 0
M132: 0 | N132: -1000 | O132: 0 | Q132: 0 | R132: -1000 | S132: 0
M133: 0 | N133: -1000 | O133: 0 | Q133: 0 | R133: -1000 | S133: 0
M134: 0 | N134: -1000 | O134: 0 | Q134: 0 | R134: -1000 | S134: 0
M135: 0 | N135: -1000 | O135: 0 | Q135: 0 | R135: -1000 | S135: 0
M136: 0 | N136: -1000 | O136: 0 | Q136: 0 | R136: -1000 | S136: 0
M137: =(G137*$G$4+H137*$H$4+I137*$I$4+J137*$J$4+K137*$K$4+L137*$L$4) -> 0 | N137: -1000 | O137: =IF(M137>0,RANK(N137,N:N),0) -> 0 | Q137: =IF((G137*$G$4+H137*$H$4+I137*$I$4+J137*$J$4+K137*$K$4+L137*$L$4)>0,(G137*$G$4+H137*$H$4+I137*$I$4+J137*$J$4+K137*$K$4+L137*$L$4)/(IF(G137>0,1*$G$4,0)+IF(H137>0,1*$H$4,0)+IF(I137>0,1*$I$4,0)+IF(J137>0,1*$J$4,0)+IF(K137>0,1*$K$4,0)+IF(L137>0,1*$L$4,0)),0) -> 0 | R137: -1000 | S137: =IF(Q137>0,RANK(R137,R:R),0) -> 0
M138: 0 | N138: -1000 | O138: 0 | Q138: 0 | R138: -1000 | S138: 0
M139: 0 | N139: -1000 | O139: 0 | Q139: 0 | R139: -1000 | S139: 0
M140: 0 | N140: -1000 | O140: 0 | Q140: 0 | R140: -1000 | S140: 0
M141: 0 | N141: -1000 | O141: 0 | Q141: 0 | R141: -1000 | S141: 0
M142: 0 | N142: -1000 | O142: 0 | Q142: 0 | R142: -1000 | S142: 0
M143: 0 | N143: -1000 | O143: 0 | Q143: 0 | R143: -1000 | S143: 0
M144: 0 | N144: -1000 | O144: 0 | Q144: 0 | R144: -1000 | S144: 0
M145: 0 | N145: -1000 | O145: 0 | Q145: 0 | R145: -1000 | S145: 0
M146: 0 | N146: -1000 | O146: 0 | Q146: 0 | R146: -1000 | S146: 0
M147: 0 | N147: -1000 | O147: 0 | Q147: 0 | R147: -1000 | S147: 0
M148: 0 | N148: -1000 | O148: 0 | Q148: 0 | R148: -1000 | S148: 0
M149: 0 | N149: -1000 | O149: 0 | Q149: 0 | R149: -1000 | S149: 0

Sheet WDM-XL18
A1: DSKD 69. Deutsche Meisterschaft und 19. Europameisterschaft 2017 Mettingen ESKD
A2: DM - Wertungsläufe in der XL Ü18 - Klasse
A3: 6 Endlauf-Teilnehmer | S3: Bestzeit
A4: Wird der Lauf gewertet? dann 0 oder 1 eintragen | G4: 0 | H4: 1 | I4: 1 | J4: 1 | K4: 1 | L4: 1 | S4: in Vorläufen
E5: Bestzeit je Lauf | G5: =MIN(G9:G149) -> 36.58 | H5: 36.72 | I5: 36.53 | J5: 36.69 | K5: 36.79 | L5: 100 | S5: =MIN((IF(G4=1,G5,99)), (IF(H4=1,H5,99)), (IF(I4=1,I5,99)), (IF(J4=1,J5,99)), (IF(K4=1,K5,99)), (IF(L4=1,L5,99)) ) -> 36.53
E6: Mittelwert je Lauf | G6: =IF(G5>0,AVERAGE(G9:G149),0) -> 36.94052632 | H6: 36.99473684 | I6: 36.88058824 | J6: 36.91526316 | K6: 37.02052632 | L6: 100
A7: Start Nummer | B7: Gruppe | C7: startet | D7: Name | E7: Vorname | F7: Verein | G7: Lauf 1 | H7: Lauf 2 | I7: Lauf 3 | J7: Lauf 4 | K7: Lauf 5 | L7: Lauf 6 | M7: Summe der gewerteten Läufe | O7: Platz | Q7: Mittelwert | S7: Platz
A9: 313 | B9: Ü18 | D9: Rohls | E9: Sebastian | F9: Seifenkistengruppe Stromberg | G9: 36.58 | H9: 36.72 | I9: 36.53 | J9: 36.69 | K9: 36.84 | M9: =(G9*$G$4+H9*$H$4+I9*$I$4+J9*$J$4+K9*$K$4+L9*$L$4) -> 146.78 | N9: =IF(M9>0,M9*-1,-1000) -> -146.78 | O9: =IF(M9>0,RANK(N9,N:N),0) -> 1 | Q9: =IF((G9*$G$4+H9*$H$4+I9*$I$4+J9*$J$4+K9*$K$4+L9*$L$4)>0,(G9*$G$4+H9*$H$4+I9*$I$4+J9*$J$4+K9*$K$4+L9*$L$4)/(IF(G9>0,1*$G$4,0)+IF(H9>0,1*$H$4,0)+IF(I9>0,1*$I$4,0)+IF(J9>0,1*$J$4,0)+IF(K9>0,1*$K$4,0)+IF(L9>0,1*$L$4,0)),0) -> 36.695 | R9: =IF(Q9>0,Q9*-1,-1000) -> -36.695 | S9: =IF(Q9>0,RANK(R9,R:R),0) -> 1
A10: 304 | B10: Ü18 | D10: Lange | E10: Florian | F10: Jugendclub Mettinger SK-Derby | G10: 36.67 | H10: 36.78 | I10: 36.69 | J10: 36.74 | K10: 36.79 | M10: 147 | N10: -147 | O10: 2 | Q10: 36.75 | R10: -36.75 | S10: 2
A11: 305 | B11: Ü18 | D11: Voß | E11: Marie-Charlotte | F11: Immer auf Achse Bergkamen | G11: 36.86 | H11: 36.77 | I11: 36.71 | J11: 36.69 | K11: 36.85 | M11: 147.02 | N11: -147.02 | O11: 3 | Q11: 36.755 | R11: -36.755 | S11: 3
A12: 306 | B12: Ü18 | D12: Isaac | E12: Marvin | F12: Eifeler-Seifenkistenfreunde Simmerath | G12: 36.75 | H12: 36.77 | I12: 36.7 | J12: 36.74 | K12: 36.87 | M12: 147.08 | N12: -147.08 | O12: 4 | Q12: 36.77 | R12: -36.77 | S12: 4
A13: 316 | B13: Ü18 | D13: Bontjes | E13: Sabine | F13: Power Crew Berlin | G13: 36.84 | H13: 36.83 | I13: 36.85 | J13: 36.74 | K13: 36.95 | M13: 147.37 | N13: -147.37 | O13: 5 | Q13: 36.8425 | R13: -36.8425 | S13: 5
A14: 312 | B14: Ü18 | D14: Hollunder | E14: Christina | F14: Berkel Raser Billerbeck | G14: 36.62 | H14: 36.87 | I14: 36.88 | J14: 36.8 | K14: 36.9 | M14: 147.45 | N14: -147.45 | O14: 6 | Q14: 36.8625 | R14: -36.8625 | S14: 6
A15: 315 | B15: Ü18 | D15: Schmidt | E15: Imke | F15: Friesenflitzer Varel | G15: 36.77 | H15: 36.93 | I15: 36.8 | J15: 36.85 | K15: 36.89 | M15: 147.47 | N15: -147.47 | O15: 7 | Q15: 36.8675 | R15: -36.8675 | S15: 7
A16: 302 | B16: Ü18 | D16: Wetter | E16: Sebastian | F16: Berkel Raser Billerbeck | G16: 36.93 | H16: 36.92 | I16: 36.92 | J16: 36.79 | K16: 36.91 | M16: 147.54 | N16: -147.54 | O16: 8 | Q16: 36.885 | R16: -36.885 | S16: 8
A17: 314 | B17: Ü18 | D17: Wettendorf | E17: Kathrin | F17: Seifenkistengruppe Stromberg | G17: 36.86 | H17: 36.9 | I17: 36.87 | J17: 36.85 | K17: 37.05 | M17: 147.67 | N17: -147.67 | O17: 9 | Q17: 36.9175 | R17: -36.9175 | S17: 9
A18: 310 | B18: Ü18 | D18: Schröer | E18: Sabrina | F18: Jugendclub Mettinger SK-Derby | G18: 36.78 | H18: 36.99 | I18: 36.8 | J18: 37.01 | K18: 37.01 | M18: 147.81 | N18: -147.81 | O18: 10 | Q18: 36.9525 | R18: -36.9525 | S18: 10
A19: 303 | B19: Ü18 | D19: Gudlowski | E19: Svea | F19: Joker-Team Berlin | G19: 36.94 | H19: 37.03 | I19: 37.01 | J19: 36.9 | K19: 37.05 | M19: 147.99 | N19: -147.99 | O19: 11 | Q19: 36.9975 | R19: -36.9975 | S19: 11
A20: 319 | B20: Ü18 | D20: Leismann | E20: Dominik | F20: Jugendclub Mettinger SK-Derby | G20: 37.01 | H20: 36.96 | I20: 37.05 | J20: 37 | K20: 37.03 | M20: 148.04 | N20: -148.04 | O20: 12 | Q20: 37.01 | R20: -37.01 | S20: 12
A21: 309 | B21: Ü18 | D21: Schneider | E21: Ingo | F21: Joker-Team Berlin | G21: 36.95 | H21: 37.06 | I21: 37 | J21: 37.04 | K21: 37.17 | M21: 148.27 | N21: -148.27 | O21: 13 | Q21: 37.0675 | R21: -37.0675 | S21: 13
A22: 307 | B22: Ü18 | D22: Kelch | E22: Maria | F22: Immer auf Achse Bergkamen | G22: 36.99 | H22: 37.14 | I22: 36.95 | J22: 37.16 | K22: 37.08 | M22: 148.33 | N22: -148.33 | O22: 14 | Q22: 37.0825 | R22: -37.0825 | S22: 14
A23: 308 | B23: Ü18 | D23: Leismann | E23: Pascal | F23: SV Losaurach | G23: 36.99 | H23: 37.08 | I23: 37.03 | J23: 37.15 | K23: 37.07 | M23: 148.33 | N23: -148.33 | O23: 14 | Q23: 37.0825 | R23: -37.0825 | S23: 14
A24: 311 | B24: Ü18 | D24: Ricker | E24: Kristina | F24: Berkel Raser Billerbeck | G24: 36.9 | H24: 37.15 | I24: 37.09 | J24: 36.98 | K24: 37.28 | M24: 148.5 | N24: -148.5 | O24: 16 | Q24: 37.125 | R24: -37.125 | S24: 16
A25: 318 | B25: Ü18 | C25: EM | D25: Nicolescu | E25: Bogdan | F25: Rumänien | G25: 37.12 | H25: 37.13 | J25: 37.09 | K25: 37.27 | L25: 100 | M25: 211.49 | N25: -211.49 | O25: 17 | Q25: 52.8725 | R25: -52.8725 | S25: 18
A26: 317 | B26: Ü18 | C26: EM | D26: Bataljevs | E26: Maris | F26: Lettland | G26: 38.19 | H26: 37.79 | J26: 37.18 | K26: 37.37 | L26: 100 | M26: 212.34 | N26: -212.34 | O26: 18 | Q26: 53.085 | R26: -53.085 | S26: 19
A27: 301 | B27: Ü18 | C27: EM | D27: Loo van | E27: Julian | F27: Belgien | G27: 37.12 | H27: 37.08 | I27: 37.09 | J27: 36.99 | K27: 37.01 | L27: 100 | M27: 248.17 | N27: -248.17 | O27: 19 | Q27: 49.634 | R27: -49.634 | S27: 17
M28: 0 | N28: -1000 | O28: 0 | Q28: 0 | R28: -1000 | S28: 0
M29: 0 | N29: -1000 | O29: 0 | Q29: 0 | R29: -1000 | S29: 0
M30: 0 | N30: -1000 | O30: 0 | Q30: 0 | R30: -1000 | S30: 0
M31: 0 | N31: -1000 | O31: 0 | Q31: 0 | R31: -1000 | S31: 0
M32: 0 | N32: -1000 | O32: 0 | Q32: 0 | R32: -1000 | S32: 0
M33: 0 | N33: -1000 | O33: 0 | Q33: 0 | R33: -1000 | S33: 0
M34: 0 | N34: -1000 | O34: 0 | Q34: 0 | R34: -1000 | S34: 0
M35: 0 | N35: -1000 | O35: 0 | Q35: 0 | R35: -1000 | S35: 0
M36: 0 | N36: =IF(M36>0,M36*-1,-1000) -> -1000 | O36: 0 | Q36: 0 | R36: -1000 | S36: 0
M37: 0 | N37: =IF(M37>0,M37*-1,-1000) -> -1000 | O37: 0 | Q37: 0 | R37: -1000 | S37: 0
M38: 0 | N38: =IF(M38>0,M38*-1,-1000) -> -1000 | O38: 0 | Q38: 0 | R38: -1000 | S38: 0
M39: 0 | N39: =IF(M39>0,M39*-1,-1000) -> -1000 | O39: 0 | Q39: 0 | R39: -1000 | S39: 0
M40: 0 | N40: =IF(M40>0,M40*-1,-1000) -> -1000 | O40: 0 | Q40: 0 | R40: -1000 | S40: 0
M41: 0 | N41: -1000 | O41: 0 | Q41: 0 | R41: -1000 | S41: 0
M42: 0 | N42: =IF(M42>0,M42*-1,-1000) -> -1000 | O42: 0 | Q42: 0 | R42: -1000 | S42: 0
M43: 0 | N43: =IF(M43>0,M43*-1,-1000) -> -1000 | O43: 0 | Q43: 0 | R43: -1000 | S43: 0
M44: 0 | N44: -1000 | O44: 0 | Q44: 0 | R44: -1000 | S44: 0
M45: 0 | N45: -1000 | O45: 0 | Q45: 0 | R45: -1000 | S45: 0
M46: 0 | N46: -1000 | O46: 0 | Q46: 0 | R46: -1000 | S46: 0
M47: 0 | N47: -1000 | O47: 0 | Q47: 0 | R47: -1000 | S47: 0
M48: 0 | N48: -1000 | O48: 0 | Q48: 0 | R48: -1000 | S48: 0
M49: 0 | N49: -1000 | O49: 0 | Q49: 0 | R49: -1000 | S49: 0
M50: 0 | N50: -1000 | O50: 0 | Q50: 0 | R50: -1000 | S50: 0
M51: 0 | N51: -1000 | O51: 0 | Q51: 0 | R51: -1000 | S51: 0
M52: 0 | N52: -1000 | O52: 0 | Q52: 0 | R52: -1000 | S52: 0
M53: 0 | N53: -1000 | O53: 0 | Q53: 0 | R53: -1000 | S53: 0
M54: 0 | N54: -1000 | O54: 0 | Q54: 0 | R54: -1000 | S54: 0
M55: 0 | N55: -1000 | O55: 0 | Q55: 0 | R55: -1000 | S55: 0
M56: 0 | N56: -1000 | O56: 0 | Q56: 0 | R56: -1000 | S56: 0
M57: 0 | N57: -1000 | O57: 0 | Q57: 0 | R57: -1000 | S57: 0
M58: 0 | N58: -1000 | O58: 0 | Q58: 0 | R58: -1000 | S58: 0
M59: 0 | N59: -1000 | O59: 0 | Q59: 0 | R59: -1000 | S59: 0
M60: 0 | N60: -1000 | O60: 0 | Q60: 0 | R60: -1000 | S60: 0
M61: 0 | N61: -1000 | O61: 0 | Q61: 0 | R61: -1000 | S61: 0
M62: 0 | N62: -1000 | O62: 0 | Q62: 0 | R62: -1000 | S62: 0
M63: 0 | N63: -1000 | O63: 0 | Q63: 0 | R63: -1000 | S63: 0
M64: 0 | N64: -1000 | O64: 0 | Q64: 0 | R64: -1000 | S64: 0
M65: 0 | N65: -1000 | O65: 0 | Q65: 0 | R65: -1000 | S65: 0
M66: 0 | N66: -1000 | O66: 0 | Q66: 0 | R66: -1000 | S66: 0
M67: 0 | N67: -1000 | O67: 0 | Q67: 0 | R67: -1000 | S67: 0
M68: 0 | N68: -1000 | O68: 0 | Q68: 0 | R68: -1000 | S68: 0
M69: 0 | N69: -1000 | O69: 0 | Q69: 0 | R69: -1000 | S69: 0
M70: 0 | N70: -1000 | O70: 0 | Q70: 0 | R70: -1000 | S70: 0
M71: 0 | N71: =IF(M71>0,M71*-1,-1000) -> -1000 | O71: 0 | Q71: 0 | R71: -1000 | S71: 0
M72: 0 | N72: =IF(M72>0,M72*-1,-1000) -> -1000 | O72: 0 | Q72: 0 | R72: -1000 | S72: 0
M73: =(G73*$G$4+H73*$H$4+I73*$I$4+J73*$J$4+K73*$K$4+L73*$L$4) -> 0 | N73: =IF(M73>0,M73*-1,-1000) -> -1000 | O73: =IF(M73>0,RANK(N73,N:N),0) -> 0 | Q73: =IF((G73*$G$4+H73*$H$4+I73*$I$4+J73*$J$4+K73*$K$4+L73*$L$4)>0,(G73*$G$4+H73*$H$4+I73*$I$4+J73*$J$4+K73*$K$4+L73*$L$4)/(IF(G73>0,1*$G$4,0)+IF(H73>0,1*$H$4,0)+IF(I73>0,1*$I$4,0)+IF(J73>0,1*$J$4,0)+IF(K73>0,1*$K$4,0)+IF(L73>0,1*$L$4,0)),0) -> 0 | R73: =IF(Q73>0,Q73*-1,-1000) -> -1000 | S73: =IF(Q73>0,RANK(R73,R:R),0) -> 0
M74: 0 | N74: =IF(M74>0,M74*-1,-1000) -> -1000 | O74: 0 | Q74: 0 | R74: -1000 | S74: 0
M75: 0 | N75: =IF(M75>0,M75*-1,-1000) -> -1000 | O75: 0 | Q75: 0 | R75: -1000 | S75: 0
M76: 0 | N76: =IF(M76>0,M76*-1,-1000) -> -1000 | O76: 0 | Q76: 0 | R76: -1000 | S76: 0
M77: 0 | N77: =IF(M77>0,M77*-1,-1000) -> -1000 | O77: 0 | Q77: 0 | R77: -1000 | S77: 0
M78: 0 | N78: -1000 | O78: 0 | Q78: 0 | R78: -1000 | S78: 0
M79: 0 | N79: -1000 | O79: 0 | Q79: 0 | R79: -1000 | S79: 0
M80: 0 | N80: =IF(M80>0,M80*-1,-1000) -> -1000 | O80: 0 | Q80: 0 | R80: -1000 | S80: 0
M81: 0 | N81: =IF(M81>0,M81*-1,-1000) -> -1000 | O81: 0 | Q81: 0 | R81: -1000 | S81: 0
M82: 0 | N82: =IF(M82>0,M82*-1,-1000) -> -1000 | O82: 0 | Q82: 0 | R82: -1000 | S82: 0
M83: 0 | N83: -1000 | O83: 0 | Q83: 0 | R83: -1000 | S83: 0
M84: 0 | N84: -1000 | O84: 0 | Q84: 0 | R84: -1000 | S84: 0
M85: 0 | N85: -1000 | O85: 0 | Q85: 0 | R85: -1000 | S85: 0
M86: 0 | N86: -1000 | O86: 0 | Q86: 0 | R86: -1000 | S86: 0
M87: 0 | N87: -1000 | O87: 0 | Q87: 0 | R87: -1000 | S87: 0
M88: 0 | N88: -1000 | O88: 0 | Q88: 0 | R88: -1000 | S88: 0
M89: 0 | N89: -1000 | O89: 0 | Q89: 0 | R89: -1000 | S89: 0
M90: 0 | N90: =IF(M90>0,M90*-1,-1000) -> -1000 | O90: 0 | Q90: 0 | R90: -1000 | S90: 0
M91: 0 | N91: -1000 | O91: 0 | Q91: 0 | R91: -1000 | S91: 0
M92: 0 | N92: -1000 | O92: 0 | Q92: 0 | R92: -1000 | S92: 0
M93: 0 | N93: -1000 | O93: 0 | Q93: 0 | R93: -1000 | S93: 0
M94: 0 | N94: -1000 | O94: 0 | Q94: 0 | R94: -1000 | S94: 0
M95: 0 | N95: =IF(M95>0,M95*-1,-1000) -> -1000 | O95: 0 | Q95: 0 | R95: -1000 | S95: 0
M96: 0 | N96: -1000 | O96: 0 | Q96: 0 | R96: -1000 | S96: 0
M97: 0 | N97: -1000 | O97: 0 | Q97: 0 | R97: -1000 | S97: 0
M98: 0 | N98: -1000 | O98: 0 | Q98: 0 | R98: -1000 | S98: 0
M99: 0 | N99: -1000 | O99: 0 | Q99: 0 | R99: -1000 | S99: 0
M100: 0 | N100: -1000 | O100: 0 | Q100: 0 | R100: -1000 | S100: 0
M101: 0 | N101: -1000 | O101: 0 | Q101: 0 | R101: -1000 | S101: 0
M102: 0 | N102: -1000 | O102: 0 | Q102: 0 | R102: -1000 | S102: 0
M103: 0 | N103: -1000 | O103: 0 | Q103: 0 | R103: -1000 | S103: 0
M104: 0 | N104: -1000 | O104: 0 | Q104: 0 | R104: -1000 | S104: 0
M105: 0 | N105: -1000 | O105: 0 | Q105: 0 | R105: -1000 | S105: 0
M106: 0 | N106: -1000 | O106: 0 | Q106: 0 | R106: -1000 | S106: 0
M107: 0 | N107: -1000 | O107: 0 | Q107: 0 | R107: -1000 | S107: 0
M108: 0 | N108: -1000 | O108: 0 | Q108: 0 | R108: -1000 | S108: 0
M109: 0 | N109: -1000 | O109: 0 | Q109: 0 | R109: -1000 | S109: 0
M110: 0 | N110: -1000 | O110: 0 | Q110: 0 | R110: -1000 | S110: 0
M111: 0 | N111: -1000 | O111: 0 | Q111: 0 | R111: -1000 | S111: 0
M112: 0 | N112: -1000 | O112: 0 | Q112: 0 | R112: -1000 | S112: 0
M113: 0 | N113: -1000 | O113: 0 | Q113: 0 | R113: -1000 | S113: 0
M114: 0 | N114: -1000 | O114: 0 | Q114: 0 | R114: -1000 | S114: 0
M115: 0 | N115: -1000 | O115: 0 | Q115: 0 | R115: -1000 | S115: 0
M116: 0 | N116: -1000 | O116: 0 | Q116: 0 | R116: -1000 | S116: 0
M117: 0 | N117: -1000 | O117: 0 | Q117: 0 | R117: -1000 | S117: 0
M118: 0 | N118: -1000 | O118: 0 | Q118: 0 | R118: -1000 | S118: 0
M119: 0 | N119: -1000 | O119: 0 | Q119: 0 | R119: -1000 | S119: 0
M120: 0 | N120: -1000 | O120: 0 | Q120: 0 | R120: -1000 | S120: 0
M121: 0 | N121: -1000 | O121: 0 | Q121: 0 | R121: -1000 | S121: 0
M122: 0 | N122: -1000 | O122: 0 | Q122: 0 | R122: -1000 | S122: 0
M123: 0 | N123: -1000 | O123: 0 | Q123: 0 | R123: -1000 | S123: 0
M124: 0 | N124: -1000 | O124: 0 | Q124: 0 | R124: -1000 | S124: 0
M125: 0 | N125: -1000 | O125: 0 | Q125: 0 | R125: -1000 | S125: 0
M126: 0 | N126: -1000 | O126: 0 | Q126: 0 | R126: -1000 | S126: 0
M127: 0 | N127: -1000 | O127: 0 | Q127: 0 | R127: -1000 | S127: 0
M128: 0 | N128: -1000 | O128: 0 | Q128: 0 | R128: -1000 | S128: 0
M129: 0 | N129: -1000 | O129: 0 | Q129: 0 | R129: -1000 | S129: 0
M130: 0 | N130: -1000 | O130: 0 | Q130: 0 | R130: -1000 | S130: 0
M131: 0 | N131: -1000 | O131: 0 | Q131: 0 | R131: -1000 | S131: 0
M132: 0 | N132: -1000 | O132: 0 | Q132: 0 | R132: -1000 | S132: 0
M133: 0 | N133: -1000 | O133: 0 | Q133: 0 | R133: -1000 | S133: 0
M134: 0 | N134: -1000 | O134: 0 | Q134: 0 | R134: -1000 | S134: 0
M135: 0 | N135: -1000 | O135: 0 | Q135: 0 | R135: -1000 | S135: 0
M136: 0 | N136: -1000 | O136: 0 | Q136: 0 | R136: -1000 | S136: 0
M137: =(G137*$G$4+H137*$H$4+I137*$I$4+J137*$J$4+K137*$K$4+L137*$L$4) -> 0 | N137: -1000 | O137: =IF(M137>0,RANK(N137,N:N),0) -> 0 | Q137: =IF((G137*$G$4+H137*$H$4+I137*$I$4+J137*$J$4+K137*$K$4+L137*$L$4)>0,(G137*$G$4+H137*$H$4+I137*$I$4+J137*$J$4+K137*$K$4+L137*$L$4)/(IF(G137>0,1*$G$4,0)+IF(H137>0,1*$H$4,0)+IF(I137>0,1*$I$4,0)+IF(J137>0,1*$J$4,0)+IF(K137>0,1*$K$4,0)+IF(L137>0,1*$L$4,0)),0) -> 0 | R137: -1000 | S137: =IF(Q137>0,RANK(R137,R:R),0) -> 0
M138: 0 | N138: -1000 | O138: 0 | Q138: 0 | R138: -1000 | S138: 0
M139: 0 | N139: -1000 | O139: 0 | Q139: 0 | R139: -1000 | S139: 0
M140: 0 | N140: -1000 | O140: 0 | Q140: 0 | R140: -1000 | S140: 0
M141: 0 | N141: -1000 | O141: 0 | Q141: 0 | R141: -1000 | S141: 0
M142: 0 | N142: -1000 | O142: 0 | Q142: 0 | R142: -1000 | S142: 0
M143: 0 | N143: -1000 | O143: 0 | Q143: 0 | R143: -1000 | S143: 0
M144: 0 | N144: -1000 | O144: 0 | Q144: 0 | R144: -1000 | S144: 0
M145: 0 | N145: -1000 | O145: 0 | Q145: 0 | R145: -1000 | S145: 0
M146: 0 | N146: -1000 | O146: 0 | Q146: 0 | R146: -1000 | S146: 0
M147: 0 | N147: -1000 | O147: 0 | Q147: 0 | R147: -1000 | S147: 0
M148: 0 | N148: -1000 | O148: 0 | Q148: 0 | R148: -1000 | S148: 0
M149: 0 | N149: -1000 | O149: 0 | Q149: 0 | R149: -1000 | S149: 0

Sheet WDMOpen
A1: DSKD 69. Deutsche Meisterschaft und 19. Europameisterschaft 2017 Mettingen ESKD
A2: DM - Wertungsläufe in der DSKD-Open - Klasse
A3: 4 Endlauf-Teilnehmer
G4: 0 | H4: 1 | I4: 1 | J4: 1 | K4: 1 | L4: 0 | M4: 1
A5: Bestzeit je Lauf | G5: =MIN(G9:G202) -> 37.15 | H5: 36.59 | I5: 36.32 | J5: 36 | K5: 35.97 | L5: 0 | M5: 0
A7: Start Nummer | B7: Gruppe | C7: startet | D7: Name | E7: Vorname | F7: Verein | G7: Lauf 1 | H7: Lauf 2 | I7: Lauf 3 | J7: Lauf 4 | K7: Lauf 5 | L7: Lauf 6 | M7: Summe | O7: Platz
A9: 507 | B9: Open | D9: Hollweck | E9: Laura | F9: MSVg Gerolzhofen | G9: 39.66 | H9: 39.27 | I9: 39.35 | J9: 38.91 | K9: 39.36 | M9: =IF($G$4=1, IF(H9>1,(ABS(G9-H9)),0)+ IF(I9>1,(ABS(G9-I9)),0)+ IF(J9>1,(ABS(G9-J9)),0)+ IF(K9>1,(ABS(G9-K9)),0)+ IF(L9>1,(ABS(G9-L9)),0), IF(I9>1,(ABS(H9-I9)),0)+ IF(J9>1,(ABS(H9-J9)),0)+ IF(K9>1,(ABS(H9-K9)),0) ) -> 0.53 | N9: =IF(M9>0,M9*-1,-1000) -> -0.53 | O9: =IF(M9>0,RANK(N9,N:N),0) -> 1
A10: 510 | B10: Open | D10: Ricker | E10: Andreas | F10: Berkel Raser Billerbeck | G10: 41.57 | H10: 41.01 | I10: 40.45 | J10: 40.88 | K10: 40.78 | M10: 0.92 | N10: -0.92 | O10: 2
A11: 505 | B11: Open | D11: Ohla | E11: Thorben | F11: SKK Moselflitzer Klüsserath | G11: 37.5 | H11: 37.46 | I11: 37.34 | J11: 36.94 | K11: 36.99 | M11: 1.11 | N11: -1.11 | O11: 3
A12: 512 | B12: Open | D12: Schmidt | E12: Michael | F12: Friesenflitzer Varel | G12: 37.86 | H12: 37.64 | I12: 37.16 | J12: 37.31 | K12: 37.26 | M12: 1.19 | N12: -1.19 | O12: 4
A13: 515 | B13: Open | D13: Crook | E13: Florian | F13: Jugendclub Mettinger SK-Derby | G13: 38.42 | H13: 38.16 | I13: 37.89 | J13: 37.67 | K13: 37.64 | M13: 1.28 | N13: -1.28 | O13: 5
A14: 501 | B14: Open | D14: Feinauer | E14: Louis | F14: SV Losaurach | G14: 38.64 | H14: 38.82 | I14: 38.73 | J14: 38.02 | K14: 38.38 | M14: 1.33 | N14: -1.33 | O14: 6
A15: 504 | B15: Open | D15: Wetter | E15: Sabrina | F15: Berkel Raser Billerbeck | G15: 37.74 | H15: 37.95 | I15: 37.65 | J15: 37.37 | K15: 37.36 | M15: 1.47 | N15: -1.47 | O15: 7
A16: 508 | B16: Open | D16: Schleuß | E16: Susan | F16: SK-Verband Baden-Württemberg | G16: 37.15 | H16: 36.59 | I16: 36.32 | J16: 36 | K16: 35.97 | M16: 1.48 | N16: -1.48 | O16: 8
A17: 509 | B17: Open | D17: Klimpel | E17: Corinna | F17: Power Crew Berlin | G17: 38.21 | H17: 37.82 | I17: 37.22 | J17: 37.22 | K17: 37.2 | M17: 1.82 | N17: -1.82 | O17: 9
A18: 502 | B18: Open | D18: Pahlings | E18: Anna | F18: ConAction Köln | G18: 39.57 | H18: 39.62 | I18: 39.57 | J18: 38.84 | K18: 38.62 | M18: 1.83 | N18: -1.83 | O18: 10
A19: 503 | B19: Open | D19: Pahlings | E19: Kai | F19: ConAction Köln | G19: 39.41 | H19: 39.96 | I19: 39.9 | J19: 39.09 | K19: 39.04 | M19: 1.85 | N19: -1.85 | O19: 11
A20: 506 | B20: Open | D20: Pahlings | E20: Iris | F20: ConAction Köln | G20: 40.17 | H20: 40.32 | I20: 39.76 | J20: 38.82 | K20: 38.72 | M20: 3.66 | N20: -3.66 | O20: 12
A21: 513 | B21: Open | D21: Gerigk-Lorenz | E21: Frank | F21: Flotte Kisten Overath | M21: 0 | N21: -1000 | O21: 0
A22: 514 | B22: Open | D22: Gaidosch | E22: Udo | F22: Flotte Kisten Overath | M22: 0 | N22: -1000 | O22: 0
A23: 511 | B23: Open | D23: Schneider | E23: Gabriele | F23: Joker-Team Berlin | G23: 47.9 | H23: 47.12 | I23: 45.36 | J23: 44.88 | K23: 45.27 | M23: 5.85 | N23: -5.85 | O23: 13
A24: 516 | M24: 0 | N24: -1000 | O24: 0
A25: 517 | M25: 0 | N25: -1000 | O25: 0
A26: 518 | M26: 0 | N26: -1000 | O26: 0
M27: 0 | N27: -1000 | O27: 0
M28: 0 | N28: -1000 | O28: 0
M29: 0 | N29: -1000 | O29: 0
M30: 0 | N30: -1000 | O30: 0
M31: 0 | N31: -1000 | O31: 0
M32: 0 | N32: -1000 | O32: 0
M33: 0 | N33: -1000 | O33: 0
M34: 0 | N34: -1000 | O34: 0
M35: 0 | N35: -1000 | O35: 0
M36: 0 | N36: -1000 | O36: 0
M37: 0 | N37: -1000 | O37: 0
M38: 0 | N38: -1000 | O38: 0
M39: 0 | N39: -1000 | O39: 0
M40: 0 | N40: -1000 | O40: 0
M41: 0 | N41: -1000 | O41: 0
M42: 0 | N42: -1000 | O42: 0
M43: 0 | N43: -1000 | O43: 0
M44: 0 | N44: -1000 | O44: 0
M45: 0 | N45: -1000 | O45: 0
M46: 0 | N46: -1000 | O46: 0
M47: 0 | N47: -1000 | O47: 0
M48: 0 | N48: -1000 | O48: 0
M49: 0 | N49: -1000 | O49: 0
M50: 0 | N50: -1000 | O50: 0
M51: 0 | N51: -1000 | O51: 0
M52: 0 | N52: -1000 | O52: 0
M53: 0 | N53: -1000 | O53: 0
M54: 0 | N54: -1000 | O54: 0
M55: 0 | N55: -1000 | O55: 0
M56: 0 | N56: -1000 | O56: 0
M57: 0 | N57: -1000 | O57: 0
M58: 0 | N58: -1000 | O58: 0
M59: 0 | N59: -1000 | O59: 0
M60: 0 | N60: -1000 | O60: 0
M61: 0 | N61: -1000 | O61: 0
M62: 0 | N62: -1000 | O62: 0
M63: 0 | N63: -1000 | O63: 0
M64: 0 | N64: -1000 | O64: 0
M65: 0 | N65: -1000 | O65: 0
M66: 0 | N66: -1000 | O66: 0
M67: 0 | N67: -1000 | O67: 0
M68: 0 | N68: -1000 | O68: 0
M69: 0 | N69: -1000 | O69: 0
M70: 0 | N70: -1000 | O70: 0
M71: 0 | N71: -1000 | O71: 0
M72: 0 | N72: -1000 | O72: 0
M73: =IF($G$4=1, IF(H73>1,(ABS(G73-H73)),0)+ IF(I73>1,(ABS(G73-I73)),0)+ IF(J73>1,(ABS(G73-J73)),0)+ IF(K73>1,(ABS(G73-K73)),0)+ IF(L73>1,(ABS(G73-L73)),0), IF(I73>1,(ABS(H73-I73)),0)+ IF(J73>1,(ABS(H73-J73)),0)+ IF(K73>1,(ABS(H73-K73)),0) ) -> 0 | N73: =IF(M73>0,M73*-1,-1000) -> -1000 | O73: =IF(M73>0,RANK(N73,N:N),0) -> 0
M74: 0 | N74: -1000 | O74: 0
M75: 0 | N75: -1000 | O75: 0
M76: 0 | N76: -1000 | O76: 0
M77: 0 | N77: -1000 | O77: 0
M78: 0 | N78: -1000 | O78: 0
M79: 0 | N79: -1000 | O79: 0
M80: 0 | N80: -1000 | O80: 0
M81: 0 | N81: -1000 | O81: 0
M82: 0 | N82: -1000 | O82: 0
M83: 0 | N83: -1000 | O83: 0
M84: 0 | N84: -1000 | O84: 0
M85: 0 | N85: -1000 | O85: 0
M86: 0 | N86: -1000 | O86: 0
M87: 0 | N87: -1000 | O87: 0
M88: 0 | N88: -1000 | O88: 0
M89: 0 | N89: -1000 | O89: 0
M90: 0 | N90: -1000 | O90: 0
M91: 0 | N91: -1000 | O91: 0
M92: 0 | N92: -1000 | O92: 0
M93: 0 | N93: -1000 | O93: 0
M94: 0 | N94: -1000 | O94: 0
M95: 0 | N95: -1000 | O95: 0
M96: 0 | N96: -1000 | O96: 0
M97: 0 | N97: -1000 | O97: 0
M98: 0 | N98: -1000 | O98: 0
M99: 0 | N99: -1000 | O99: 0
M100: 0 | N100: -1000 | O100: 0
M101: 0 | N101: -1000 | O101: 0
M102: 0 | N102: -1000 | O102: 0
M103: 0 | N103: -1000 | O103: 0
M104: 0 | N104: -1000 | O104: 0
M105: 0 | N105: -1000 | O105: 0
M106: 0 | N106: -1000 | O106: 0
M107: 0 | N107: -1000 | O107: 0
M108: 0 | N108: -1000 | O108: 0
M109: 0 | N109: -1000 | O109: 0
M110: 0 | N110: -1000 | O110: 0
M111: 0 | N111: -1000 | O111: 0
M112: 0 | N112: -1000 | O112: 0
M113: 0 | N113: -1000 | O113: 0
M114: 0 | N114: -1000 | O114: 0
M115: 0 | N115: -1000 | O115: 0
M116: 0 | N116: -1000 | O116: 0
M117: 0 | N117: -1000 | O117: 0
M118: 0 | N118: -1000 | O118: 0
M119: 0 | N119: -1000 | O119: 0
M120: 0 | N120: -1000 | O120: 0
M121: 0 | N121: -1000 | O121: 0
M122: 0 | N122: -1000 | O122: 0
M123: 0 | N123: -1000 | O123: 0
M124: 0 | N124: -1000 | O124: 0
M125: 0 | N125: -1000 | O125: 0
M126: 0 | N126: -1000 | O126: 0
M127: 0 | N127: -1000 | O127: 0
M128: 0 | N128: -1000 | O128: 0
M129: 0 | N129: -1000 | O129: 0
M130: 0 | N130: -1000 | O130: 0
M131: 0 | N131: -1000 | O131: 0
M132: 0 | N132: -1000 | O132: 0
M133: 0 | N133: -1000 | O133: 0
M134: 0 | N134: -1000 | O134: 0
M135: 0 | N135: -1000 | O135: 0
M136: 0 | N136: -1000 | O136: 0
M137: =IF($G$4=1, IF(H137>1,(ABS(G137-H137)),0)+ IF(I137>1,(ABS(G137-I137)),0)+ IF(J137>1,(ABS(G137-J137)),0)+ IF(K137>1,(ABS(G137-K137)),0)+ IF(L137>1,(ABS(G137-L137)),0), IF(I137>1,(ABS(H137-I137)),0)+ IF(J137>1,(ABS(H137-J137)),0)+ IF(K137>1,(ABS(H137-K137)),0) ) -> 0 | N137: =IF(M137>0,M137*-1,-1000) -> -1000 | O137: =IF(M137>0,RANK(N137,N:N),0) -> 0
M138: 0 | N138: -1000 | O138: 0
M139: 0 | N139: -1000 | O139: 0
M140: 0 | N140: -1000 | O140: 0
M141: 0 | N141: -1000 | O141: 0
M142: 0 | N142: -1000 | O142: 0
M143: 0 | N143: -1000 | O143: 0
M144: 0 | N144: -1000 | O144: 0
M145: 0 | N145: -1000 | O145: 0
M146: 0 | N146: -1000 | O146: 0
M147: 0 | N147: -1000 | O147: 0
M148: 0 | N148: -1000 | O148: 0
M149: 0 | N149: -1000 | O149: 0
M150: 0 | N150: -1000 | O150: 0
M151: 0 | N151: -1000 | O151: 0
M152: 0 | N152: -1000 | O152: 0
M153: 0 | N153: -1000 | O153: 0
M154: 0 | N154: -1000 | O154: 0
M155: 0 | N155: -1000 | O155: 0
M156: 0 | N156: -1000 | O156: 0
M157: 0 | N157: -1000 | O157: 0
M158: 0 | N158: -1000 | O158: 0
M159: 0 | N159: -1000 | O159: 0
M160: 0 | N160: -1000 | O160: 0
M161: 0 | N161: -1000 | O161: 0
M162: 0 | N162: -1000 | O162: 0
M163: 0 | N163: -1000 | O163: 0
M164: 0 | N164: -1000 | O164: 0
M165: 0 | N165: -1000 | O165: 0
M166: 0 | N166: -1000 | O166: 0
M167: 0 | N167: -1000 | O167: 0
M168: 0 | N168: -1000 | O168: 0
M169: 0 | N169: -1000 | O169: 0
M170: 0 | N170: -1000 | O170: 0
M171: 0 | N171: -1000 | O171: 0
M172: 0 | N172: -1000 | O172: 0
M173: 0 | N173: -1000 | O173: 0
M174: 0 | N174: -1000 | O174: 0
M175: 0 | N175: -1000 | O175: 0
M176: 0 | N176: -1000 | O176: 0
M177: 0 | N177: -1000 | O177: 0
M178: 0 | N178: -1000 | O178: 0
M179: 0 | N179: -1000 | O179: 0
M180: 0 | N180: -1000 | O180: 0
M181: 0 | N181: -1000 | O181: 0
M182: 0 | N182: -1000 | O182: 0
M183: 0 | N183: -1000 | O183: 0
M184: 0 | N184: -1000 | O184: 0
M185: 0 | N185: -1000 | O185: 0
M186: 0 | N186: -1000 | O186: 0
M187: 0 | N187: -1000 | O187: 0
M188: 0 | N188: -1000 | O188: 0
M189: 0 | N189: -1000 | O189: 0
M190: 0 | N190: -1000 | O190: 0
M191: 0 | N191: -1000 | O191: 0
M192: 0 | N192: -1000 | O192: 0
M193: 0 | N193: -1000 | O193: 0
M194: 0 | N194: -1000 | O194: 0
M195: 0 | N195: -1000 | O195: 0
M196: 0 | N196: -1000 | O196: 0
M197: 0 | N197: -1000 | O197: 0
M198: 0 | N198: -1000 | O198: 0
M199: 0 | N199: -1000 | O199: 0
M200: 0 | N200: -1000 | O200: 0
M201: =IF($G$4=1, IF(H201>1,(ABS(G201-H201)),0)+ IF(I201>1,(ABS(G201-I201)),0)+ IF(J201>1,(ABS(G201-J201)),0)+ IF(K201>1,(ABS(G201-K201)),0)+ IF(L201>1,(ABS(G201-L201)),0), IF(I201>1,(ABS(H201-I201)),0)+ IF(J201>1,(ABS(H201-J201)),0)+ IF(K201>1,(ABS(H201-K201)),0) ) -> 0 | N201: =IF(M201>0,M201*-1,-1000) -> -1000 | O201: =IF(M201>0,RANK(N201,N:N),0) -> 0
M202: 0 | N202: -1000 | O202: 0

Sheet EDM-JUN
A1: DSKD 69. Deutsche Meisterschaft und 19. Europameisterschaft 2017 Mettingen ESKD
A2: DM - Endläufe in der JUNIOR - Klasse
S3: Bestzeit
A4: Wird der Lauf gewertet? dann 0 oder 1 eintragen | G4: 1 | H4: 1 | I4: 1 | J4: 1 | K4: 1 | L4: 1 | S4: in Vorläufen
E5: Bestzeit je Lauf | G5: =MIN(G9:G149) -> 37.99 | H5: 38.12 | I5: 37.99 | J5: 38.26 | K5: 0 | L5: 0 | S5: =MIN((IF(G4=1,G5,99)), (IF(H4=1,H5,99)), (IF(I4=1,I5,99)), (IF(J4=1,J5,99)), (IF(K4=1,K5,99)), (IF(L4=1,L5,99)) ) -> 0
E6: Mittelwert je Lauf | G6: =IF(G5>0,AVERAGE(G9:G149),0) -> 38.382 | H6: 38.303 | I6: 38.427 | J6: 38.523 | K6: 0 | L6: 0
A7: Start Nummer | B7: Gruppe | C7: startet | D7: Name | E7: Vorname | F7: Verein | G7: Lauf 1 | H7: Lauf 2 | I7: Lauf 3 | J7: Lauf 4 | K7: Lauf 5 | L7: Lauf 6 | M7: Summe der gewerteten Läufe | O7: Platz | Q7: Mittelwert | S7: Platz
A9: 124 | B9: JUN | D9: Meyhoff | E9: Moritz | F9: Jugendclub Mettinger SK-Derby | G9: 37.99 | H9: 38.12 | I9: 37.99 | J9: 38.26 | M9: =(G9*$G$4+H9*$H$4+I9*$I$4+J9*$J$4+K9*$K$4+L9*$L$4) -> 152.36 | N9: =IF(M9>0,M9*-1,-1000) -> -152.36 | O9: =IF(M9>0,RANK(N9,N:N),0) -> 1 | Q9: =IF((G9*$G$4+H9*$H$4+I9*$I$4+J9*$J$4+K9*$K$4+L9*$L$4)>0,(G9*$G$4+H9*$H$4+I9*$I$4+J9*$J$4+K9*$K$4+L9*$L$4)/(IF(G9>0,1*$G$4,0)+IF(H9>0,1*$H$4,0)+IF(I9>0,1*$I$4,0)+IF(J9>0,1*$J$4,0)+IF(K9>0,1*$K$4,0)+IF(L9>0,1*$L$4,0)),0) -> 38.09 | R9: =IF(Q9>0,Q9*-1,-1000) -> -38.09 | S9: =IF(Q9>0,RANK(R9,R:R),0) -> 1
A10: 121 | B10: JUN | D10: Plath | E10: Marvin | F10: Jugendclub Mettinger SK-Derby | G10: 38.45 | H10: 38.23 | I10: 38.33 | J10: 38.29 | M10: 153.3 | N10: -153.3 | O10: 2 | Q10: 38.325 | R10: -38.325 | S10: 2
A11: 113 | B11: JUN | D11: Paschedag | E11: Mia | F11: Seifenkistengruppe Stromberg | G11: 38.28 | H11: 38.23 | I11: 38.37 | J11: 38.43 | M11: 153.31 | N11: -153.31 | O11: 3 | Q11: 38.3275 | R11: -38.3275 | S11: 3
A12: 106 | B12: JUN | D12: Klimpel | E12: Beatrice | F12: Power Crew Berlin | G12: 38.47 | H12: 38.16 | I12: 38.46 | J12: 38.4 | M12: 153.49 | N12: -153.49 | O12: 4 | Q12: 38.3725 | R12: -38.3725 | S12: 4
A13: 104 | B13: JUN | D13: Freudenstein | E13: Romy | F13: Jugendclub Mettinger SK-Derby | G13: 38.44 | H13: 38.28 | I13: 38.43 | J13: 38.59 | M13: 153.74 | N13: -153.74 | O13: 5 | Q13: 38.435 | R13: -38.435 | S13: 5
A14: 120 | B14: JUN | D14: Reinstein | E14: Carlos | F14: MSVg Gerolzhofen | G14: 38.53 | H14: 38.36 | I14: 38.46 | J14: 38.45 | M14: 153.8 | N14: -153.8 | O14: 6 | Q14: 38.45 | R14: -38.45 | S14: 6
A15: 114 | B15: JUN | D15: Lampe | E15: Ida | F15: Jugendclub Mettinger SK-Derby | G15: 38.48 | H15: 38.37 | I15: 38.44 | J15: 38.57 | M15: 153.86 | N15: -153.86 | O15: 7 | Q15: 38.465 | R15: -38.465 | S15: 7
A16: 127 | B16: JUN | D16: Schleuß | E16: Melina | F16: Power Crew Berlin | G16: 38.32 | H16: 38.28 | I16: 38.64 | J16: 38.66 | M16: 153.9 | N16: -153.9 | O16: 8 | Q16: 38.475 | R16: -38.475 | S16: 8
A17: 112 | B17: JUN | D17: Klein | E17: Mika | F17: SKK Moselflitzer Klüsserath | G17: 38.44 | H17: 38.41 | I17: 38.46 | J17: 38.59 | M17: 153.9 | N17: -153.9 | O17: 9 | Q17: 38.475 | R17: -38.475 | S17: 9
A18: 111 | B18: JUN | D18: Bednarski | E18: Maximilian | F18: Jugendclub Mettinger SK-Derby | G18: 38.42 | H18: 38.59 | I18: 38.69 | J18: 38.99 | M18: 154.69 | N18: -154.69 | O18: 10 | Q18: 38.6725 | R18: -38.6725 | S18: 10
M19: 0 | N19: -1000 | O19: 0 | Q19: 0 | R19: -1000 | S19: 0
M20: 0 | N20: -1000 | O20: 0 | Q20: 0 | R20: -1000 | S20: 0
M21: 0 | N21: -1000 | O21: 0 | Q21: 0 | R21: -1000 | S21: 0
M22: 0 | N22: -1000 | O22: 0 | Q22: 0 | R22: -1000 | S22: 0
M23: 0 | N23: -1000 | O23: 0 | Q23: 0 | R23: -1000 | S23: 0
M24: 0 | N24: -1000 | O24: 0 | Q24: 0 | R24: -1000 | S24: 0
M25: 0 | N25: =IF(M25>0,M25*-1,-1000) -> -1000 | O25: 0 | Q25: 0 | R25: -1000 | S25: 0
M26: 0 | N26: =IF(M26>0,M26*-1,-1000) -> -1000 | O26: 0 | Q26: 0 | R26: -1000 | S26: 0
M27: 0 | N27: =IF(M27>0,M27*-1,-1000) -> -1000 | O27: 0 | Q27: 0 | R27: -1000 | S27: 0
M28: 0 | N28: -1000 | O28: 0 | Q28: 0 | R28: -1000 | S28: 0
M29: 0 | N29: -1000 | O29: 0 | Q29: 0 | R29: -1000 | S29: 0
M30: 0 | N30: -1000 | O30: 0 | Q30: 0 | R30: -1000 | S30: 0
M31: 0 | N31: -1000 | O31: 0 | Q31: 0 | R31: -1000 | S31: 0
M32: 0 | N32: -1000 | O32: 0 | Q32: 0 | R32: -1000 | S32: 0
M33: 0 | N33: -1000 | O33: 0 | Q33: 0 | R33: -1000 | S33: 0
M34: 0 | N34: -1000 | O34: 0 | Q34: 0 | R34: -1000 | S34: 0
M35: 0 | N35: -1000 | O35: 0 | Q35: 0 | R35: -1000 | S35: 0
M36: 0 | N36: =IF(M36>0,M36*-1,-1000) -> -1000 | O36: 0 | Q36: 0 | R36: -1000 | S36: 0
M37: 0 | N37: =IF(M37>0,M37*-1,-1000) -> -1000 | O37: 0 | Q37: 0 | R37: -1000 | S37: 0
M38: 0 | N38: =IF(M38>0,M38*-1,-1000) -> -1000 | O38: 0 | Q38: 0 | R38: -1000 | S38: 0
M39: 0 | N39: =IF(M39>0,M39*-1,-1000) -> -1000 | O39: 0 | Q39: 0 | R39: -1000 | S39: 0
M40: 0 | N40: =IF(M40>0,M40*-1,-1000) -> -1000 | O40: 0 | Q40: 0 | R40: -1000 | S40: 0
M41: 0 | N41: -1000 | O41: 0 | Q41: 0 | R41: -1000 | S41: 0
M42: 0 | N42: =IF(M42>0,M42*-1,-1000) -> -1000 | O42: 0 | Q42: 0 | R42: -1000 | S42: 0
M43: 0 | N43: =IF(M43>0,M43*-1,-1000) -> -1000 | O43: 0 | Q43: 0 | R43: -1000 | S43: 0
M44: 0 | N44: -1000 | O44: 0 | Q44: 0 | R44: -1000 | S44: 0
M45: 0 | N45: -1000 | O45: 0 | Q45: 0 | R45: -1000 | S45: 0
M46: 0 | N46: -1000 | O46: 0 | Q46: 0 | R46: -1000 | S46: 0
M47: 0 | N47: -1000 | O47: 0 | Q47: 0 | R47: -1000 | S47: 0
M48: 0 | N48: -1000 | O48: 0 | Q48: 0 | R48: -1000 | S48: 0
M49: 0 | N49: -1000 | O49: 0 | Q49: 0 | R49: -1000 | S49: 0
M50: 0 | N50: -1000 | O50: 0 | Q50: 0 | R50: -1000 | S50: 0
M51: 0 | N51: -1000 | O51: 0 | Q51: 0 | R51: -1000 | S51: 0
M52: 0 | N52: -1000 | O52: 0 | Q52: 0 | R52: -1000 | S52: 0
M53: 0 | N53: -1000 | O53: 0 | Q53: 0 | R53: -1000 | S53: 0
M54: 0 | N54: -1000 | O54: 0 | Q54: 0 | R54: -1000 | S54: 0
M55: 0 | N55: -1000 | O55: 0 | Q55: 0 | R55: -1000 | S55: 0
M56: 0 | N56: -1000 | O56: 0 | Q56: 0 | R56: -1000 | S56: 0
M57: 0 | N57: -1000 | O57: 0 | Q57: 0 | R57: -1000 | S57: 0
M58: 0 | N58: -1000 | O58: 0 | Q58: 0 | R58: -1000 | S58: 0
M59: 0 | N59: -1000 | O59: 0 | Q59: 0 | R59: -1000 | S59: 0
M60: 0 | N60: -1000 | O60: 0 | Q60: 0 | R60: -1000 | S60: 0
M61: 0 | N61: -1000 | O61: 0 | Q61: 0 | R61: -1000 | S61: 0
M62: 0 | N62: -1000 | O62: 0 | Q62: 0 | R62: -1000 | S62: 0
M63: 0 | N63: -1000 | O63: 0 | Q63: 0 | R63: -1000 | S63: 0
M64: 0 | N64: -1000 | O64: 0 | Q64: 0 | R64: -1000 | S64: 0
M65: 0 | N65: -1000 | O65: 0 | Q65: 0 | R65: -1000 | S65: 0
M66: 0 | N66: -1000 | O66: 0 | Q66: 0 | R66: -1000 | S66: 0
M67: 0 | N67: -1000 | O67: 0 | Q67: 0 | R67: -1000 | S67: 0
M68: 0 | N68: -1000 | O68: 0 | Q68: 0 | R68: -1000 | S68: 0
M69: 0 | N69: -1000 | O69: 0 | Q69: 0 | R69: -1000 | S69: 0
M70: 0 | N70: -1000 | O70: 0 | Q70: 0 | R70: -1000 | S70: 0
M71: 0 | N71: =IF(M71>0,M71*-1,-1000) -> -1000 | O71: 0 | Q71: 0 | R71: -1000 | S71: 0
M72: 0 | N72: =IF(M72>0,M72*-1,-1000) -> -1000 | O72: 0 | Q72: 0 | R72: -1000 | S72: 0
M73: =(G73*$G$4+H73*$H$4+I73*$I$4+J73*$J$4+K73*$K$4+L73*$L$4) -> 0 | N73: =IF(M73>0,M73*-1,-1000) -> -1000 | O73: =IF(M73>0,RANK(N73,N:N),0) -> 0 | Q73: =IF((G73*$G$4+H73*$H$4+I73*$I$4+J73*$J$4+K73*$K$4+L73*$L$4)>0,(G73*$G$4+H73*$H$4+I73*$I$4+J73*$J$4+K73*$K$4+L73*$L$4)/(IF(G73>0,1*$G$4,0)+IF(H73>0,1*$H$4,0)+IF(I73>0,1*$I$4,0)+IF(J73>0,1*$J$4,0)+IF(K73>0,1*$K$4,0)+IF(L73>0,1*$L$4,0)),0) -> 0 | R73: =IF(Q73>0,Q73*-1,-1000) -> -1000 | S73: =IF(Q73>0,RANK(R73,R:R),0) -> 0
M74: 0 | N74: =IF(M74>0,M74*-1,-1000) -> -1000 | O74: 0 | Q74: 0 | R74: -1000 | S74: 0
M75: 0 | N75: =IF(M75>0,M75*-1,-1000) -> -1000 | O75: 0 | Q75: 0 | R75: -1000 | S75: 0
M76: 0 | N76: =IF(M76>0,M76*-1,-1000) -> -1000 | O76: 0 | Q76: 0 | R76: -1000 | S76: 0
M77: 0 | N77: =IF(M77>0,M77*-1,-1000) -> -1000 | O77: 0 | Q77: 0 | R77: -1000 | S77: 0
M78: 0 | N78: -1000 | O78: 0 | Q78: 0 | R78: -1000 | S78: 0
M79: 0 | N79: -1000 | O79: 0 | Q79: 0 | R79: -1000 | S79: 0
M80: 0 | N80: =IF(M80>0,M80*-1,-1000) -> -1000 | O80: 0 | Q80: 0 | R80: -1000 | S80: 0
M81: 0 | N81: =IF(M81>0,M81*-1,-1000) -> -1000 | O81: 0 | Q81: 0 | R81: -1000 | S81: 0
M82: 0 | N82: =IF(M82>0,M82*-1,-1000) -> -1000 | O82: 0 | Q82: 0 | R82: -1000 | S82: 0
M83: 0 | N83: -1000 | O83: 0 | Q83: 0 | R83: -1000 | S83: 0
M84: 0 | N84: -1000 | O84: 0 | Q84: 0 | R84: -1000 | S84: 0
M85: 0 | N85: -1000 | O85: 0 | Q85: 0 | R85: -1000 | S85: 0
M86: 0 | N86: -1000 | O86: 0 | Q86: 0 | R86: -1000 | S86: 0
M87: 0 | N87: -1000 | O87: 0 | Q87: 0 | R87: -1000 | S87: 0
M88: 0 | N88: -1000 | O88: 0 | Q88: 0 | R88: -1000 | S88: 0
M89: 0 | N89: -1000 | O89: 0 | Q89: 0 | R89: -1000 | S89: 0
M90: 0 | N90: =IF(M90>0,M90*-1,-1000) -> -1000 | O90: 0 | Q90: 0 | R90: -1000 | S90: 0
M91: 0 | N91: -1000 | O91: 0 | Q91: 0 | R91: -1000 | S91: 0
M92: 0 | N92: -1000 | O92: 0 | Q92: 0 | R92: -1000 | S92: 0
M93: 0 | N93: -1000 | O93: 0 | Q93: 0 | R93: -1000 | S93: 0
M94: 0 | N94: -1000 | O94: 0 | Q94: 0 | R94: -1000 | S94: 0
M95: 0 | N95: =IF(M95>0,M95*-1,-1000) -> -1000 | O95: 0 | Q95: 0 | R95: -1000 | S95: 0
M96: 0 | N96: -1000 | O96: 0 | Q96: 0 | R96: -1000 | S96: 0
M97: 0 | N97: -1000 | O97: 0 | Q97: 0 | R97: -1000 | S97: 0
M98: 0 | N98: -1000 | O98: 0 | Q98: 0 | R98: -1000 | S98: 0
M99: 0 | N99: -1000 | O99: 0 | Q99: 0 | R99: -1000 | S99: 0
M100: 0 | N100: -1000 | O100: 0 | Q100: 0 | R100: -1000 | S100: 0
M101: 0 | N101: -1000 | O101: 0 | Q101: 0 | R101: -1000 | S101: 0
M102: 0 | N102: -1000 | O102: 0 | Q102: 0 | R102: -1000 | S102: 0
M103: 0 | N103: -1000 | O103: 0 | Q103: 0 | R103: -1000 | S103: 0
M104: 0 | N104: -1000 | O104: 0 | Q104: 0 | R104: -1000 | S104: 0
M105: 0 | N105: -1000 | O105: 0 | Q105: 0 | R105: -1000 | S105: 0
M106: 0 | N106: -1000 | O106: 0 | Q106: 0 | R106: -1000 | S106: 0
M107: 0 | N107: -1000 | O107: 0 | Q107: 0 | R107: -1000 | S107: 0
M108: 0 | N108: -1000 | O108: 0 | Q108: 0 | R108: -1000 | S108: 0
M109: 0 | N109: -1000 | O109: 0 | Q109: 0 | R109: -1000 | S109: 0
M110: 0 | N110: -1000 | O110: 0 | Q110: 0 | R110: -1000 | S110: 0
M111: 0 | N111: -1000 | O111: 0 | Q111: 0 | R111: -1000 | S111: 0
M112: 0 | N112: -1000 | O112: 0 | Q112: 0 | R112: -1000 | S112: 0
M113: 0 | N113: -1000 | O113: 0 | Q113: 0 | R113: -1000 | S113: 0
M114: 0 | N114: -1000 | O114: 0 | Q114: 0 | R114: -1000 | S114: 0
M115: 0 | N115: -1000 | O115: 0 | Q115: 0 | R115: -1000 | S115: 0
M116: 0 | N116: -1000 | O116: 0 | Q116: 0 | R116: -1000 | S116: 0
M117: 0 | N117: -1000 | O117: 0 | Q117: 0 | R117: -1000 | S117: 0
M118: 0 | N118: -1000 | O118: 0 | Q118: 0 | R118: -1000 | S118: 0
M119: 0 | N119: -1000 | O119: 0 | Q119: 0 | R119: -1000 | S119: 0
M120: 0 | N120: -1000 | O120: 0 | Q120: 0 | R120: -1000 | S120: 0
M121: 0 | N121: -1000 | O121: 0 | Q121: 0 | R121: -1000 | S121: 0
M122: 0 | N122: -1000 | O122: 0 | Q122: 0 | R122: -1000 | S122: 0
M123: 0 | N123: -1000 | O123: 0 | Q123: 0 | R123: -1000 | S123: 0
M124: 0 | N124: -1000 | O124: 0 | Q124: 0 | R124: -1000 | S124: 0
M125: 0 | N125: -1000 | O125: 0 | Q125: 0 | R125: -1000 | S125: 0
M126: 0 | N126: -1000 | O126: 0 | Q126: 0 | R126: -1000 | S126: 0
M127: 0 | N127: -1000 | O127: 0 | Q127: 0 | R127: -1000 | S127: 0
M128: 0 | N128: -1000 | O128: 0 | Q128: 0 | R128: -1000 | S128: 0
M129: 0 | N129: -1000 | O129: 0 | Q129: 0 | R129: -1000 | S129: 0
M130: 0 | N130: -1000 | O130: 0 | Q130: 0 | R130: -1000 | S130: 0
M131: 0 | N131: -1000 | O131: 0 | Q131: 0 | R131: -1000 | S131: 0
M132: 0 | N132: -1000 | O132: 0 | Q132: 0 | R132: -1000 | S132: 0
M133: 0 | N133: -1000 | O133: 0 | Q133: 0 | R133: -1000 | S133: 0
M134: 0 | N134: -1000 | O134: 0 | Q134: 0 | R134: -1000 | S134: 0
M135: 0 | N135: -1000 | O135: 0 | Q135: 0 | R135: -1000 | S135: 0
M136: 0 | N136: -1000 | O136: 0 | Q136: 0 | R136: -1000 | S136: 0
M137: =(G137*$G$4+H137*$H$4+I137*$I$4+J137*$J$4+K137*$K$4+L137*$L$4) -> 0 | N137: -1000 | O137: =IF(M137>0,RANK(N137,N:N),0) -> 0 | Q137: =IF((G137*$G$4+H137*$H$4+I137*$I$4+J137*$J$4+K137*$K$4+L137*$L$4)>0,(G137*$G$4+H137*$H$4+I137*$I$4+J137*$J$4+K137*$K$4+L137*$L$4)/(IF(G137>0,1*$G$4,0)+IF(H137>0,1*$H$4,0)+IF(I137>0,1*$I$4,0)+IF(J137>0,1*$J$4,0)+IF(K137>0,1*$K$4,0)+IF(L137>0,1*$L$4,0)),0) -> 0 | R137: -1000 | S137: =IF(Q137>0,RANK(R137,R:R),0) -> 0
M138: 0 | N138: -1000 | O138: 0 | Q138: 0 | R138: -1000 | S138: 0
M139: 0 | N139: -1000 | O139: 0 | Q139: 0 | R139: -1000 | S139: 0
M140: 0 | N140: -1000 | O140: 0 | Q140: 0 | R140: -1000 | S140: 0
M141: 0 | N141: -1000 | O141: 0 | Q141: 0 | R141: -1000 | S141: 0
M142: 0 | N142: -1000 | O142: 0 | Q142: 0 | R142: -1000 | S142: 0
M143: 0 | N143: -1000 | O143: 0 | Q143: 0 | R143: -1000 | S143: 0
M144: 0 | N144: -1000 | O144: 0 | Q144: 0 | R144: -1000 | S144: 0
M145: 0 | N145: -1000 | O145: 0 | Q145: 0 | R145: -1000 | S145: 0
M146: 0 | N146: -1000 | O146: 0 | Q146: 0 | R146: -1000 | S146: 0
M147: 0 | N147: -1000 | O147: 0 | Q147: 0 | R147: -1000 | S147: 0
M148: 0 | N148: -1000 | O148: 0 | Q148: 0 | R148: -1000 | S148: 0
M149: 0 | N149: -1000 | O149: 0 | Q149: 0 | R149: -1000 | S149: 0

Sheet EDM-SEN
A1: DSKD 69. Deutsche Meisterschaft und 19. Europameisterschaft 2017 Mettingen ESKD
A2: DM - Endläufe in der SENIOR - Klasse
S3: Bestzeit
A4: Wird der Lauf gewertet? dann 0 oder 1 eintragen | G4: 1 | H4: 1 | I4: 1 | J4: 1 | K4: 1 | L4: 0 | S4: in Vorläufen
E5: Bestzeit je Lauf | G5: =MIN(G9:G149) -> 36.79 | H5: 36.85 | I5: 36.81 | J5: 36.63 | K5: 0 | L5: 0 | S5: =MIN((IF(G4=1,G5,99)), (IF(H4=1,H5,99)), (IF(I4=1,I5,99)), (IF(J4=1,J5,99)), (IF(K4=1,K5,99)), (IF(L4=1,L5,99)) ) -> 0
E6: Mittelwert je Lauf | G6: =IF(G5>0,AVERAGE(G9:G149),0) -> 36.941 | H6: 36.977 | I6: 36.937 | J6: 36.811 | K6: 0 | L6: 0
A7: Start Nummer | B7: Gruppe | C7: startet | D7: Name | E7: Vorname | F7: Verein | G7: Lauf 1 | H7: Lauf 2 | I7: Lauf 3 | J7: Lauf 4 | K7: Lauf 5 | L7: Lauf 6 | M7: Summe der gewerteten Läufe | O7: Platz | Q7: Mittelwert | S7: Platz
A9: 407 | B9: SEN | D9: Meyer | E9: Henry | F9: Jugendclub Mettinger SK-Derby | G9: 36.79 | H9: 36.85 | I9: 36.81 | J9: 36.68 | M9: =(G9*$G$4+H9*$H$4+I9*$I$4+J9*$J$4+K9*$K$4+L9*$L$4) -> 147.13 | N9: =IF(M9>0,M9*-1,-1000) -> -147.13 | O9: =IF(M9>0,RANK(N9,N:N),0) -> 1 | Q9: =IF((G9*$G$4+H9*$H$4+I9*$I$4+J9*$J$4+K9*$K$4+L9*$L$4)>0,(G9*$G$4+H9*$H$4+I9*$I$4+J9*$J$4+K9*$K$4+L9*$L$4)/(IF(G9>0,1*$G$4,0)+IF(H9>0,1*$H$4,0)+IF(I9>0,1*$I$4,0)+IF(J9>0,1*$J$4,0)+IF(K9>0,1*$K$4,0)+IF(L9>0,1*$L$4,0)),0) -> 36.7825 | R9: =IF(Q9>0,Q9*-1,-1000) -> -36.7825 | S9: =IF(Q9>0,RANK(R9,R:R),0) -> 1
A10: 415 | B10: SEN | D10: Freudenstein | E10: Rieke | F10: Jugendclub Mettinger SK-Derby | G10: 36.88 | H10: 36.88 | I10: 36.83 | J10: 36.89 | M10: 147.48 | N10: -147.48 | O10: 2 | Q10: 36.87 | R10: -36.87 | S10: 2
A11: 401 | B11: SEN | D11: Meyer | E11: Johann | F11: Jugendclub Mettinger SK-Derby | G11: 37 | H11: 36.93 | I11: 36.93 | J11: 36.63 | M11: 147.49 | N11: -147.49 | O11: 3 | Q11: 36.8725 | R11: -36.8725 | S11: 3
A12: 410 | B12: SEN | D12: Hoebertz | E12: Max Ole | F12: Power Crew Berlin | G12: 36.91 | H12: 36.9 | I12: 36.92 | J12: 36.87 | M12: 147.6 | N12: -147.6 | O12: 4 | Q12: 36.9 | R12: -36.9 | S12: 4
A13: 428 | B13: SEN | D13: Förster | E13: Maurice | F13: Eifeler-Seifenkistenfreunde Simmerath | G13: 36.82 | H13: 37.08 | I13: 36.95 | J13: 36.83 | M13: 147.68 | N13: -147.68 | O13: 5 | Q13: 36.92 | R13: -36.92 | S13: 5
A14: 409 | B14: SEN | D14: Reinstein | E14: Marie | F14: MSVg Gerolzhofen | G14: 36.95 | H14: 36.97 | I14: 36.83 | J14: 36.95 | M14: 147.7 | N14: -147.7 | O14: 6 | Q14: 36.925 | R14: -36.925 | S14: 6
A15: 423 | B15: SEN | D15: Gößling | E15: Jule | F15: Jugendclub Mettinger SK-Derby | G15: 36.97 | H15: 36.97 | I15: 37.13 | J15: 36.77 | M15: 147.84 | N15: -147.84 | O15: 7 | Q15: 36.96 | R15: -36.96 | S15: 7
A16: 427 | B16: SEN | D16: Lammers | E16: Laura | F16: ConAction Köln | G16: 36.97 | H16: 37.03 | I16: 37.08 | J16: 36.77 | M16: 147.85 | N16: -147.85 | O16: 8 | Q16: 36.9625 | R16: -36.9625 | S16: 8
A17: 420 | B17: SEN | D17: Schrüfer | E17: Stella | F17: Seifenkistenfreunde Nürnberg | G17: 37.06 | H17: 37.1 | I17: 36.98 | J17: 36.8 | M17: 147.94 | N17: -147.94 | O17: 9 | Q17: 36.985 | R17: -36.985 | S17: 9
A18: 426 | B18: SEN | D18: Reuscher | E18: Sanja | F18: Joker-Team Berlin | G18: 37.06 | H18: 37.06 | I18: 36.91 | J18: 36.92 | M18: 147.95 | N18: -147.95 | O18: 10 | Q18: 36.9875 | R18: -36.9875 | S18: 10
M19: 0 | N19: -1000 | O19: 0 | Q19: 0 | R19: -1000 | S19: 0
M20: 0 | N20: -1000 | O20: 0 | Q20: 0 | R20: -1000 | S20: 0
M21: 0 | N21: -1000 | O21: 0 | Q21: 0 | R21: -1000 | S21: 0
M22: 0 | N22: -1000 | O22: 0 | Q22: 0 | R22: -1000 | S22: 0
M23: 0 | N23: -1000 | O23: 0 | Q23: 0 | R23: -1000 | S23: 0
M24: 0 | N24: -1000 | O24: 0 | Q24: 0 | R24: -1000 | S24: 0
M25: 0 | N25: =IF(M25>0,M25*-1,-1000) -> -1000 | O25: 0 | Q25: 0 | R25: -1000 | S25: 0
M26: 0 | N26: =IF(M26>0,M26*-1,-1000) -> -1000 | O26: 0 | Q26: 0 | R26: -1000 | S26: 0
M27: 0 | N27: =IF(M27>0,M27*-1,-1000) -> -1000 | O27: 0 | Q27: 0 | R27: -1000 | S27: 0
M28: 0 | N28: -1000 | O28: 0 | Q28: 0 | R28: -1000 | S28: 0
M29: 0 | N29: -1000 | O29: 0 | Q29: 0 | R29: -1000 | S29: 0
M30: 0 | N30: -1000 | O30: 0 | Q30: 0 | R30: -1000 | S30: 0
M31: 0 | N31: -1000 | O31: 0 | Q31: 0 | R31: -1000 | S31: 0
M32: 0 | N32: -1000 | O32: 0 | Q32: 0 | R32: -1000 | S32: 0
M33: 0 | N33: -1000 | O33: 0 | Q33: 0 | R33: -1000 | S33: 0
M34: 0 | N34: -1000 | O34: 0 | Q34: 0 | R34: -1000 | S34: 0
M35: 0 | N35: -1000 | O35: 0 | Q35: 0 | R35: -1000 | S35: 0
M36: 0 | N36: =IF(M36>0,M36*-1,-1000) -> -1000 | O36: 0 | Q36: 0 | R36: -1000 | S36: 0
M37: 0 | N37: =IF(M37>0,M37*-1,-1000) -> -1000 | O37: 0 | Q37: 0 | R37: -1000 | S37: 0
M38: 0 | N38: =IF(M38>0,M38*-1,-1000) -> -1000 | O38: 0 | Q38: 0 | R38: -1000 | S38: 0
M39: 0 | N39: =IF(M39>0,M39*-1,-1000) -> -1000 | O39: 0 | Q39: 0 | R39: -1000 | S39: 0
M40: 0 | N40: =IF(M40>0,M40*-1,-1000) -> -1000 | O40: 0 | Q40: 0 | R40: -1000 | S40: 0
M41: 0 | N41: -1000 | O41: 0 | Q41: 0 | R41: -1000 | S41: 0
M42: 0 | N42: =IF(M42>0,M42*-1,-1000) -> -1000 | O42: 0 | Q42: 0 | R42: -1000 | S42: 0
M43: 0 | N43: =IF(M43>0,M43*-1,-1000) -> -1000 | O43: 0 | Q43: 0 | R43: -1000 | S43: 0
M44: 0 | N44: -1000 | O44: 0 | Q44: 0 | R44: -1000 | S44: 0
M45: 0 | N45: -1000 | O45: 0 | Q45: 0 | R45: -1000 | S45: 0
M46: 0 | N46: -1000 | O46: 0 | Q46: 0 | R46: -1000 | S46: 0
M47: 0 | N47: -1000 | O47: 0 | Q47: 0 | R47: -1000 | S47: 0
M48: 0 | N48: -1000 | O48: 0 | Q48: 0 | R48: -1000 | S48: 0
M49: 0 | N49: -1000 | O49: 0 | Q49: 0 | R49: -1000 | S49: 0
M50: 0 | N50: -1000 | O50: 0 | Q50: 0 | R50: -1000 | S50: 0
M51: 0 | N51: -1000 | O51: 0 | Q51: 0 | R51: -1000 | S51: 0
M52: 0 | N52: -1000 | O52: 0 | Q52: 0 | R52: -1000 | S52: 0
M53: 0 | N53: -1000 | O53: 0 | Q53: 0 | R53: -1000 | S53: 0
M54: 0 | N54: -1000 | O54: 0 | Q54: 0 | R54: -1000 | S54: 0
M55: 0 | N55: -1000 | O55: 0 | Q55: 0 | R55: -1000 | S55: 0
M56: 0 | N56: -1000 | O56: 0 | Q56: 0 | R56: -1000 | S56: 0
M57: 0 | N57: -1000 | O57: 0 | Q57: 0 | R57: -1000 | S57: 0
M58: 0 | N58: -1000 | O58: 0 | Q58: 0 | R58: -1000 | S58: 0
M59: 0 | N59: -1000 | O59: 0 | Q59: 0 | R59: -1000 | S59: 0
M60: 0 | N60: -1000 | O60: 0 | Q60: 0 | R60: -1000 | S60: 0
M61: 0 | N61: -1000 | O61: 0 | Q61: 0 | R61: -1000 | S61: 0
M62: 0 | N62: -1000 | O62: 0 | Q62: 0 | R62: -1000 | S62: 0
M63: 0 | N63: -1000 | O63: 0 | Q63: 0 | R63: -1000 | S63: 0
M64: 0 | N64: -1000 | O64: 0 | Q64: 0 | R64: -1000 | S64: 0
M65: 0 | N65: -1000 | O65: 0 | Q65: 0 | R65: -1000 | S65: 0
M66: 0 | N66: -1000 | O66: 0 | Q66: 0 | R66: -1000 | S66: 0
M67: 0 | N67: -1000 | O67: 0 | Q67: 0 | R67: -1000 | S67: 0
M68: 0 | N68: -1000 | O68: 0 | Q68: 0 | R68: -1000 | S68: 0
M69: 0 | N69: -1000 | O69: 0 | Q69: 0 | R69: -1000 | S69: 0
M70: 0 | N70: -1000 | O70: 0 | Q70: 0 | R70: -1000 | S70: 0
M71: 0 | N71: =IF(M71>0,M71*-1,-1000) -> -1000 | O71: 0 | Q71: 0 | R71: -1000 | S71: 0
M72: 0 | N72: =IF(M72>0,M72*-1,-1000) -> -1000 | O72: 0 | Q72: 0 | R72: -1000 | S72: 0
M73: =(G73*$G$4+H73*$H$4+I73*$I$4+J73*$J$4+K73*$K$4+L73*$L$4) -> 0 | N73: =IF(M73>0,M73*-1,-1000) -> -1000 | O73: =IF(M73>0,RANK(N73,N:N),0) -> 0 | Q73: =IF((G73*$G$4+H73*$H$4+I73*$I$4+J73*$J$4+K73*$K$4+L73*$L$4)>0,(G73*$G$4+H73*$H$4+I73*$I$4+J73*$J$4+K73*$K$4+L73*$L$4)/(IF(G73>0,1*$G$4,0)+IF(H73>0,1*$H$4,0)+IF(I73>0,1*$I$4,0)+IF(J73>0,1*$J$4,0)+IF(K73>0,1*$K$4,0)+IF(L73>0,1*$L$4,0)),0) -> 0 | R73: =IF(Q73>0,Q73*-1,-1000) -> -1000 | S73: =IF(Q73>0,RANK(R73,R:R),0) -> 0
M74: 0 | N74: =IF(M74>0,M74*-1,-1000) -> -1000 | O74: 0 | Q74: 0 | R74: -1000 | S74: 0
M75: 0 | N75: =IF(M75>0,M75*-1,-1000) -> -1000 | O75: 0 | Q75: 0 | R75: -1000 | S75: 0
M76: 0 | N76: =IF(M76>0,M76*-1,-1000) -> -1000 | O76: 0 | Q76: 0 | R76: -1000 | S76: 0
M77: 0 | N77: =IF(M77>0,M77*-1,-1000) -> -1000 | O77: 0 | Q77: 0 | R77: -1000 | S77: 0
M78: 0 | N78: -1000 | O78: 0 | Q78: 0 | R78: -1000 | S78: 0
M79: 0 | N79: -1000 | O79: 0 | Q79: 0 | R79: -1000 | S79: 0
M80: 0 | N80: =IF(M80>0,M80*-1,-1000) -> -1000 | O80: 0 | Q80: 0 | R80: -1000 | S80: 0
M81: 0 | N81: =IF(M81>0,M81*-1,-1000) -> -1000 | O81: 0 | Q81: 0 | R81: -1000 | S81: 0
M82: 0 | N82: =IF(M82>0,M82*-1,-1000) -> -1000 | O82: 0 | Q82: 0 | R82: -1000 | S82: 0
M83: 0 | N83: -1000 | O83: 0 | Q83: 0 | R83: -1000 | S83: 0
M84: 0 | N84: -1000 | O84: 0 | Q84: 0 | R84: -1000 | S84: 0
M85: 0 | N85: -1000 | O85: 0 | Q85: 0 | R85: -1000 | S85: 0
M86: 0 | N86: -1000 | O86: 0 | Q86: 0 | R86: -1000 | S86: 0
M87: 0 | N87: -1000 | O87: 0 | Q87: 0 | R87: -1000 | S87: 0
M88: 0 | N88: -1000 | O88: 0 | Q88: 0 | R88: -1000 | S88: 0
M89: 0 | N89: -1000 | O89: 0 | Q89: 0 | R89: -1000 | S89: 0
M90: 0 | N90: =IF(M90>0,M90*-1,-1000) -> -1000 | O90: 0 | Q90: 0 | R90: -1000 | S90: 0
M91: 0 | N91: -1000 | O91: 0 | Q91: 0 | R91: -1000 | S91: 0
M92: 0 | N92: -1000 | O92: 0 | Q92: 0 | R92: -1000 | S92: 0
M93: 0 | N93: -1000 | O93: 0 | Q93: 0 | R93: -1000 | S93: 0
M94: 0 | N94: -1000 | O94: 0 | Q94: 0 | R94: -1000 | S94: 0
M95: 0 | N95: =IF(M95>0,M95*-1,-1000) -> -1000 | O95: 0 | Q95: 0 | R95: -1000 | S95: 0
M96: 0 | N96: -1000 | O96: 0 | Q96: 0 | R96: -1000 | S96: 0
M97: 0 | N97: -1000 | O97: 0 | Q97: 0 | R97: -1000 | S97: 0
M98: 0 | N98: -1000 | O98: 0 | Q98: 0 | R98: -1000 | S98: 0
M99: 0 | N99: -1000 | O99: 0 | Q99: 0 | R99: -1000 | S99: 0
M100: 0 | N100: -1000 | O100: 0 | Q100: 0 | R100: -1000 | S100: 0
M101: 0 | N101: -1000 | O101: 0 | Q101: 0 | R101: -1000 | S101: 0
M102: 0 | N102: -1000 | O102: 0 | Q102: 0 | R102: -1000 | S102: 0
M103: 0 | N103: -1000 | O103: 0 | Q103: 0 | R103: -1000 | S103: 0
M104: 0 | N104: -1000 | O104: 0 | Q104: 0 | R104: -1000 | S104: 0
M105: 0 | N105: -1000 | O105: 0 | Q105: 0 | R105: -1000 | S105: 0
M106: 0 | N106: -1000 | O106: 0 | Q106: 0 | R106: -1000 | S106: 0
M107: 0 | N107: -1000 | O107: 0 | Q107: 0 | R107: -1000 | S107: 0
M108: 0 | N108: -1000 | O108: 0 | Q108: 0 | R108: -1000 | S108: 0
M109: 0 | N109: -1000 | O109: 0 | Q109: 0 | R109: -1000 | S109: 0
M110: 0 | N110: -1000 | O110: 0 | Q110: 0 | R110: -1000 | S110: 0
M111: 0 | N111: -1000 | O111: 0 | Q111: 0 | R111: -1000 | S111: 0
M112: 0 | N112: -1000 | O112: 0 | Q112: 0 | R112: -1000 | S112: 0
M113: 0 | N113: -1000 | O113: 0 | Q113: 0 | R113: -1000 | S113: 0
M114: 0 | N114: -1000 | O114: 0 | Q114: 0 | R114: -1000 | S114: 0
M115: 0 | N115: -1000 | O115: 0 | Q115: 0 | R115: -1000 | S115: 0
M116: 0 | N116: -1000 | O116: 0 | Q116: 0 | R116: -1000 | S116: 0
M117: 0 | N117: -1000 | O117: 0 | Q117: 0 | R117: -1000 | S117: 0
M118: 0 | N118: -1000 | O118: 0 | Q118: 0 | R118: -1000 | S118: 0
M119: 0 | N119: -1000 | O119: 0 | Q119: 0 | R119: -1000 | S119: 0
M120: 0 | N120: -1000 | O120: 0 | Q120: 0 | R120: -1000 | S120: 0
M121: 0 | N121: -1000 | O121: 0 | Q121: 0 | R121: -1000 | S121: 0
M122: 0 | N122: -1000 | O122: 0 | Q122: 0 | R122: -1000 | S122: 0
M123: 0 | N123: -1000 | O123: 0 | Q123: 0 | R123: -1000 | S123: 0
M124: 0 | N124: -1000 | O124: 0 | Q124: 0 | R124: -1000 | S124: 0
M125: 0 | N125: -1000 | O125: 0 | Q125: 0 | R125: -1000 | S125: 0
M126: 0 | N126: -1000 | O126: 0 | Q126: 0 | R126: -1000 | S126: 0
M127: 0 | N127: -1000 | O127: 0 | Q127: 0 | R127: -1000 | S127: 0
M128: 0 | N128: -1000 | O128: 0 | Q128: 0 | R128: -1000 | S128: 0
M129: 0 | N129: -1000 | O129: 0 | Q129: 0 | R129: -1000 | S129: 0
M130: 0 | N130: -1000 | O130: 0 | Q130: 0 | R130: -1000 | S130: 0
M131: 0 | N131: -1000 | O131: 0 | Q131: 0 | R131: -1000 | S131: 0
M132: 0 | N132: -1000 | O132: 0 | Q132: 0 | R132: -1000 | S132: 0
M133: 0 | N133: -1000 | O133: 0 | Q133: 0 | R133: -1000 | S133: 0
M134: 0 | N134: -1000 | O134: 0 | Q134: 0 | R134: -1000 | S134: 0
M135: 0 | N135: -1000 | O135: 0 | Q135: 0 | R135: -1000 | S135: 0
M136: 0 | N136: -1000 | O136: 0 | Q136: 0 | R136: -1000 | S136: 0
M137: =(G137*$G$4+H137*$H$4+I137*$I$4+J137*$J$4+K137*$K$4+L137*$L$4) -> 0 | N137: -1000 | O137: =IF(M137>0,RANK(N137,N:N),0) -> 0 | Q137: =IF((G137*$G$4+H137*$H$4+I137*$I$4+J137*$J$4+K137*$K$4+L137*$L$4)>0,(G137*$G$4+H137*$H$4+I137*$I$4+J137*$J$4+K137*$K$4+L137*$L$4)/(IF(G137>0,1*$G$4,0)+IF(H137>0,1*$H$4,0)+IF(I137>0,1*$I$4,0)+IF(J137>0,1*$J$4,0)+IF(K137>0,1*$K$4,0)+IF(L137>0,1*$L$4,0)),0) -> 0 | R137: -1000 | S137: =IF(Q137>0,RANK(R137,R:R),0) -> 0
M138: 0 | N138: -1000 | O138: 0 | Q138: 0 | R138: -1000 | S138: 0
M139: 0 | N139: -1000 | O139: 0 | Q139: 0 | R139: -1000 | S139: 0
M140: 0 | N140: -1000 | O140: 0 | Q140: 0 | R140: -1000 | S140: 0
M141: 0 | N141: -1000 | O141: 0 | Q141: 0 | R141: -1000 | S141: 0
M142: 0 | N142: -1000 | O142: 0 | Q142: 0 | R142: -1000 | S142: 0
M143: 0 | N143: -1000 | O143: 0 | Q143: 0 | R143: -1000 | S143: 0
M144: 0 | N144: -1000 | O144: 0 | Q144: 0 | R144: -1000 | S144: 0
M145: 0 | N145: -1000 | O145: 0 | Q145: 0 | R145: -1000 | S145: 0
M146: 0 | N146: -1000 | O146: 0 | Q146: 0 | R146: -1000 | S146: 0
M147: 0 | N147: -1000 | O147: 0 | Q147: 0 | R147: -1000 | S147: 0
M148: 0 | N148: -1000 | O148: 0 | Q148: 0 | R148: -1000 | S148: 0
M149: 0 | N149: -1000 | O149: 0 | Q149: 0 | R149: -1000 | S149: 0

Sheet EDM-XL
A1: DSKD 69. Deutsche Meisterschaft und 19. Europameisterschaft 2017 Mettingen ESKD
A2: DM - Endläufe in der Elite XL - Klasse
S3: Bestzeit
A4: Wird der Lauf gewertet? dann 0 oder 1 eintragen | G4: 1 | H4: 1 | I4: 1 | J4: 1 | K4: 1 | L4: 1 | S4: in Vorläufen
E5: Bestzeit je Lauf | G5: =MIN(G9:G149) -> 36.88 | H5: 36.87 | I5: 36.95 | J5: 37.01 | K5: 0 | L5: 0 | S5: =MIN((IF(G4=1,G5,99)), (IF(H4=1,H5,99)), (IF(I4=1,I5,99)), (IF(J4=1,J5,99)), (IF(K4=1,K5,99)), (IF(L4=1,L5,99)) ) -> 0
E6: Mittelwert je Lauf | G6: =IF(G5>0,AVERAGE(G9:G149),0) -> 37.015 | H6: 37.0325 | I6: 37.05 | J6: 37.1275 | K6: 0 | L6: 0
A7: Start Nummer | B7: Gruppe | C7: startet | D7: Name | E7: Vorname | F7: Verein | G7: Lauf 1 | H7: Lauf 2 | I7: Lauf 3 | J7: Lauf 4 | K7: Lauf 5 | L7: Lauf 6 | M7: Summe der gewerteten Läufe | O7: Platz | Q7: Mittelwert | S7: Platz
A9: 210 | B9: Elite XL | D9: Strohmaier | E9: Sebastian | F9: SV Losaurach | G9: 36.88 | H9: 36.87 | I9: 36.95 | J9: 37.01 | M9: =(G9*$G$4+H9*$H$4+I9*$I$4+J9*$J$4+K9*$K$4+L9*$L$4) -> 147.71 | N9: =IF(M9>0,M9*-1,-1000) -> -147.71 | O9: =IF(M9>0,RANK(N9,N:N),0) -> 1 | Q9: =IF((G9*$G$4+H9*$H$4+I9*$I$4+J9*$J$4+K9*$K$4+L9*$L$4)>0,(G9*$G$4+H9*$H$4+I9*$I$4+J9*$J$4+K9*$K$4+L9*$L$4)/(IF(G9>0,1*$G$4,0)+IF(H9>0,1*$H$4,0)+IF(I9>0,1*$I$4,0)+IF(J9>0,1*$J$4,0)+IF(K9>0,1*$K$4,0)+IF(L9>0,1*$L$4,0)),0) -> 36.9275 | R9: =IF(Q9>0,Q9*-1,-1000) -> -36.9275 | S9: =IF(Q9>0,RANK(R9,R:R),0) -> 1
A10: 205 | B10: Elite XL | D10: Braun | E10: Armin | F10: MSVg Gerolzhofen | G10: 37.07 | H10: 36.93 | I10: 37.09 | J10: 37.09 | M10: =(G10*$G$4+H10*$H$4+I10*$I$4+J10*$J$4+K10*$K$4+L10*$L$4) -> 148.18 | N10: =IF(M10>0,M10*-1,-1000) -> -148.18 | O10: =IF(M10>0,RANK(N10,N:N),0) -> 2 | Q10: =IF((G10*$G$4+H10*$H$4+I10*$I$4+J10*$J$4+K10*$K$4+L10*$L$4)>0,(G10*$G$4+H10*$H$4+I10*$I$4+J10*$J$4+K10*$K$4+L10*$L$4)/(IF(G10>0,1*$G$4,0)+IF(H10>0,1*$H$4,0)+IF(I10>0,1*$I$4,0)+IF(J10>0,1*$J$4,0)+IF(K10>0,1*$K$4,0)+IF(L10>0,1*$L$4,0)),0) -> 37.045 | R10: =IF(Q10>0,Q10*-1,-1000) -> -37.045 | S10: =IF(Q10>0,RANK(R10,R:R),0) -> 2
A11: 202 | B11: Elite XL | D11: Schmidt | E11: Marvin | F11: Friesenflitzer Varel | G11: 37.03 | H11: 37.01 | I11: 37.07 | J11: 37.09 | M11: =(G11*$G$4+H11*$H$4+I11*$I$4+J11*$J$4+K11*$K$4+L11*$L$4) -> 148.2 | N11: =IF(M11>0,M11*-1,-1000) -> -148.2 | O11: =IF(M11>0,RANK(N11,N:N),0) -> 3 | Q11: =IF((G11*$G$4+H11*$H$4+I11*$I$4+J11*$J$4+K11*$K$4+L11*$L$4)>0,(G11*$G$4+H11*$H$4+I11*$I$4+J11*$J$4+K11*$K$4+L11*$L$4)/(IF(G11>0,1*$G$4,0)+IF(H11>0,1*$H$4,0)+IF(I11>0,1*$I$4,0)+IF(J11>0,1*$J$4,0)+IF(K11>0,1*$K$4,0)+IF(L11>0,1*$L$4,0)),0) -> 37.05 | R11: =IF(Q11>0,Q11*-1,-1000) -> -37.05 | S11: =IF(Q11>0,RANK(R11,R:R),0) -> 3
A12: 206 | B12: Elite XL | D12: Schlösser | E12: Timon | F12: Seifenkistengruppe Stromberg | G12: 37.08 | H12: 37.32 | I12: 37.09 | J12: 37.32 | M12: =(G12*$G$4+H12*$H$4+I12*$I$4+J12*$J$4+K12*$K$4+L12*$L$4) -> 148.81 | N12: =IF(M12>0,M12*-1,-1000) -> -148.81 | O12: =IF(M12>0,RANK(N12,N:N),0) -> 4 | Q12: =IF((G12*$G$4+H12*$H$4+I12*$I$4+J12*$J$4+K12*$K$4+L12*$L$4)>0,(G12*$G$4+H12*$H$4+I12*$I$4+J12*$J$4+K12*$K$4+L12*$L$4)/(IF(G12>0,1*$G$4,0)+IF(H12>0,1*$H$4,0)+IF(I12>0,1*$I$4,0)+IF(J12>0,1*$J$4,0)+IF(K12>0,1*$K$4,0)+IF(L12>0,1*$L$4,0)),0) -> 37.2025 | R12: =IF(Q12>0,Q12*-1,-1000) -> -37.2025 | S12: =IF(Q12>0,RANK(R12,R:R),0) -> 4
M13: =(G13*$G$4+H13*$H$4+I13*$I$4+J13*$J$4+K13*$K$4+L13*$L$4) -> 0 | N13: =IF(M13>0,M13*-1,-1000) -> -1000 | O13: =IF(M13>0,RANK(N13,N:N),0) -> 0 | Q13: =IF((G13*$G$4+H13*$H$4+I13*$I$4+J13*$J$4+K13*$K$4+L13*$L$4)>0,(G13*$G$4+H13*$H$4+I13*$I$4+J13*$J$4+K13*$K$4+L13*$L$4)/(IF(G13>0,1*$G$4,0)+IF(H13>0,1*$H$4,0)+IF(I13>0,1*$I$4,0)+IF(J13>0,1*$J$4,0)+IF(K13>0,1*$K$4,0)+IF(L13>0,1*$L$4,0)),0) -> 0 | R13: =IF(Q13>0,Q13*-1,-1000) -> -1000 | S13: =IF(Q13>0,RANK(R13,R:R),0) -> 0
M14: 0 | N14: -1000 | O14: 0 | Q14: 0 | R14: -1000 | S14: 0
M15: 0 | N15: -1000 | O15: 0 | Q15: 0 | R15: -1000 | S15: 0
M16: 0 | N16: -1000 | O16: 0 | Q16: 0 | R16: -1000 | S16: 0
M17: 0 | N17: =IF(M17>0,M17*-1,-1000) -> -1000 | O17: 0 | Q17: 0 | R17: -1000 | S17: 0
M18: 0 | N18: =IF(M18>0,M18*-1,-1000) -> -1000 | O18: 0 | Q18: 0 | R18: -1000 | S18: 0
M19: 0 | N19: -1000 | O19: 0 | Q19: 0 | R19: -1000 | S19: 0
M20: 0 | N20: =IF(M20>0,M20*-1,-1000) -> -1000 | O20: 0 | Q20: 0 | R20: -1000 | S20: 0
M21: 0 | N21: =IF(M21>0,M21*-1,-1000) -> -1000 | O21: 0 | Q21: 0 | R21: -1000 | S21: 0
M22: 0 | N22: =IF(M22>0,M22*-1,-1000) -> -1000 | O22: 0 | Q22: 0 | R22: -1000 | S22: 0
M23: 0 | N23: =IF(M23>0,M23*-1,-1000) -> -1000 | O23: 0 | Q23: 0 | R23: -1000 | S23: 0
M24: 0 | N24: -1000 | O24: 0 | Q24: 0 | R24: -1000 | S24: 0
M25: 0 | N25: =IF(M25>0,M25*-1,-1000) -> -1000 | O25: 0 | Q25: 0 | R25: -1000 | S25: 0
M26: 0 | N26: =IF(M26>0,M26*-1,-1000) -> -1000 | O26: 0 | Q26: 0 | R26: -1000 | S26: 0
M27: 0 | N27: =IF(M27>0,M27*-1,-1000) -> -1000 | O27: 0 | Q27: 0 | R27: -1000 | S27: 0
M28: 0 | N28: -1000 | O28: 0 | Q28: 0 | R28: -1000 | S28: 0
M29: 0 | N29: -1000 | O29: 0 | Q29: 0 | R29: -1000 | S29: 0
M30: 0 | N30: -1000 | O30: 0 | Q30: 0 | R30: -1000 | S30: 0
M31: 0 | N31: -1000 | O31: 0 | Q31: 0 | R31: -1000 | S31: 0
M32: 0 | N32: -1000 | O32: 0 | Q32: 0 | R32: -1000 | S32: 0
M33: 0 | N33: -1000 | O33: 0 | Q33: 0 | R33: -1000 | S33: 0
M34: 0 | N34: -1000 | O34: 0 | Q34: 0 | R34: -1000 | S34: 0
M35: 0 | N35: -1000 | O35: 0 | Q35: 0 | R35: -1000 | S35: 0
M36: 0 | N36: =IF(M36>0,M36*-1,-1000) -> -1000 | O36: 0 | Q36: 0 | R36: -1000 | S36: 0
M37: 0 | N37: =IF(M37>0,M37*-1,-1000) -> -1000 | O37: 0 | Q37: 0 | R37: -1000 | S37: 0
M38: 0 | N38: =IF(M38>0,M38*-1,-1000) -> -1000 | O38: 0 | Q38: 0 | R38: -1000 | S38: 0
M39: 0 | N39: =IF(M39>0,M39*-1,-1000) -> -1000 | O39: 0 | Q39: 0 | R39: -1000 | S39: 0
M40: 0 | N40: =IF(M40>0,M40*-1,-1000) -> -1000 | O40: 0 | Q40: 0 | R40: -1000 | S40: 0
M41: 0 | N41: -1000 | O41: 0 | Q41: 0 | R41: -1000 | S41: 0
M42: 0 | N42: =IF(M42>0,M42*-1,-1000) -> -1000 | O42: 0 | Q42: 0 | R42: -1000 | S42: 0
M43: 0 | N43: =IF(M43>0,M43*-1,-1000) -> -1000 | O43: 0 | Q43: 0 | R43: -1000 | S43: 0
M44: 0 | N44: -1000 | O44: 0 | Q44: 0 | R44: -1000 | S44: 0
M45: 0 | N45: -1000 | O45: 0 | Q45: 0 | R45: -1000 | S45: 0
M46: 0 | N46: -1000 | O46: 0 | Q46: 0 | R46: -1000 | S46: 0
M47: 0 | N47: -1000 | O47: 0 | Q47: 0 | R47: -1000 | S47: 0
M48: 0 | N48: -1000 | O48: 0 | Q48: 0 | R48: -1000 | S48: 0
M49: 0 | N49: -1000 | O49: 0 | Q49: 0 | R49: -1000 | S49: 0
M50: 0 | N50: -1000 | O50: 0 | Q50: 0 | R50: -1000 | S50: 0
M51: 0 | N51: -1000 | O51: 0 | Q51: 0 | R51: -1000 | S51: 0
M52: 0 | N52: -1000 | O52: 0 | Q52: 0 | R52: -1000 | S52: 0
M53: 0 | N53: -1000 | O53: 0 | Q53: 0 | R53: -1000 | S53: 0
M54: 0 | N54: -1000 | O54: 0 | Q54: 0 | R54: -1000 | S54: 0
M55: 0 | N55: -1000 | O55: 0 | Q55: 0 | R55: -1000 | S55: 0
M56: 0 | N56: -1000 | O56: 0 | Q56: 0 | R56: -1000 | S56: 0
M57: 0 | N57: -1000 | O57: 0 | Q57: 0 | R57: -1000 | S57: 0
M58: 0 | N58: -1000 | O58: 0 | Q58: 0 | R58: -1000 | S58: 0
M59: 0 | N59: -1000 | O59: 0 | Q59: 0 | R59: -1000 | S59: 0
M60: 0 | N60: -1000 | O60: 0 | Q60: 0 | R60: -1000 | S60: 0
M61: 0 | N61: -1000 | O61: 0 | Q61: 0 | R61: -1000 | S61: 0
M62: 0 | N62: -1000 | O62: 0 | Q62: 0 | R62: -1000 | S62: 0
M63: 0 | N63: -1000 | O63: 0 | Q63: 0 | R63: -1000 | S63: 0
M64: 0 | N64: -1000 | O64: 0 | Q64: 0 | R64: -1000 | S64: 0
M65: 0 | N65: -1000 | O65: 0 | Q65: 0 | R65: -1000 | S65: 0
M66: 0 | N66: -1000 | O66: 0 | Q66: 0 | R66: -1000 | S66: 0
M67: 0 | N67: -1000 | O67: 0 | Q67: 0 | R67: -1000 | S67: 0
M68: 0 | N68: -1000 | O68: 0 | Q68: 0 | R68: -1000 | S68: 0
M69: 0 | N69: -1000 | O69: 0 | Q69: 0 | R69: -1000 | S69: 0
M70: 0 | N70: -1000 | O70: 0 | Q70: 0 | R70: -1000 | S70: 0
M71: 0 | N71: =IF(M71>0,M71*-1,-1000) -> -1000 | O71: 0 | Q71: 0 | R71: -1000 | S71: 0
M72: 0 | N72: =IF(M72>0,M72*-1,-1000) -> -1000 | O72: 0 | Q72: 0 | R72: -1000 | S72: 0
M73: 0 | N73: =IF(M73>0,M73*-1,-1000) -> -1000 | O73: 0 | Q73: 0 | R73: -1000 | S73: 0
M74: 0 | N74: =IF(M74>0,M74*-1,-1000) -> -1000 | O74: 0 | Q74: 0 | R74: -1000 | S74: 0
M75: 0 | N75: -1000 | O75: 0 | Q75: 0 | R75: -1000 | S75: 0
M76: 0 | N76: =IF(M76>0,M76*-1,-1000) -> -1000 | O76: 0 | Q76: 0 | R76: -1000 | S76: 0
M77: =(G77*$G$4+H77*$H$4+I77*$I$4+J77*$J$4+K77*$K$4+L77*$L$4) -> 0 | N77: =IF(M77>0,M77*-1,-1000) -> -1000 | O77: =IF(M77>0,RANK(N77,N:N),0) -> 0 | Q77: =IF((G77*$G$4+H77*$H$4+I77*$I$4+J77*$J$4+K77*$K$4+L77*$L$4)>0,(G77*$G$4+H77*$H$4+I77*$I$4+J77*$J$4+K77*$K$4+L77*$L$4)/(IF(G77>0,1*$G$4,0)+IF(H77>0,1*$H$4,0)+IF(I77>0,1*$I$4,0)+IF(J77>0,1*$J$4,0)+IF(K77>0,1*$K$4,0)+IF(L77>0,1*$L$4,0)),0) -> 0 | R77: =IF(Q77>0,Q77*-1,-1000) -> -1000 | S77: =IF(Q77>0,RANK(R77,R:R),0) -> 0
M78: 0 | N78: -1000 | O78: 0 | Q78: 0 | R78: -1000 | S78: 0
M79: 0 | N79: -1000 | O79: 0 | Q79: 0 | R79: -1000 | S79: 0
M80: 0 | N80: =IF(M80>0,M80*-1,-1000) -> -1000 | O80: 0 | Q80: 0 | R80: -1000 | S80: 0
M81: 0 | N81: =IF(M81>0,M81*-1,-1000) -> -1000 | O81: 0 | Q81: 0 | R81: -1000 | S81: 0
M82: 0 | N82: =IF(M82>0,M82*-1,-1000) -> -1000 | O82: 0 | Q82: 0 | R82: -1000 | S82: 0
M83: 0 | N83: -1000 | O83: 0 | Q83: 0 | R83: -1000 | S83: 0
M84: 0 | N84: -1000 | O84: 0 | Q84: 0 | R84: -1000 | S84: 0
M85: 0 | N85: -1000 | O85: 0 | Q85: 0 | R85: -1000 | S85: 0
M86: 0 | N86: -1000 | O86: 0 | Q86: 0 | R86: -1000 | S86: 0
M87: 0 | N87: -1000 | O87: 0 | Q87: 0 | R87: -1000 | S87: 0
M88: 0 | N88: -1000 | O88: 0 | Q88: 0 | R88: -1000 | S88: 0
M89: 0 | N89: -1000 | O89: 0 | Q89: 0 | R89: -1000 | S89: 0
M90: 0 | N90: =IF(M90>0,M90*-1,-1000) -> -1000 | O90: 0 | Q90: 0 | R90: -1000 | S90: 0
M91: 0 | N91: -1000 | O91: 0 | Q91: 0 | R91: -1000 | S91: 0
M92: 0 | N92: -1000 | O92: 0 | Q92: 0 | R92: -1000 | S92: 0
M93: 0 | N93: -1000 | O93: 0 | Q93: 0 | R93: -1000 | S93: 0
M94: 0 | N94: -1000 | O94: 0 | Q94: 0 | R94: -1000 | S94: 0
M95: 0 | N95: =IF(M95>0,M95*-1,-1000) -> -1000 | O95: 0 | Q95: 0 | R95: -1000 | S95: 0
M96: 0 | N96: -1000 | O96: 0 | Q96: 0 | R96: -1000 | S96: 0
M97: 0 | N97: -1000 | O97: 0 | Q97: 0 | R97: -1000 | S97: 0
M98: 0 | N98: -1000 | O98: 0 | Q98: 0 | R98: -1000 | S98: 0
M99: 0 | N99: -1000 | O99: 0 | Q99: 0 | R99: -1000 | S99: 0
M100: 0 | N100: -1000 | O100: 0 | Q100: 0 | R100: -1000 | S100: 0
M101: 0 | N101: -1000 | O101: 0 | Q101: 0 | R101: -1000 | S101: 0
M102: 0 | N102: -1000 | O102: 0 | Q102: 0 | R102: -1000 | S102: 0
M103: 0 | N103: -1000 | O103: 0 | Q103: 0 | R103: -1000 | S103: 0
M104: 0 | N104: -1000 | O104: 0 | Q104: 0 | R104: -1000 | S104: 0
M105: 0 | N105: -1000 | O105: 0 | Q105: 0 | R105: -1000 | S105: 0
M106: 0 | N106: -1000 | O106: 0 | Q106: 0 | R106: -1000 | S106: 0
M107: 0 | N107: -1000 | O107: 0 | Q107: 0 | R107: -1000 | S107: 0
M108: 0 | N108: -1000 | O108: 0 | Q108: 0 | R108: -1000 | S108: 0
M109: 0 | N109: -1000 | O109: 0 | Q109: 0 | R109: -1000 | S109: 0
M110: 0 | N110: -1000 | O110: 0 | Q110: 0 | R110: -1000 | S110: 0
M111: 0 | N111: -1000 | O111: 0 | Q111: 0 | R111: -1000 | S111: 0
M112: 0 | N112: -1000 | O112: 0 | Q112: 0 | R112: -1000 | S112: 0
M113: 0 | N113: -1000 | O113: 0 | Q113: 0 | R113: -1000 | S113: 0
M114: 0 | N114: -1000 | O114: 0 | Q114: 0 | R114: -1000 | S114: 0
M115: 0 | N115: -1000 | O115: 0 | Q115: 0 | R115: -1000 | S115: 0
M116: 0 | N116: -1000 | O116: 0 | Q116: 0 | R116: -1000 | S116: 0
M117: 0 | N117: -1000 | O117: 0 | Q117: 0 | R117: -1000 | S117: 0
M118: 0 | N118: -1000 | O118: 0 | Q118: 0 | R118: -1000 | S118: 0
M119: 0 | N119: -1000 | O119: 0 | Q119: 0 | R119: -1000 | S119: 0
M120: 0 | N120: -1000 | O120: 0 | Q120: 0 | R120: -1000 | S120: 0
M121: 0 | N121: -1000 | O121: 0 | Q121: 0 | R121: -1000 | S121: 0
M122: 0 | N122: -1000 | O122: 0 | Q122: 0 | R122: -1000 | S122: 0
M123: 0 | N123: -1000 | O123: 0 | Q123: 0 | R123: -1000 | S123: 0
M124: 0 | N124: -1000 | O124: 0 | Q124: 0 | R124: -1000 | S124: 0
M125: 0 | N125: -1000 | O125: 0 | Q125: 0 | R125: -1000 | S125: 0
M126: 0 | N126: -1000 | O126: 0 | Q126: 0 | R126: -1000 | S126: 0
M127: 0 | N127: -1000 | O127: 0 | Q127: 0 | R127: -1000 | S127: 0
M128: 0 | N128: -1000 | O128: 0 | Q128: 0 | R128: -1000 | S128: 0
M129: 0 | N129: -1000 | O129: 0 | Q129: 0 | R129: -1000 | S129: 0
M130: 0 | N130: -1000 | O130: 0 | Q130: 0 | R130: -1000 | S130: 0
M131: 0 | N131: -1000 | O131: 0 | Q131: 0 | R131: -1000 | S131: 0
M132: 0 | N132: -1000 | O132: 0 | Q132: 0 | R132: -1000 | S132: 0
M133: 0 | N133: -1000 | O133: 0 | Q133: 0 | R133: -1000 | S133: 0
M134: 0 | N134: -1000 | O134: 0 | Q134: 0 | R134: -1000 | S134: 0
M135: 0 | N135: -1000 | O135: 0 | Q135: 0 | R135: -1000 | S135: 0
M136: 0 | N136: -1000 | O136: 0 | Q136: 0 | R136: -1000 | S136: 0
M137: 0 | N137: -1000 | O137: 0 | Q137: 0 | R137: -1000 | S137: 0
M138: 0 | N138: -1000 | O138: 0 | Q138: 0 | R138: -1000 | S138: 0
M139: 0 | N139: -1000 | O139: 0 | Q139: 0 | R139: -1000 | S139: 0
M140: 0 | N140: -1000 | O140: 0 | Q140: 0 | R140: -1000 | S140: 0
M141: =(G141*$G$4+H141*$H$4+I141*$I$4+J141*$J$4+K141*$K$4+L141*$L$4) -> 0 | N141: -1000 | O141: =IF(M141>0,RANK(N141,N:N),0) -> 0 | Q141: =IF((G141*$G$4+H141*$H$4+I141*$I$4+J141*$J$4+K141*$K$4+L141*$L$4)>0,(G141*$G$4+H141*$H$4+I141*$I$4+J141*$J$4+K141*$K$4+L141*$L$4)/(IF(G141>0,1*$G$4,0)+IF(H141>0,1*$H$4,0)+IF(I141>0,1*$I$4,0)+IF(J141>0,1*$J$4,0)+IF(K141>0,1*$K$4,0)+IF(L141>0,1*$L$4,0)),0) -> 0 | R141: -1000 | S141: =IF(Q141>0,RANK(R141,R:R),0) -> 0
M142: 0 | N142: -1000 | O142: 0 | Q142: 0 | R142: -1000 | S142: 0
M143: 0 | N143: -1000 | O143: 0 | Q143: 0 | R143: -1000 | S143: 0
M144: 0 | N144: -1000 | O144: 0 | Q144: 0 | R144: -1000 | S144: 0
M145: 0 | N145: -1000 | O145: 0 | Q145: 0 | R145: -1000 | S145: 0
M146: 0 | N146: -1000 | O146: 0 | Q146: 0 | R146: -1000 | S146: 0
M147: 0 | N147: -1000 | O147: 0 | Q147: 0 | R147: -1000 | S147: 0
M148: 0 | N148: -1000 | O148: 0 | Q148: 0 | R148: -1000 | S148: 0
M149: 0 | N149: -1000 | O149: 0 | Q149: 0 | R149: -1000 | S149: 0

Sheet EDM-XL18
A1: DSKD 69. Deutsche Meisterschaft und 19. Europameisterschaft 2017 Mettingen ESKD
A2: DM - Endläufe in der XL Ü18 - Klasse
S3: Bestzeit
A4: Wird der Lauf gewertet? dann 0 oder 1 eintragen | G4: 0 | H4: 1 | I4: 1 | J4: 1 | K4: 1 | L4: 1 | S4: in Vorläufen
E5: Bestzeit je Lauf | G5: =MIN(G9:G149) -> 36.82 | H5: 36.9 | I5: 36.9 | J5: 36.88 | K5: 0 | L5: 0 | S5: =MIN((IF(G4=1,G5,99)), (IF(H4=1,H5,99)), (IF(I4=1,I5,99)), (IF(J4=1,J5,99)), (IF(K4=1,K5,99)), (IF(L4=1,L5,99)) ) -> 0
E6: Mittelwert je Lauf | G6: =IF(G5>0,AVERAGE(G9:G149),0) -> 36.92 | H6: 36.96833333 | I6: 36.98 | J6: 37.01333333 | K6: 0 | L6: 0
A7: Start Nummer | B7: Gruppe | C7: startet | D7: Name | E7: Vorname | F7: Verein | G7: Lauf 1 | H7: Lauf 2 | I7: Lauf 3 | J7: Lauf 4 | K7: Lauf 5 | L7: Lauf 6 | M7: Summe der gewerteten Läufe | O7: Platz | Q7: Mittelwert | S7: Platz
A9: 313 | B9: Ü18 | D9: Rohls | E9: Sebastian | F9: Seifenkistengruppe Stromberg | G9: 36.82 | H9: 36.9 | I9: 36.9 | J9: 36.88 | M9: =(G9*$G$4+H9*$H$4+I9*$I$4+J9*$J$4+K9*$K$4+L9*$L$4) -> 110.68 | N9: =IF(M9>0,M9*-1,-1000) -> -110.68 | O9: =IF(M9>0,RANK(N9,N:N),0) -> 1 | Q9: =IF((G9*$G$4+H9*$H$4+I9*$I$4+J9*$J$4+K9*$K$4+L9*$L$4)>0,(G9*$G$4+H9*$H$4+I9*$I$4+J9*$J$4+K9*$K$4+L9*$L$4)/(IF(G9>0,1*$G$4,0)+IF(H9>0,1*$H$4,0)+IF(I9>0,1*$I$4,0)+IF(J9>0,1*$J$4,0)+IF(K9>0,1*$K$4,0)+IF(L9>0,1*$L$4,0)),0) -> 36.89333333 | R9: =IF(Q9>0,Q9*-1,-1000) -> -36.89333333 | S9: =IF(Q9>0,RANK(R9,R:R),0) -> 1
A10: 304 | B10: Ü18 | D10: Lange | E10: Florian | F10: Jugendclub Mettinger SK-Derby | G10: 36.89 | H10: 36.92 | I10: 37.02 | J10: 36.94 | M10: 110.88 | N10: -110.88 | O10: 2 | Q10: 36.96 | R10: -36.96 | S10: 2
A11: 305 | B11: Ü18 | D11: Voß | E11: Marie-Charlotte | F11: Immer auf Achse Bergkamen | G11: 36.92 | H11: 36.93 | I11: 36.93 | J11: 37.07 | M11: 110.93 | N11: -110.93 | O11: 3 | Q11: 36.97666667 | R11: -36.97666667 | S11: 3
A12: 306 | B12: Ü18 | D12: Isaac | E12: Marvin | F12: Eifeler-Seifenkistenfreunde Simmerath | G12: 36.9 | H12: 36.92 | I12: 37.04 | J12: 37.01 | M12: 110.97 | N12: -110.97 | O12: 4 | Q12: 36.99 | R12: -36.99 | S12: 4
A13: 312 | B13: Ü18 | D13: Hollunder | E13: Christina | F13: Berkel Raser Billerbeck | G13: 37.03 | H13: 37.09 | I13: 36.96 | J13: 37.1 | M13: 111.15 | N13: -111.15 | O13: 5 | Q13: 37.05 | R13: -37.05 | S13: 5
A14: 316 | B14: Ü18 | D14: Bontjes | E14: Sabine | F14: Power Crew Berlin | G14: 36.96 | H14: 37.05 | I14: 37.03 | J14: 37.08 | M14: 111.16 | N14: -111.16 | O14: 6 | Q14: 37.05333333 | R14: -37.05333333 | S14: 6
M15: 0 | N15: -1000 | O15: 0 | Q15: 0 | R15: -1000 | S15: 0
M16: 0 | N16: -1000 | O16: 0 | Q16: 0 | R16: -1000 | S16: 0
M17: 0 | N17: =IF(M17>0,M17*-1,-1000) -> -1000 | O17: 0 | Q17: 0 | R17: -1000 | S17: 0
M18: 0 | N18: =IF(M18>0,M18*-1,-1000) -> -1000 | O18: 0 | Q18: 0 | R18: -1000 | S18: 0
M19: 0 | N19: -1000 | O19: 0 | Q19: 0 | R19: -1000 | S19: 0
M20: 0 | N20: =IF(M20>0,M20*-1,-1000) -> -1000 | O20: 0 | Q20: 0 | R20: -1000 | S20: 0
M21: 0 | N21: =IF(M21>0,M21*-1,-1000) -> -1000 | O21: 0 | Q21: 0 | R21: -1000 | S21: 0
M22: 0 | N22: =IF(M22>0,M22*-1,-1000) -> -1000 | O22: 0 | Q22: 0 | R22: -1000 | S22: 0
M23: 0 | N23: =IF(M23>0,M23*-1,-1000) -> -1000 | O23: 0 | Q23: 0 | R23: -1000 | S23: 0
M24: 0 | N24: -1000 | O24: 0 | Q24: 0 | R24: -1000 | S24: 0
M25: 0 | N25: =IF(M25>0,M25*-1,-1000) -> -1000 | O25: 0 | Q25: 0 | R25: -1000 | S25: 0
M26: 0 | N26: =IF(M26>0,M26*-1,-1000) -> -1000 | O26: 0 | Q26: 0 | R26: -1000 | S26: 0
M27: 0 | N27: =IF(M27>0,M27*-1,-1000) -> -1000 | O27: 0 | Q27: 0 | R27: -1000 | S27: 0
M28: 0 | N28: -1000 | O28: 0 | Q28: 0 | R28: -1000 | S28: 0
M29: 0 | N29: -1000 | O29: 0 | Q29: 0 | R29: -1000 | S29: 0
M30: 0 | N30: -1000 | O30: 0 | Q30: 0 | R30: -1000 | S30: 0
M31: 0 | N31: -1000 | O31: 0 | Q31: 0 | R31: -1000 | S31: 0
M32: 0 | N32: -1000 | O32: 0 | Q32: 0 | R32: -1000 | S32: 0
M33: 0 | N33: -1000 | O33: 0 | Q33: 0 | R33: -1000 | S33: 0
M34: 0 | N34: -1000 | O34: 0 | Q34: 0 | R34: -1000 | S34: 0
M35: 0 | N35: -1000 | O35: 0 | Q35: 0 | R35: -1000 | S35: 0
M36: 0 | N36: =IF(M36>0,M36*-1,-1000) -> -1000 | O36: 0 | Q36: 0 | R36: -1000 | S36: 0
M37: 0 | N37: =IF(M37>0,M37*-1,-1000) -> -1000 | O37: 0 | Q37: 0 | R37: -1000 | S37: 0
M38: 0 | N38: =IF(M38>0,M38*-1,-1000) -> -1000 | O38: 0 | Q38: 0 | R38: -1000 | S38: 0
M39: 0 | N39: =IF(M39>0,M39*-1,-1000) -> -1000 | O39: 0 | Q39: 0 | R39: -1000 | S39: 0
M40: 0 | N40: =IF(M40>0,M40*-1,-1000) -> -1000 | O40: 0 | Q40: 0 | R40: -1000 | S40: 0
M41: 0 | N41: -1000 | O41: 0 | Q41: 0 | R41: -1000 | S41: 0
M42: 0 | N42: =IF(M42>0,M42*-1,-1000) -> -1000 | O42: 0 | Q42: 0 | R42: -1000 | S42: 0
M43: 0 | N43: =IF(M43>0,M43*-1,-1000) -> -1000 | O43: 0 | Q43: 0 | R43: -1000 | S43: 0
M44: 0 | N44: -1000 | O44: 0 | Q44: 0 | R44: -1000 | S44: 0
M45: 0 | N45: -1000 | O45: 0 | Q45: 0 | R45: -1000 | S45: 0
M46: 0 | N46: -1000 | O46: 0 | Q46: 0 | R46: -1000 | S46: 0
M47: 0 | N47: -1000 | O47: 0 | Q47: 0 | R47: -1000 | S47: 0
M48: 0 | N48: -1000 | O48: 0 | Q48: 0 | R48: -1000 | S48: 0
M49: 0 | N49: -1000 | O49: 0 | Q49: 0 | R49: -1000 | S49: 0
M50: 0 | N50: -1000 | O50: 0 | Q50: 0 | R50: -1000 | S50: 0
M51: 0 | N51: -1000 | O51: 0 | Q51: 0 | R51: -1000 | S51: 0
M52: 0 | N52: -1000 | O52: 0 | Q52: 0 | R52: -1000 | S52: 0
M53: 0 | N53: -1000 | O53: 0 | Q53: 0 | R53: -1000 | S53: 0
M54: 0 | N54: -1000 | O54: 0 | Q54: 0 | R54: -1000 | S54: 0
M55: 0 | N55: -1000 | O55: 0 | Q55: 0 | R55: -1000 | S55: 0
M56: 0 | N56: -1000 | O56: 0 | Q56: 0 | R56: -1000 | S56: 0
M57: 0 | N57: -1000 | O57: 0 | Q57: 0 | R57: -1000 | S57: 0
M58: 0 | N58: -1000 | O58: 0 | Q58: 0 | R58: -1000 | S58: 0
M59: 0 | N59: -1000 | O59: 0 | Q59: 0 | R59: -1000 | S59: 0
M60: 0 | N60: -1000 | O60: 0 | Q60: 0 | R60: -1000 | S60: 0
M61: 0 | N61: -1000 | O61: 0 | Q61: 0 | R61: -1000 | S61: 0
M62: 0 | N62: -1000 | O62: 0 | Q62: 0 | R62: -1000 | S62: 0
M63: 0 | N63: -1000 | O63: 0 | Q63: 0 | R63: -1000 | S63: 0
M64: 0 | N64: -1000 | O64: 0 | Q64: 0 | R64: -1000 | S64: 0
M65: 0 | N65: -1000 | O65: 0 | Q65: 0 | R65: -1000 | S65: 0
M66: 0 | N66: -1000 | O66: 0 | Q66: 0 | R66: -1000 | S66: 0
M67: 0 | N67: -1000 | O67: 0 | Q67: 0 | R67: -1000 | S67: 0
M68: 0 | N68: -1000 | O68: 0 | Q68: 0 | R68: -1000 | S68: 0
M69: 0 | N69: -1000 | O69: 0 | Q69: 0 | R69: -1000 | S69: 0
M70: 0 | N70: -1000 | O70: 0 | Q70: 0 | R70: -1000 | S70: 0
M71: 0 | N71: =IF(M71>0,M71*-1,-1000) -> -1000 | O71: 0 | Q71: 0 | R71: -1000 | S71: 0
M72: 0 | N72: =IF(M72>0,M72*-1,-1000) -> -1000 | O72: 0 | Q72: 0 | R72: -1000 | S72: 0
M73: =(G73*$G$4+H73*$H$4+I73*$I$4+J73*$J$4+K73*$K$4+L73*$L$4) -> 0 | N73: =IF(M73>0,M73*-1,-1000) -> -1000 | O73: =IF(M73>0,RANK(N73,N:N),0) -> 0 | Q73: =IF((G73*$G$4+H73*$H$4+I73*$I$4+J73*$J$4+K73*$K$4+L73*$L$4)>0,(G73*$G$4+H73*$H$4+I73*$I$4+J73*$J$4+K73*$K$4+L73*$L$4)/(IF(G73>0,1*$G$4,0)+IF(H73>0,1*$H$4,0)+IF(I73>0,1*$I$4,0)+IF(J73>0,1*$J$4,0)+IF(K73>0,1*$K$4,0)+IF(L73>0,1*$L$4,0)),0) -> 0 | R73: =IF(Q73>0,Q73*-1,-1000) -> -1000 | S73: =IF(Q73>0,RANK(R73,R:R),0) -> 0
M74: 0 | N74: =IF(M74>0,M74*-1,-1000) -> -1000 | O74: 0 | Q74: 0 | R74: -1000 | S74: 0
M75: 0 | N75: =IF(M75>0,M75*-1,-1000) -> -1000 | O75: 0 | Q75: 0 | R75: -1000 | S75: 0
M76: 0 | N76: =IF(M76>0,M76*-1,-1000) -> -1000 | O76: 0 | Q76: 0 | R76: -1000 | S76: 0
M77: 0 | N77: =IF(M77>0,M77*-1,-1000) -> -1000 | O77: 0 | Q77: 0 | R77: -1000 | S77: 0
M78: 0 | N78: -1000 | O78: 0 | Q78: 0 | R78: -1000 | S78: 0
M79: 0 | N79: -1000 | O79: 0 | Q79: 0 | R79: -1000 | S79: 0
M80: 0 | N80: =IF(M80>0,M80*-1,-1000) -> -1000 | O80: 0 | Q80: 0 | R80: -1000 | S80: 0
M81: 0 | N81: =IF(M81>0,M81*-1,-1000) -> -1000 | O81: 0 | Q81: 0 | R81: -1000 | S81: 0
M82: 0 | N82: =IF(M82>0,M82*-1,-1000) -> -1000 | O82: 0 | Q82: 0 | R82: -1000 | S82: 0
M83: 0 | N83: -1000 | O83: 0 | Q83: 0 | R83: -1000 | S83: 0
M84: 0 | N84: -1000 | O84: 0 | Q84: 0 | R84: -1000 | S84: 0
M85: 0 | N85: -1000 | O85: 0 | Q85: 0 | R85: -1000 | S85: 0
M86: 0 | N86: -1000 | O86: 0 | Q86: 0 | R86: -1000 | S86: 0
M87: 0 | N87: -1000 | O87: 0 | Q87: 0 | R87: -1000 | S87: 0
M88: 0 | N88: -1000 | O88: 0 | Q88: 0 | R88: -1000 | S88: 0
M89: 0 | N89: -1000 | O89: 0 | Q89: 0 | R89: -1000 | S89: 0
M90: 0 | N90: =IF(M90>0,M90*-1,-1000) -> -1000 | O90: 0 | Q90: 0 | R90: -1000 | S90: 0
M91: 0 | N91: -1000 | O91: 0 | Q91: 0 | R91: -1000 | S91: 0
M92: 0 | N92: -1000 | O92: 0 | Q92: 0 | R92: -1000 | S92: 0
M93: 0 | N93: -1000 | O93: 0 | Q93: 0 | R93: -1000 | S93: 0
M94: 0 | N94: -1000 | O94: 0 | Q94: 0 | R94: -1000 | S94: 0
M95: 0 | N95: =IF(M95>0,M95*-1,-1000) -> -1000 | O95: 0 | Q95: 0 | R95: -1000 | S95: 0
M96: 0 | N96: -1000 | O96: 0 | Q96: 0 | R96: -1000 | S96: 0
M97: 0 | N97: -1000 | O97: 0 | Q97: 0 | R97: -1000 | S97: 0
M98: 0 | N98: -1000 | O98: 0 | Q98: 0 | R98: -1000 | S98: 0
M99: 0 | N99: -1000 | O99: 0 | Q99: 0 | R99: -1000 | S99: 0
M100: 0 | N100: -1000 | O100: 0 | Q100: 0 | R100: -1000 | S100: 0
M101: 0 | N101: -1000 | O101: 0 | Q101: 0 | R101: -1000 | S101: 0
M102: 0 | N102: -1000 | O102: 0 | Q102: 0 | R102: -1000 | S102: 0
M103: 0 | N103: -1000 | O103: 0 | Q103: 0 | R103: -1000 | S103: 0
M104: 0 | N104: -1000 | O104: 0 | Q104: 0 | R104: -1000 | S104: 0
M105: 0 | N105: -1000 | O105: 0 | Q105: 0 | R105: -1000 | S105: 0
M106: 0 | N106: -1000 | O106: 0 | Q106: 0 | R106: -1000 | S106: 0
M107: 0 | N107: -1000 | O107: 0 | Q107: 0 | R107: -1000 | S107: 0
M108: 0 | N108: -1000 | O108: 0 | Q108: 0 | R108: -1000 | S108: 0
M109: 0 | N109: -1000 | O109: 0 | Q109: 0 | R109: -1000 | S109: 0
M110: 0 | N110: -1000 | O110: 0 | Q110: 0 | R110: -1000 | S110: 0
M111: 0 | N111: -1000 | O111: 0 | Q111: 0 | R111: -1000 | S111: 0
M112: 0 | N112: -1000 | O112: 0 | Q112: 0 | R112: -1000 | S112: 0
M113: 0 | N113: -1000 | O113: 0 | Q113: 0 | R113: -1000 | S113: 0
M114: 0 | N114: -1000 | O114: 0 | Q114: 0 | R114: -1000 | S114: 0
M115: 0 | N115: -1000 | O115: 0 | Q115: 0 | R115: -1000 | S115: 0
M116: 0 | N116: -1000 | O116: 0 | Q116: 0 | R116: -1000 | S116: 0
M117: 0 | N117: -1000 | O117: 0 | Q117: 0 | R117: -1000 | S117: 0
M118: 0 | N118: -1000 | O118: 0 | Q118: 0 | R118: -1000 | S118: 0
M119: 0 | N119: -1000 | O119: 0 | Q119: 0 | R119: -1000 | S119: 0
M120: 0 | N120: -1000 | O120: 0 | Q120: 0 | R120: -1000 | S120: 0
M121: 0 | N121: -1000 | O121: 0 | Q121: 0 | R121: -1000 | S121: 0
M122: 0 | N122: -1000 | O122: 0 | Q122: 0 | R122: -1000 | S122: 0
M123: 0 | N123: -1000 | O123: 0 | Q123: 0 | R123: -1000 | S123: 0
M124: 0 | N124: -1000 | O124: 0 | Q124: 0 | R124: -1000 | S124: 0
M125: 0 | N125: -1000 | O125: 0 | Q125: 0 | R125: -1000 | S125: 0
M126: 0 | N126: -1000 | O126: 0 | Q126: 0 | R126: -1000 | S126: 0
M127: 0 | N127: -1000 | O127: 0 | Q127: 0 | R127: -1000 | S127: 0
M128: 0 | N128: -1000 | O128: 0 | Q128: 0 | R128: -1000 | S128: 0
M129: 0 | N129: -1000 | O129: 0 | Q129: 0 | R129: -1000 | S129: 0
M130: 0 | N130: -1000 | O130: 0 | Q130: 0 | R130: -1000 | S130: 0
M131: 0 | N131: -1000 | O131: 0 | Q131: 0 | R131: -1000 | S131: 0
M132: 0 | N132: -1000 | O132: 0 | Q132: 0 | R132: -1000 | S132: 0
M133: 0 | N133: -1000 | O133: 0 | Q133: 0 | R133: -1000 | S133: 0
M134: 0 | N134: -1000 | O134: 0 | Q134: 0 | R134: -1000 | S134: 0
M135: 0 | N135: -1000 | O135: 0 | Q135: 0 | R135: -1000 | S135: 0
M136: 0 | N136: -1000 | O136: 0 | Q136: 0 | R136: -1000 | S136: 0
M137: =(G137*$G$4+H137*$H$4+I137*$I$4+J137*$J$4+K137*$K$4+L137*$L$4) -> 0 | N137: -1000 | O137: =IF(M137>0,RANK(N137,N:N),0) -> 0 | Q137: =IF((G137*$G$4+H137*$H$4+I137*$I$4+J137*$J$4+K137*$K$4+L137*$L$4)>0,(G137*$G$4+H137*$H$4+I137*$I$4+J137*$J$4+K137*$K$4+L137*$L$4)/(IF(G137>0,1*$G$4,0)+IF(H137>0,1*$H$4,0)+IF(I137>0,1*$I$4,0)+IF(J137>0,1*$J$4,0)+IF(K137>0,1*$K$4,0)+IF(L137>0,1*$L$4,0)),0) -> 0 | R137: -1000 | S137: =IF(Q137>0,RANK(R137,R:R),0) -> 0
M138: 0 | N138: -1000 | O138: 0 | Q138: 0 | R138: -1000 | S138: 0
M139: 0 | N139: -1000 | O139: 0 | Q139: 0 | R139: -1000 | S139: 0
M140: 0 | N140: -1000 | O140: 0 | Q140: 0 | R140: -1000 | S140: 0
M141: 0 | N141: -1000 | O141: 0 | Q141: 0 | R141: -1000 | S141: 0
M142: 0 | N142: -1000 | O142: 0 | Q142: 0 | R142: -1000 | S142: 0
M143: 0 | N143: -1000 | O143: 0 | Q143: 0 | R143: -1000 | S143: 0
M144: 0 | N144: -1000 | O144: 0 | Q144: 0 | R144: -1000 | S144: 0
M145: 0 | N145: -1000 | O145: 0 | Q145: 0 | R145: -1000 | S145: 0
M146: 0 | N146: -1000 | O146: 0 | Q146: 0 | R146: -1000 | S146: 0
M147: 0 | N147: -1000 | O147: 0 | Q147: 0 | R147: -1000 | S147: 0
M148: 0 | N148: -1000 | O148: 0 | Q148: 0 | R148: -1000 | S148: 0
M149: 0 | N149: -1000 | O149: 0 | Q149: 0 | R149: -1000 | S149: 0

Sheet EDMOpen
A1: DSKD 69. Deutsche Meisterschaft und 19. Europameisterschaft 2017 Mettingen ESKD
A2: DM - Endläufe in der DSKD-Open - Klasse
G4: 1 | H4: 1 | I4: 1 | J4: 1 | K4: 1 | L4: 0 | M4: 1
A5: Bestzeit je Lauf | G5: =MIN(G9:G202) -> 37.43 | H5: 37.48 | I5: 36.99 | J5: 37.24 | K5: 0 | L5: 0 | M5: 0
A7: Start Nummer | B7: Gruppe | C7: startet | D7: Name | E7: Vorname | F7: Verein | G7: Lauf 1 | H7: Lauf 2 | I7: Lauf 3 | J7: Lauf 4 | K7: Lauf 5 | L7: Lauf 6 | M7: Summe | O7: Platz
A9: 505 | B9: Open | D9: Ohla | E9: Thorben | F9: SKK Moselflitzer Klüsserath | G9: 37.43 | H9: 37.48 | I9: 37.12 | J9: 37.24 | M9: =IF($G$4=1, IF(H9>1,(ABS(G9-H9)),0)+ IF(I9>1,(ABS(G9-I9)),0)+ IF(J9>1,(ABS(G9-J9)),0)+ IF(K9>1,(ABS(G9-K9)),0)+ IF(L9>1,(ABS(G9-L9)),0), IF(I9>1,(ABS(H9-I9)),0)+ IF(J9>1,(ABS(H9-J9)),0)+ IF(K9>1,(ABS(H9-K9)),0) ) -> 0.55 | N9: =IF(M9>0,M9*-1,-1000) -> -0.55 | O9: =IF(M9>0,RANK(N9,N:N),0) -> 1
A10: 512 | B10: Open | D10: Schmidt | E10: Michael | F10: Friesenflitzer Varel | G10: 37.43 | H10: 37.76 | I10: 36.99 | J10: 37.34 | M10: =IF($G$4=1, IF(H10>1,(ABS(G10-H10)),0)+ IF(I10>1,(ABS(G10-I10)),0)+ IF(J10>1,(ABS(G10-J10)),0)+ IF(K10>1,(ABS(G10-K10)),0)+ IF(L10>1,(ABS(G10-L10)),0), IF(I10>1,(ABS(H10-I10)),0)+ IF(J10>1,(ABS(H10-J10)),0)+ IF(K10>1,(ABS(H10-K10)),0) ) -> 0.86 | N10: =IF(M10>0,M10*-1,-1000) -> -0.86 | O10: =IF(M10>0,RANK(N10,N:N),0) -> 2
A11: 507 | B11: Open | D11: Hollweck | E11: Laura | F11: MSVg Gerolzhofen | G11: 39.4 | H11: 40.11 | I11: 39.27 | J11: 39.44 | M11: =IF($G$4=1, IF(H11>1,(ABS(G11-H11)),0)+ IF(I11>1,(ABS(G11-I11)),0)+ IF(J11>1,(ABS(G11-J11)),0)+ IF(K11>1,(ABS(G11-K11)),0)+ IF(L11>1,(ABS(G11-L11)),0), IF(I11>1,(ABS(H11-I11)),0)+ IF(J11>1,(ABS(H11-J11)),0)+ IF(K11>1,(ABS(H11-K11)),0) ) -> 0.88 | N11: =IF(M11>0,M11*-1,-1000) -> -0.88 | O11: =IF(M11>0,RANK(N11,N:N),0) -> 3
A12: 510 | B12: Open | D12: Ricker | E12: Andreas | F12: Berkel Raser Billerbeck | G12: 40.79 | H12: 41.13 | I12: 40.32 | J12: 40.66 | M12: =IF($G$4=1, IF(H12>1,(ABS(G12-H12)),0)+ IF(I12>1,(ABS(G12-I12)),0)+ IF(J12>1,(ABS(G12-J12)),0)+ IF(K12>1,(ABS(G12-K12)),0)+ IF(L12>1,(ABS(G12-L12)),0), IF(I12>1,(ABS(H12-I12)),0)+ IF(J12>1,(ABS(H12-J12)),0)+ IF(K12>1,(ABS(H12-K12)),0) ) -> 0.94 | N12: =IF(M12>0,M12*-1,-1000) -> -0.94 | O12: =IF(M12>0,RANK(N12,N:N),0) -> 4
M13: =IF($G$4=1, IF(H13>1,(ABS(G13-H13)),0)+ IF(I13>1,(ABS(G13-I13)),0)+ IF(J13>1,(ABS(G13-J13)),0)+ IF(K13>1,(ABS(G13-K13)),0)+ IF(L13>1,(ABS(G13-L13)),0), IF(I13>1,(ABS(H13-I13)),0)+ IF(J13>1,(ABS(H13-J13)),0)+ IF(K13>1,(ABS(H13-K13)),0) ) -> 0 | N13: =IF(M13>0,M13*-1,-1000) -> -1000 | O13: =IF(M13>0,RANK(N13,N:N),0) -> 0
M14: 0 | N14: -1000 | O14: 0
M15: 0 | N15: -1000 | O15: 0
M16: 0 | N16: -1000 | O16: 0
M17: 0 | N17: -1000 | O17: 0
M18: 0 | N18: -1000 | O18: 0
M19: 0 | N19: -1000 | O19: 0
M20: 0 | N20: -1000 | O20: 0
M21: 0 | N21: -1000 | O21: 0
M22: 0 | N22: -1000 | O22: 0
M23: 0 | N23: -1000 | O23: 0
M24: 0 | N24: -1000 | O24: 0
M25: 0 | N25: -1000 | O25: 0
M26: 0 | N26: -1000 | O26: 0
M27: 0 | N27: -1000 | O27: 0
M28: 0 | N28: -1000 | O28: 0
M29: 0 | N29: -1000 | O29: 0
M30: 0 | N30: -1000 | O30: 0
M31: 0 | N31: -1000 | O31: 0
M32: 0 | N32: -1000 | O32: 0
M33: 0 | N33: -1000 | O33: 0
M34: 0 | N34: -1000 | O34: 0
M35: 0 | N35: -1000 | O35: 0
M36: 0 | N36: -1000 | O36: 0
M37: 0 | N37: -1000 | O37: 0
M38: 0 | N38: -1000 | O38: 0
M39: 0 | N39: -1000 | O39: 0
M40: 0 | N40: -1000 | O40: 0
M41: 0 | N41: -1000 | O41: 0
M42: 0 | N42: -1000 | O42: 0
M43: 0 | N43: -1000 | O43: 0
M44: 0 | N44: -1000 | O44: 0
M45: 0 | N45: -1000 | O45: 0
M46: 0 | N46: -1000 | O46: 0
M47: 0 | N47: -1000 | O47: 0
M48: 0 | N48: -1000 | O48: 0
M49: 0 | N49: -1000 | O49: 0
M50: 0 | N50: -1000 | O50: 0
M51: 0 | N51: -1000 | O51: 0
M52: 0 | N52: -1000 | O52: 0
M53: 0 | N53: -1000 | O53: 0
M54: 0 | N54: -1000 | O54: 0
M55: 0 | N55: -1000 | O55: 0
M56: 0 | N56: -1000 | O56: 0
M57: 0 | N57: -1000 | O57: 0
M58: 0 | N58: -1000 | O58: 0
M59: 0 | N59: -1000 | O59: 0
M60: 0 | N60: -1000 | O60: 0
M61: 0 | N61: -1000 | O61: 0
M62: 0 | N62: -1000 | O62: 0
M63: 0 | N63: -1000 | O63: 0
M64: 0 | N64: -1000 | O64: 0
M65: 0 | N65: -1000 | O65: 0
M66: 0 | N66: -1000 | O66: 0
M67: 0 | N67: -1000 | O67: 0
M68: 0 | N68: -1000 | O68: 0
M69: 0 | N69: -1000 | O69: 0
M70: 0 | N70: -1000 | O70: 0
M71: 0 | N71: -1000 | O71: 0
M72: 0 | N72: -1000 | O72: 0
M73: 0 | N73: -1000 | O73: 0
M74: 0 | N74: -1000 | O74: 0
M75: 0 | N75: -1000 | O75: 0
M76: 0 | N76: -1000 | O76: 0
M77: =IF($G$4=1, IF(H77>1,(ABS(G77-H77)),0)+ IF(I77>1,(ABS(G77-I77)),0)+ IF(J77>1,(ABS(G77-J77)),0)+ IF(K77>1,(ABS(G77-K77)),0)+ IF(L77>1,(ABS(G77-L77)),0), IF(I77>1,(ABS(H77-I77)),0)+ IF(J77>1,(ABS(H77-J77)),0)+ IF(K77>1,(ABS(H77-K77)),0) ) -> 0 | N77: =IF(M77>0,M77*-1,-1000) -> -1000 | O77: =IF(M77>0,RANK(N77,N:N),0) -> 0
M78: 0 | N78: -1000 | O78: 0
M79: 0 | N79: -1000 | O79: 0
M80: 0 | N80: -1000 | O80: 0
M81: 0 | N81: -1000 | O81: 0
M82: 0 | N82: -1000 | O82: 0
M83: 0 | N83: -1000 | O83: 0
M84: 0 | N84: -1000 | O84: 0
M85: 0 | N85: -1000 | O85: 0
M86: 0 | N86: -1000 | O86: 0
M87: 0 | N87: -1000 | O87: 0
M88: 0 | N88: -1000 | O88: 0
M89: 0 | N89: -1000 | O89: 0
M90: 0 | N90: -1000 | O90: 0
M91: 0 | N91: -1000 | O91: 0
M92: 0 | N92: -1000 | O92: 0
M93: 0 | N93: -1000 | O93: 0
M94: 0 | N94: -1000 | O94: 0
M95: 0 | N95: -1000 | O95: 0
M96: 0 | N96: -1000 | O96: 0
M97: 0 | N97: -1000 | O97: 0
M98: 0 | N98: -1000 | O98: 0
M99: 0 | N99: -1000 | O99: 0
M100: 0 | N100: -1000 | O100: 0
M101: 0 | N101: -1000 | O101: 0
M102: 0 | N102: -1000 | O102: 0
M103: 0 | N103: -1000 | O103: 0
M104: 0 | N104: -1000 | O104: 0
M105: 0 | N105: -1000 | O105: 0
M106: 0 | N106: -1000 | O106: 0
M107: 0 | N107: -1000 | O107: 0
M108: 0 | N108: -1000 | O108: 0
M109: 0 | N109: -1000 | O109: 0
M110: 0 | N110: -1000 | O110: 0
M111: 0 | N111: -1000 | O111: 0
M112: 0 | N112: -1000 | O112: 0
M113: 0 | N113: -1000 | O113: 0
M114: 0 | N114: -1000 | O114: 0
M115: 0 | N115: -1000 | O115: 0
M116: 0 | N116: -1000 | O116: 0
M117: 0 | N117: -1000 | O117: 0
M118: 0 | N118: -1000 | O118: 0
M119: 0 | N119: -1000 | O119: 0
M120: 0 | N120: -1000 | O120: 0
M121: 0 | N121: -1000 | O121: 0
M122: 0 | N122: -1000 | O122: 0
M123: 0 | N123: -1000 | O123: 0
M124: 0 | N124: -1000 | O124: 0
M125: 0 | N125: -1000 | O125: 0
M126: 0 | N126: -1000 | O126: 0
M127: 0 | N127: -1000 | O127: 0
M128: 0 | N128: -1000 | O128: 0
M129: 0 | N129: -1000 | O129: 0
M130: 0 | N130: -1000 | O130: 0
M131: 0 | N131: -1000 | O131: 0
M132: 0 | N132: -1000 | O132: 0
M133: 0 | N133: -1000 | O133: 0
M134: 0 | N134: -1000 | O134: 0
M135: 0 | N135: -1000 | O135: 0
M136: 0 | N136: -1000 | O136: 0
M137: 0 | N137: -1000 | O137: 0
M138: 0 | N138: -1000 | O138: 0
M139: 0 | N139: -1000 | O139: 0
M140: 0 | N140: -1000 | O140: 0
M141: =IF($G$4=1, IF(H141>1,(ABS(G141-H141)),0)+ IF(I141>1,(ABS(G141-I141)),0)+ IF(J141>1,(ABS(G141-J141)),0)+ IF(K141>1,(ABS(G141-K141)),0)+ IF(L141>1,(ABS(G141-L141)),0), IF(I141>1,(ABS(H141-I141)),0)+ IF(J141>1,(ABS(H141-J141)),0)+ IF(K141>1,(ABS(H141-K141)),0) ) -> 0 | N141: =IF(M141>0,M141*-1,-1000) -> -1000 | O141: =IF(M141>0,RANK(N141,N:N),0) -> 0
M142: 0 | N142: -1000 | O142: 0
M143: 0 | N143: -1000 | O143: 0
M144: 0 | N144: -1000 | O144: 0
M145: 0 | N145: -1000 | O145: 0
M146: 0 | N146: -1000 | O146: 0
M147: 0 | N147: -1000 | O147: 0
M148: 0 | N148: -1000 | O148: 0
M149: 0 | N149: -1000 | O149: 0
M150: 0 | N150: -1000 | O150: 0
M151: 0 | N151: -1000 | O151: 0
M152: 0 | N152: -1000 | O152: 0
M153: 0 | N153: -1000 | O153: 0
M154: 0 | N154: -1000 | O154: 0
M155: 0 | N155: -1000 | O155: 0
M156: 0 | N156: -1000 | O156: 0
M157: 0 | N157: -1000 | O157: 0
M158: 0 | N158: -1000 | O158: 0
M159: 0 | N159: -1000 | O159: 0
M160: 0 | N160: -1000 | O160: 0
M161: 0 | N161: -1000 | O161: 0
M162: 0 | N162: -1000 | O162: 0
M163: 0 | N163: -1000 | O163: 0
M164: 0 | N164: -1000 | O164: 0
M165: 0 | N165: -1000 | O165: 0
M166: 0 | N166: -1000 | O166: 0
M167: 0 | N167: -1000 | O167: 0
M168: 0 | N168: -1000 | O168: 0
M169: 0 | N169: -1000 | O169: 0
M170: 0 | N170: -1000 | O170: 0
M171: 0 | N171: -1000 | O171: 0
M172: 0 | N172: -1000 | O172: 0
M173: 0 | N173: -1000 | O173: 0
M174: 0 | N174: -1000 | O174: 0
M175: 0 | N175: -1000 | O175: 0
M176: 0 | N176: -1000 | O176: 0
M177: 0 | N177: -1000 | O177: 0
M178: 0 | N178: -1000 | O178: 0
M179: 0 | N179: -1000 | O179: 0
M180: 0 | N180: -1000 | O180: 0
M181: 0 | N181: -1000 | O181: 0
M182: 0 | N182: -1000 | O182: 0
M183: 0 | N183: -1000 | O183: 0
M184: 0 | N184: -1000 | O184: 0
M185: 0 | N185: -1000 | O185: 0
M186: 0 | N186: -1000 | O186: 0
M187: 0 | N187: -1000 | O187: 0
M188: 0 | N188: -1000 | O188: 0
M189: 0 | N189: -1000 | O189: 0
M190: 0 | N190: -1000 | O190: 0
M191: 0 | N191: -1000 | O191: 0
M192: 0 | N192: -1000 | O192: 0
M193: 0 | N193: -1000 | O193: 0
M194: 0 | N194: -1000 | O194: 0
M195: 0 | N195: -1000 | O195: 0
M196: 0 | N196: -1000 | O196: 0
M197: 0 | N197: -1000 | O197: 0
M198: 0 | N198: -1000 | O198: 0
M199: 0 | N199: -1000 | O199: 0
M200: 0 | N200: -1000 | O200: 0
M201: 0 | N201: -1000 | O201: 0
M202: 0 | N202: -1000 | O202: 0

Sheet EEM-JUN
A1: DSKD 69. Deutsche Meisterschaft und 19. Europameisterschaft 2017 Mettingen ESKD
A2: EM - Endläufe in der JUNIOR - Klasse
S3: Bestzeit
A4: Wird der Lauf gewertet? dann 0 oder 1 eintragen | G4: 0 | H4: 1 | I4: 1 | J4: 1 | K4: 1 | L4: 1 | S4: in Vorläufen
E5: Bestzeit je Lauf | G5: =MIN(G9:G149) -> 38.23 | H5: 38.21 | I5: 38.45 | J5: 0 | K5: 0 | L5: 0 | S5: =MIN((IF(G4=1,G5,99)), (IF(H4=1,H5,99)), (IF(I4=1,I5,99)), (IF(J4=1,J5,99)), (IF(K4=1,K5,99)), (IF(L4=1,L5,99)) ) -> 0
E6: Mittelwert je Lauf | G6: =IF(G5>0,AVERAGE(G9:G149),0) -> 38.43714286 | H6: 38.51571429 | I6: 38.64642857 | J6: 0 | K6: 0 | L6: 0
A7: Start Nummer | B7: Gruppe | C7: startet | D7: Name | E7: Vorname | F7: Verein | G7: Lauf 1 | H7: Lauf 2 | I7: Lauf 3 | J7: Lauf 4 | K7: Lauf 5 | L7: Lauf 6 | M7: Summe der gewerteten Läufe | O7: Platz | Q7: Mittelwert | S7: Platz
A9: 127 | B9: JUN | D9: Schleuß | E9: Melina | F9: Power Crew Berlin | G9: 38.31 | H9: 38.21 | I9: 38.54 | M9: =(G9*$G$4+H9*$H$4+I9*$I$4+J9*$J$4+K9*$K$4+L9*$L$4) -> 76.75 | N9: =IF(M9>0,M9*-1,-1000) -> -76.75 | O9: =IF(M9>0,RANK(N9,N:N),0) -> 1 | Q9: =IF((G9*$G$4+H9*$H$4+I9*$I$4+J9*$J$4+K9*$K$4+L9*$L$4)>0,(G9*$G$4+H9*$H$4+I9*$I$4+J9*$J$4+K9*$K$4+L9*$L$4)/(IF(G9>0,1*$G$4,0)+IF(H9>0,1*$H$4,0)+IF(I9>0,1*$I$4,0)+IF(J9>0,1*$J$4,0)+IF(K9>0,1*$K$4,0)+IF(L9>0,1*$L$4,0)),0) -> 38.375 | R9: =IF(Q9>0,Q9*-1,-1000) -> -38.375 | S9: =IF(Q9>0,RANK(R9,R:R),0) -> 1
A10: 113 | B10: JUN | D10: Paschedag | E10: Mia | F10: Seifenkistengruppe Stromberg | G10: 38.26 | H10: 38.39 | I10: 38.45 | M10: 76.84 | N10: -76.84 | O10: 2 | Q10: 38.42 | R10: -38.42 | S10: 2
A11: 112 | B11: JUN | D11: Klein | E11: Mika | F11: SKK Moselflitzer Klüsserath | G11: 38.23 | H11: 38.45 | I11: 38.55 | M11: 77 | N11: -77 | O11: 5 | Q11: 38.5 | R11: -38.5 | S11: 5
A12: 121 | B12: JUN | D12: Plath | E12: Marvin | F12: Jugendclub Mettinger SK-Derby | G12: 38.35 | H12: 38.42 | I12: 38.55 | M12: 76.97 | N12: -76.97 | O12: 3 | Q12: 38.485 | R12: -38.485 | S12: 3
A13: 120 | B13: JUN | D13: Reinstein | E13: Carlos | F13: MSVg Gerolzhofen | G13: 38.36 | H13: 38.42 | I13: 38.6 | M13: 77.02 | N13: -77.02 | O13: 6 | Q13: 38.51 | R13: -38.51 | S13: 6
A14: 114 | B14: JUN | D14: Lampe | E14: Ida | F14: Jugendclub Mettinger SK-Derby | G14: 38.31 | H14: 38.48 | I14: 38.58 | M14: 77.06 | N14: -77.06 | O14: 7 | Q14: 38.53 | R14: -38.53 | S14: 7
A15: 119 | B15: JUN | D15: Brandt | E15: Jana | F15: MSVg Gerolzhofen | G15: 38.43 | H15: 38.38 | I15: 38.74 | M15: 77.12 | N15: -77.12 | O15: 9 | Q15: 38.56 | R15: -38.56 | S15: 9
A16: 124 | B16: JUN | D16: Meyhoff | E16: Moritz | F16: Jugendclub Mettinger SK-Derby | G16: 38.37 | H16: 38.46 | I16: 38.64 | M16: 77.1 | N16: -77.1 | O16: 8 | Q16: 38.55 | R16: -38.55 | S16: 8
A17: 105 | B17: JUN | D17: Marunde | E17: Timéo | F17: Frankreich | G17: 38.3 | H17: 38.56 | I17: 38.59 | M17: 77.15 | N17: -77.15 | O17: 10 | Q17: 38.575 | R17: -38.575 | S17: 10
A18: 106 | B18: JUN | D18: Klimpel | E18: Beatrice | F18: Power Crew Berlin | G18: 38.45 | H18: 38.5 | I18: 38.49 | M18: 76.99 | N18: -76.99 | O18: 4 | Q18: 38.495 | R18: -38.495 | S18: 4
A19: 117 | B19: JUN | D19: Salewski | E19: Ben | F19: SKK Moselflitzer Klüsserath | G19: 38.4 | H19: 38.67 | I19: 38.64 | M19: 77.31 | N19: -77.31 | O19: 12 | Q19: 38.655 | R19: -38.655 | S19: 12
B20: JUN | D20: Zaruba | E20: Max | F20: Jugendclub Mettinger SK-Derby | M20: 0 | N20: -1000 | O20: 0 | Q20: 0 | R20: -1000 | S20: 0
A21: 109 | B21: JUN | D21: Kapraun | E21: Tim | F21: Roadrunners Dreieich | G21: 38.62 | H21: 38.68 | I21: 38.54 | M21: 77.22 | N21: -77.22 | O21: 11 | Q21: 38.61 | R21: -38.61 | S21: 11
A22: 128 | B22: JUN | D22: Hieb | E22: Fynn | F22: Familiennetzwerk Hanau | G22: 38.89 | H22: 38.77 | I22: 39.01 | M22: 77.78 | N22: -77.78 | O22: 13 | Q22: 38.89 | R22: -38.89 | S22: 13
A23: 129 | B23: JUN | D23: Nicolescu | E23: Theodor | F23: Rumänien | G23: 38.84 | H23: 38.83 | I23: 39.13 | M23: 77.96 | N23: -77.96 | O23: 14 | Q23: 38.98 | R23: -38.98 | S23: 14
M24: 0 | N24: -1000 | O24: 0 | Q24: 0 | R24: -1000 | S24: 0
M25: 0 | N25: -1000 | O25: 0 | Q25: 0 | R25: -1000 | S25: 0
M26: 0 | N26: -1000 | O26: 0 | Q26: 0 | R26: -1000 | S26: 0
M27: 0 | N27: -1000 | O27: 0 | Q27: 0 | R27: -1000 | S27: 0
M28: 0 | N28: -1000 | O28: 0 | Q28: 0 | R28: -1000 | S28: 0
M29: 0 | N29: -1000 | O29: 0 | Q29: 0 | R29: -1000 | S29: 0
M30: 0 | N30: -1000 | O30: 0 | Q30: 0 | R30: -1000 | S30: 0
M31: 0 | N31: -1000 | O31: 0 | Q31: 0 | R31: -1000 | S31: 0
M32: 0 | N32: -1000 | O32: 0 | Q32: 0 | R32: -1000 | S32: 0
M33: 0 | N33: -1000 | O33: 0 | Q33: 0 | R33: -1000 | S33: 0
M34: 0 | N34: -1000 | O34: 0 | Q34: 0 | R34: -1000 | S34: 0
M35: 0 | N35: -1000 | O35: 0 | Q35: 0 | R35: -1000 | S35: 0
M36: 0 | N36: -1000 | O36: 0 | Q36: 0 | R36: -1000 | S36: 0
M37: 0 | N37: -1000 | O37: 0 | Q37: 0 | R37: -1000 | S37: 0
M38: 0 | N38: -1000 | O38: 0 | Q38: 0 | R38: -1000 | S38: 0
M39: 0 | N39: -1000 | O39: 0 | Q39: 0 | R39: -1000 | S39: 0
M40: 0 | N40: -1000 | O40: 0 | Q40: 0 | R40: -1000 | S40: 0
M41: 0 | N41: -1000 | O41: 0 | Q41: 0 | R41: -1000 | S41: 0
M42: 0 | N42: -1000 | O42: 0 | Q42: 0 | R42: -1000 | S42: 0
M43: 0 | N43: -1000 | O43: 0 | Q43: 0 | R43: -1000 | S43: 0
M44: 0 | N44: -1000 | O44: 0 | Q44: 0 | R44: -1000 | S44: 0
M45: 0 | N45: -1000 | O45: 0 | Q45: 0 | R45: -1000 | S45: 0
M46: 0 | N46: -1000 | O46: 0 | Q46: 0 | R46: -1000 | S46: 0
M47: 0 | N47: -1000 | O47: 0 | Q47: 0 | R47: -1000 | S47: 0
M48: 0 | N48: -1000 | O48: 0 | Q48: 0 | R48: -1000 | S48: 0
M49: 0 | N49: -1000 | O49: 0 | Q49: 0 | R49: -1000 | S49: 0
M50: 0 | N50: -1000 | O50: 0 | Q50: 0 | R50: -1000 | S50: 0
M51: 0 | N51: -1000 | O51: 0 | Q51: 0 | R51: -1000 | S51: 0
M52: 0 | N52: -1000 | O52: 0 | Q52: 0 | R52: -1000 | S52: 0
M53: 0 | N53: -1000 | O53: 0 | Q53: 0 | R53: -1000 | S53: 0
M54: 0 | N54: -1000 | O54: 0 | Q54: 0 | R54: -1000 | S54: 0
M55: 0 | N55: -1000 | O55: 0 | Q55: 0 | R55: -1000 | S55: 0
M56: 0 | N56: -1000 | O56: 0 | Q56: 0 | R56: -1000 | S56: 0
M57: 0 | N57: -1000 | O57: 0 | Q57: 0 | R57: -1000 | S57: 0
M58: 0 | N58: -1000 | O58: 0 | Q58: 0 | R58: -1000 | S58: 0
M59: 0 | N59: -1000 | O59: 0 | Q59: 0 | R59: -1000 | S59: 0
M60: 0 | N60: -1000 | O60: 0 | Q60: 0 | R60: -1000 | S60: 0
M61: 0 | N61: -1000 | O61: 0 | Q61: 0 | R61: -1000 | S61: 0
M62: 0 | N62: -1000 | O62: 0 | Q62: 0 | R62: -1000 | S62: 0
M63: 0 | N63: -1000 | O63: 0 | Q63: 0 | R63: -1000 | S63: 0
M64: 0 | N64: -1000 | O64: 0 | Q64: 0 | R64: -1000 | S64: 0
M65: 0 | N65: -1000 | O65: 0 | Q65: 0 | R65: -1000 | S65: 0
M66: 0 | N66: -1000 | O66: 0 | Q66: 0 | R66: -1000 | S66: 0
M67: 0 | N67: -1000 | O67: 0 | Q67: 0 | R67: -1000 | S67: 0
M68: 0 | N68: -1000 | O68: 0 | Q68: 0 | R68: -1000 | S68: 0
M69: 0 | N69: -1000 | O69: 0 | Q69: 0 | R69: -1000 | S69: 0
M70: 0 | N70: -1000 | O70: 0 | Q70: 0 | R70: -1000 | S70: 0
M71: 0 | N71: -1000 | O71: 0 | Q71: 0 | R71: -1000 | S71: 0
M72: 0 | N72: -1000 | O72: 0 | Q72: 0 | R72: -1000 | S72: 0
M73: =(G73*$G$4+H73*$H$4+I73*$I$4+J73*$J$4+K73*$K$4+L73*$L$4) -> 0 | N73: =IF(M73>0,M73*-1,-1000) -> -1000 | O73: =IF(M73>0,RANK(N73,N:N),0) -> 0 | Q73: =IF((G73*$G$4+H73*$H$4+I73*$I$4+J73*$J$4+K73*$K$4+L73*$L$4)>0,(G73*$G$4+H73*$H$4+I73*$I$4+J73*$J$4+K73*$K$4+L73*$L$4)/(IF(G73>0,1*$G$4,0)+IF(H73>0,1*$H$4,0)+IF(I73>0,1*$I$4,0)+IF(J73>0,1*$J$4,0)+IF(K73>0,1*$K$4,0)+IF(L73>0,1*$L$4,0)),0) -> 0 | R73: =IF(Q73>0,Q73*-1,-1000) -> -1000 | S73: =IF(Q73>0,RANK(R73,R:R),0) -> 0
M74: 0 | N74: -1000 | O74: 0 | Q74: 0 | R74: -1000 | S74: 0
M75: 0 | N75: -1000 | O75: 0 | Q75: 0 | R75: -1000 | S75: 0
M76: 0 | N76: -1000 | O76: 0 | Q76: 0 | R76: -1000 | S76: 0
M77: 0 | N77: -1000 | O77: 0 | Q77: 0 | R77: -1000 | S77: 0
M78: 0 | N78: -1000 | O78: 0 | Q78: 0 | R78: -1000 | S78: 0
M79: 0 | N79: -1000 | O79: 0 | Q79: 0 | R79: -1000 | S79: 0
M80: 0 | N80: -1000 | O80: 0 | Q80: 0 | R80: -1000 | S80: 0
M81: 0 | N81: -1000 | O81: 0 | Q81: 0 | R81: -1000 | S81: 0
M82: 0 | N82: -1000 | O82: 0 | Q82: 0 | R82: -1000 | S82: 0
M83: 0 | N83: -1000 | O83: 0 | Q83: 0 | R83: -1000 | S83: 0
M84: 0 | N84: -1000 | O84: 0 | Q84: 0 | R84: -1000 | S84: 0
M85: 0 | N85: -1000 | O85: 0 | Q85: 0 | R85: -1000 | S85: 0
M86: 0 | N86: -1000 | O86: 0 | Q86: 0 | R86: -1000 | S86: 0
M87: 0 | N87: -1000 | O87: 0 | Q87: 0 | R87: -1000 | S87: 0
M88: 0 | N88: -1000 | O88: 0 | Q88: 0 | R88: -1000 | S88: 0
M89: 0 | N89: -1000 | O89: 0 | Q89: 0 | R89: -1000 | S89: 0
M90: 0 | N90: -1000 | O90: 0 | Q90: 0 | R90: -1000 | S90: 0
M91: 0 | N91: -1000 | O91: 0 | Q91: 0 | R91: -1000 | S91: 0
M92: 0 | N92: -1000 | O92: 0 | Q92: 0 | R92: -1000 | S92: 0
M93: 0 | N93: -1000 | O93: 0 | Q93: 0 | R93: -1000 | S93: 0
M94: 0 | N94: -1000 | O94: 0 | Q94: 0 | R94: -1000 | S94: 0
M95: 0 | N95: -1000 | O95: 0 | Q95: 0 | R95: -1000 | S95: 0
M96: 0 | N96: -1000 | O96: 0 | Q96: 0 | R96: -1000 | S96: 0
M97: 0 | N97: -1000 | O97: 0 | Q97: 0 | R97: -1000 | S97: 0
M98: 0 | N98: -1000 | O98: 0 | Q98: 0 | R98: -1000 | S98: 0
M99: 0 | N99: -1000 | O99: 0 | Q99: 0 | R99: -1000 | S99: 0
M100: 0 | N100: -1000 | O100: 0 | Q100: 0 | R100: -1000 | S100: 0
M101: 0 | N101: -1000 | O101: 0 | Q101: 0 | R101: -1000 | S101: 0
M102: 0 | N102: -1000 | O102: 0 | Q102: 0 | R102: -1000 | S102: 0
M103: 0 | N103: -1000 | O103: 0 | Q103: 0 | R103: -1000 | S103: 0
M104: 0 | N104: -1000 | O104: 0 | Q104: 0 | R104: -1000 | S104: 0
M105: 0 | N105: -1000 | O105: 0 | Q105: 0 | R105: -1000 | S105: 0
M106: 0 | N106: -1000 | O106: 0 | Q106: 0 | R106: -1000 | S106: 0
M107: 0 | N107: -1000 | O107: 0 | Q107: 0 | R107: -1000 | S107: 0
M108: 0 | N108: -1000 | O108: 0 | Q108: 0 | R108: -1000 | S108: 0
M109: 0 | N109: -1000 | O109: 0 | Q109: 0 | R109: -1000 | S109: 0
M110: 0 | N110: -1000 | O110: 0 | Q110: 0 | R110: -1000 | S110: 0
M111: 0 | N111: -1000 | O111: 0 | Q111: 0 | R111: -1000 | S111: 0
M112: 0 | N112: -1000 | O112: 0 | Q112: 0 | R112: -1000 | S112: 0
M113: 0 | N113: -1000 | O113: 0 | Q113: 0 | R113: -1000 | S113: 0
M114: 0 | N114: -1000 | O114: 0 | Q114: 0 | R114: -1000 | S114: 0
M115: 0 | N115: -1000 | O115: 0 | Q115: 0 | R115: -1000 | S115: 0
M116: 0 | N116: -1000 | O116: 0 | Q116: 0 | R116: -1000 | S116: 0
M117: 0 | N117: -1000 | O117: 0 | Q117: 0 | R117: -1000 | S117: 0
M118: 0 | N118: -1000 | O118: 0 | Q118: 0 | R118: -1000 | S118: 0
M119: 0 | N119: -1000 | O119: 0 | Q119: 0 | R119: -1000 | S119: 0
M120: 0 | N120: -1000 | O120: 0 | Q120: 0 | R120: -1000 | S120: 0
M121: 0 | N121: -1000 | O121: 0 | Q121: 0 | R121: -1000 | S121: 0
M122: 0 | N122: -1000 | O122: 0 | Q122: 0 | R122: -1000 | S122: 0
M123: 0 | N123: -1000 | O123: 0 | Q123: 0 | R123: -1000 | S123: 0
M124: 0 | N124: -1000 | O124: 0 | Q124: 0 | R124: -1000 | S124: 0
M125: 0 | N125: -1000 | O125: 0 | Q125: 0 | R125: -1000 | S125: 0
M126: 0 | N126: -1000 | O126: 0 | Q126: 0 | R126: -1000 | S126: 0
M127: 0 | N127: -1000 | O127: 0 | Q127: 0 | R127: -1000 | S127: 0
M128: 0 | N128: -1000 | O128: 0 | Q128: 0 | R128: -1000 | S128: 0
M129: 0 | N129: -1000 | O129: 0 | Q129: 0 | R129: -1000 | S129: 0
M130: 0 | N130: -1000 | O130: 0 | Q130: 0 | R130: -1000 | S130: 0
M131: 0 | N131: -1000 | O131: 0 | Q131: 0 | R131: -1000 | S131: 0
M132: 0 | N132: -1000 | O132: 0 | Q132: 0 | R132: -1000 | S132: 0
M133: 0 | N133: -1000 | O133: 0 | Q133: 0 | R133: -1000 | S133: 0
M134: 0 | N134: -1000 | O134: 0 | Q134: 0 | R134: -1000 | S134: 0
M135: 0 | N135: -1000 | O135: 0 | Q135: 0 | R135: -1000 | S135: 0
M136: 0 | N136: -1000 | O136: 0 | Q136: 0 | R136: -1000 | S136: 0
M137: =(G137*$G$4+H137*$H$4+I137*$I$4+J137*$J$4+K137*$K$4+L137*$L$4) -> 0 | N137: =IF(M137>0,M137*-1,-1000) -> -1000 | O137: =IF(M137>0,RANK(N137,N:N),0) -> 0 | Q137: =IF((G137*$G$4+H137*$H$4+I137*$I$4+J137*$J$4+K137*$K$4+L137*$L$4)>0,(G137*$G$4+H137*$H$4+I137*$I$4+J137*$J$4+K137*$K$4+L137*$L$4)/(IF(G137>0,1*$G$4,0)+IF(H137>0,1*$H$4,0)+IF(I137>0,1*$I$4,0)+IF(J137>0,1*$J$4,0)+IF(K137>0,1*$K$4,0)+IF(L137>0,1*$L$4,0)),0) -> 0 | R137: =IF(Q137>0,Q137*-1,-1000) -> -1000 | S137: =IF(Q137>0,RANK(R137,R:R),0) -> 0
M138: 0 | N138: -1000 | O138: 0 | Q138: 0 | R138: -1000 | S138: 0
M139: 0 | N139: -1000 | O139: 0 | Q139: 0 | R139: -1000 | S139: 0
M140: 0 | N140: -1000 | O140: 0 | Q140: 0 | R140: -1000 | S140: 0
M141: 0 | N141: -1000 | O141: 0 | Q141: 0 | R141: -1000 | S141: 0
M142: 0 | N142: -1000 | O142: 0 | Q142: 0 | R142: -1000 | S142: 0
M143: 0 | N143: -1000 | O143: 0 | Q143: 0 | R143: -1000 | S143: 0
M144: 0 | N144: -1000 | O144: 0 | Q144: 0 | R144: -1000 | S144: 0
M145: 0 | N145: -1000 | O145: 0 | Q145: 0 | R145: -1000 | S145: 0
M146: 0 | N146: -1000 | O146: 0 | Q146: 0 | R146: -1000 | S146: 0
M147: 0 | N147: -1000 | O147: 0 | Q147: 0 | R147: -1000 | S147: 0
M148: 0 | N148: -1000 | O148: 0 | Q148: 0 | R148: -1000 | S148: 0
M149: 0 | N149: -1000 | O149: 0 | Q149: 0 | R149: -1000 | S149: 0

Sheet EEM-SEN
A1: DSKD 69. Deutsche Meisterschaft und 19. Europameisterschaft 2017 Mettingen ESKD
A2: EM - Endläufe in der SENIOR - Klasse
S3: Bestzeit
A4: Wird der Lauf gewertet? dann 0 oder 1 eintragen | G4: 1 | H4: 1 | I4: 1 | J4: 1 | K4: 1 | L4: 0 | S4: in Vorläufen
E5: Bestzeit je Lauf | G5: =MIN(G9:G149) -> 36.71 | H5: 36.76 | I5: 0 | J5: 0 | K5: 0 | L5: 100 | S5: =MIN((IF(G4=1,G5,99)), (IF(H4=1,H5,99)), (IF(I4=1,I5,99)), (IF(J4=1,J5,99)), (IF(K4=1,K5,99)), (IF(L4=1,L5,99)) ) -> 0
E6: Mittelwert je Lauf | G6: =IF(G5>0,AVERAGE(G9:G149),0) -> 37.00333333 | H6: 37.0475 | I6: 0 | J6: 0 | K6: 0 | L6: 100
A7: Start Nummer | B7: Gruppe | C7: startet | D7: Name | E7: Vorname | F7: Verein | G7: Lauf 1 | H7: Lauf 2 | I7: Lauf 3 | J7: Lauf 4 | K7: Lauf 5 | L7: Lauf 6 | M7: Summe der gewerteten Läufe | O7: Platz | Q7: Mittelwert | S7: Platz
A9: 407 | B9: SEN | D9: Meyer | E9: Henry | F9: Jugendclub Mettinger SK-Derby | G9: 36.71 | H9: 36.79 | M9: =(G9*$G$4+H9*$H$4+I9*$I$4+J9*$J$4+K9*$K$4+L9*$L$4) -> 73.5 | N9: =IF(M9>0,M9*-1,-1000) -> -73.5 | O9: =IF(M9>0,RANK(N9,N:N),0) -> 1 | Q9: =IF((G9*$G$4+H9*$H$4+I9*$I$4+J9*$J$4+K9*$K$4+L9*$L$4)>0,(G9*$G$4+H9*$H$4+I9*$I$4+J9*$J$4+K9*$K$4+L9*$L$4)/(IF(G9>0,1*$G$4,0)+IF(H9>0,1*$H$4,0)+IF(I9>0,1*$I$4,0)+IF(J9>0,1*$J$4,0)+IF(K9>0,1*$K$4,0)+IF(L9>0,1*$L$4,0)),0) -> 36.75 | R9: =IF(Q9>0,Q9*-1,-1000) -> -36.75 | S9: =IF(Q9>0,RANK(R9,R:R),0) -> 1
A10: 415 | B10: SEN | D10: Freudenstein | E10: Rieke | F10: Jugendclub Mettinger SK-Derby | G10: 36.84 | H10: 36.76 | M10: 73.6 | N10: -73.6 | O10: 2 | Q10: 36.8 | R10: -36.8 | S10: 2
A11: 420 | B11: SEN | D11: Schrüfer | E11: Stella | F11: Seifenkistenfreunde Nürnberg | G11: 36.76 | H11: 36.93 | M11: 73.69 | N11: -73.69 | O11: 3 | Q11: 36.845 | R11: -36.845 | S11: 3
A12: 410 | B12: SEN | D12: Hoebertz | E12: Max Ole | F12: Power Crew Berlin | G12: 36.89 | H12: 36.84 | M12: 73.73 | N12: -73.73 | O12: 4 | Q12: 36.865 | R12: -36.865 | S12: 4
A13: 404 | B13: SEN | D13: Lampe | E13: Pia | F13: Jugendclub Mettinger SK-Derby | G13: 36.87 | H13: 37.11 | M13: 73.98 | N13: -73.98 | O13: 5 | Q13: 36.99 | R13: -36.99 | S13: 5
A14: 409 | B14: SEN | D14: Reinstein | E14: Marie | F14: MSVg Gerolzhofen | G14: 36.99 | H14: 37.05 | M14: 74.04 | N14: -74.04 | O14: 6 | Q14: 37.02 | R14: -37.02 | S14: 6
A15: 416 | B15: SEN | D15: Klimpel | E15: Benedikt | F15: SK-Verband Baden-Württemberg | G15: 37.1 | H15: 37.07 | M15: 74.17 | N15: -74.17 | O15: 7 | Q15: 37.085 | R15: -37.085 | S15: 7
A16: 412 | B16: SEN | D16: Salewski | E16: Lena | F16: SKK Moselflitzer Klüsserath | G16: 37.07 | H16: 37.13 | M16: 74.2 | N16: -74.2 | O16: 8 | Q16: 37.1 | R16: -37.1 | S16: 8
A17: 417 | B17: SEN | D17: Krebs | E17: Luca | F17: Roadrunners Dreieich | G17: 37.07 | H17: 37.16 | M17: 74.23 | N17: -74.23 | O17: 9 | Q17: 37.115 | R17: -37.115 | S17: 9
A18: 424 | B18: SEN | D18: Brandelik | E18: Wiebke | F18: SK-Verband Baden-Württemberg | G18: 37.11 | H18: 37.15 | M18: 74.26 | N18: -74.26 | O18: 10 | Q18: 37.13 | R18: -37.13 | S18: 10
A19: 418 | B19: SEN | D19: Reuscher | E19: Silas | F19: Joker-Team Berlin | G19: 37.29 | H19: 37.14 | M19: 74.43 | N19: -74.43 | O19: 11 | Q19: 37.215 | R19: -37.215 | S19: 11
A20: 414 | B20: SEN | D20: Adam | E20: Alexander | F20: Familiennetzwerk Hanau | G20: 37.34 | H20: 37.44 | M20: 74.78 | N20: -74.78 | O20: 12 | Q20: 37.39 | R20: -37.39 | S20: 12
A21: 423 | B21: SEN | D21: Gößling | E21: Jule | F21: Jugendclub Mettinger SK-Derby | L21: 100 | M21: 0 | N21: -1000 | O21: 0 | Q21: 0 | R21: -1000 | S21: 0
M22: 0 | N22: -1000 | O22: 0 | Q22: 0 | R22: -1000 | S22: 0
M23: 0 | N23: -1000 | O23: 0 | Q23: 0 | R23: -1000 | S23: 0
M24: 0 | N24: -1000 | O24: 0 | Q24: 0 | R24: -1000 | S24: 0
M25: 0 | N25: -1000 | O25: 0 | Q25: 0 | R25: -1000 | S25: 0
M26: 0 | N26: -1000 | O26: 0 | Q26: 0 | R26: -1000 | S26: 0
M27: 0 | N27: -1000 | O27: 0 | Q27: 0 | R27: -1000 | S27: 0
M28: 0 | N28: -1000 | O28: 0 | Q28: 0 | R28: -1000 | S28: 0
M29: 0 | N29: -1000 | O29: 0 | Q29: 0 | R29: -1000 | S29: 0
M30: 0 | N30: -1000 | O30: 0 | Q30: 0 | R30: -1000 | S30: 0
M31: 0 | N31: -1000 | O31: 0 | Q31: 0 | R31: -1000 | S31: 0
M32: 0 | N32: -1000 | O32: 0 | Q32: 0 | R32: -1000 | S32: 0
M33: 0 | N33: -1000 | O33: 0 | Q33: 0 | R33: -1000 | S33: 0
M34: 0 | N34: -1000 | O34: 0 | Q34: 0 | R34: -1000 | S34: 0
M35: 0 | N35: -1000 | O35: 0 | Q35: 0 | R35: -1000 | S35: 0
M36: 0 | N36: -1000 | O36: 0 | Q36: 0 | R36: -1000 | S36: 0
M37: 0 | N37: -1000 | O37: 0 | Q37: 0 | R37: -1000 | S37: 0
M38: 0 | N38: -1000 | O38: 0 | Q38: 0 | R38: -1000 | S38: 0
M39: 0 | N39: -1000 | O39: 0 | Q39: 0 | R39: -1000 | S39: 0
M40: 0 | N40: -1000 | O40: 0 | Q40: 0 | R40: -1000 | S40: 0
M41: 0 | N41: -1000 | O41: 0 | Q41: 0 | R41: -1000 | S41: 0
M42: 0 | N42: -1000 | O42: 0 | Q42: 0 | R42: -1000 | S42: 0
M43: 0 | N43: -1000 | O43: 0 | Q43: 0 | R43: -1000 | S43: 0
M44: 0 | N44: -1000 | O44: 0 | Q44: 0 | R44: -1000 | S44: 0
M45: 0 | N45: -1000 | O45: 0 | Q45: 0 | R45: -1000 | S45: 0
M46: 0 | N46: -1000 | O46: 0 | Q46: 0 | R46: -1000 | S46: 0
M47: 0 | N47: -1000 | O47: 0 | Q47: 0 | R47: -1000 | S47: 0
M48: 0 | N48: -1000 | O48: 0 | Q48: 0 | R48: -1000 | S48: 0
M49: 0 | N49: -1000 | O49: 0 | Q49: 0 | R49: -1000 | S49: 0
M50: 0 | N50: -1000 | O50: 0 | Q50: 0 | R50: -1000 | S50: 0
M51: 0 | N51: -1000 | O51: 0 | Q51: 0 | R51: -1000 | S51: 0
M52: 0 | N52: -1000 | O52: 0 | Q52: 0 | R52: -1000 | S52: 0
M53: 0 | N53: -1000 | O53: 0 | Q53: 0 | R53: -1000 | S53: 0
M54: 0 | N54: -1000 | O54: 0 | Q54: 0 | R54: -1000 | S54: 0
M55: 0 | N55: -1000 | O55: 0 | Q55: 0 | R55: -1000 | S55: 0
M56: 0 | N56: -1000 | O56: 0 | Q56: 0 | R56: -1000 | S56: 0
M57: 0 | N57: -1000 | O57: 0 | Q57: 0 | R57: -1000 | S57: 0
M58: 0 | N58: -1000 | O58: 0 | Q58: 0 | R58: -1000 | S58: 0
M59: 0 | N59: -1000 | O59: 0 | Q59: 0 | R59: -1000 | S59: 0
M60: 0 | N60: -1000 | O60: 0 | Q60: 0 | R60: -1000 | S60: 0
M61: 0 | N61: -1000 | O61: 0 | Q61: 0 | R61: -1000 | S61: 0
M62: 0 | N62: -1000 | O62: 0 | Q62: 0 | R62: -1000 | S62: 0
M63: 0 | N63: -1000 | O63: 0 | Q63: 0 | R63: -1000 | S63: 0
M64: 0 | N64: -1000 | O64: 0 | Q64: 0 | R64: -1000 | S64: 0
M65: 0 | N65: -1000 | O65: 0 | Q65: 0 | R65: -1000 | S65: 0
M66: 0 | N66: -1000 | O66: 0 | Q66: 0 | R66: -1000 | S66: 0
M67: 0 | N67: -1000 | O67: 0 | Q67: 0 | R67: -1000 | S67: 0
M68: 0 | N68: -1000 | O68: 0 | Q68: 0 | R68: -1000 | S68: 0
M69: 0 | N69: -1000 | O69: 0 | Q69: 0 | R69: -1000 | S69: 0
M70: 0 | N70: -1000 | O70: 0 | Q70: 0 | R70: -1000 | S70: 0
M71: 0 | N71: -1000 | O71: 0 | Q71: 0 | R71: -1000 | S71: 0
M72: 0 | N72: -1000 | O72: 0 | Q72: 0 | R72: -1000 | S72: 0
M73: =(G73*$G$4+H73*$H$4+I73*$I$4+J73*$J$4+K73*$K$4+L73*$L$4) -> 0 | N73: =IF(M73>0,M73*-1,-1000) -> -1000 | O73: =IF(M73>0,RANK(N73,N:N),0) -> 0 | Q73: =IF((G73*$G$4+H73*$H$4+I73*$I$4+J73*$J$4+K73*$K$4+L73*$L$4)>0,(G73*$G$4+H73*$H$4+I73*$I$4+J73*$J$4+K73*$K$4+L73*$L$4)/(IF(G73>0,1*$G$4,0)+IF(H73>0,1*$H$4,0)+IF(I73>0,1*$I$4,0)+IF(J73>0,1*$J$4,0)+IF(K73>0,1*$K$4,0)+IF(L73>0,1*$L$4,0)),0) -> 0 | R73: =IF(Q73>0,Q73*-1,-1000) -> -1000 | S73: =IF(Q73>0,RANK(R73,R:R),0) -> 0
M74: 0 | N74: -1000 | O74: 0 | Q74: 0 | R74: -1000 | S74: 0
M75: 0 | N75: -1000 | O75: 0 | Q75: 0 | R75: -1000 | S75: 0
M76: 0 | N76: -1000 | O76: 0 | Q76: 0 | R76: -1000 | S76: 0
M77: 0 | N77: -1000 | O77: 0 | Q77: 0 | R77: -1000 | S77: 0
M78: 0 | N78: -1000 | O78: 0 | Q78: 0 | R78: -1000 | S78: 0
M79: 0 | N79: -1000 | O79: 0 | Q79: 0 | R79: -1000 | S79: 0
M80: 0 | N80: -1000 | O80: 0 | Q80: 0 | R80: -1000 | S80: 0
M81: 0 | N81: -1000 | O81: 0 | Q81: 0 | R81: -1000 | S81: 0
M82: 0 | N82: -1000 | O82: 0 | Q82: 0 | R82: -1000 | S82: 0
M83: 0 | N83: -1000 | O83: 0 | Q83: 0 | R83: -1000 | S83: 0
M84: 0 | N84: -1000 | O84: 0 | Q84: 0 | R84: -1000 | S84: 0
M85: 0 | N85: -1000 | O85: 0 | Q85: 0 | R85: -1000 | S85: 0
M86: 0 | N86: -1000 | O86: 0 | Q86: 0 | R86: -1000 | S86: 0
M87: 0 | N87: -1000 | O87: 0 | Q87: 0 | R87: -1000 | S87: 0
M88: 0 | N88: -1000 | O88: 0 | Q88: 0 | R88: -1000 | S88: 0
M89: 0 | N89: -1000 | O89: 0 | Q89: 0 | R89: -1000 | S89: 0
M90: 0 | N90: -1000 | O90: 0 | Q90: 0 | R90: -1000 | S90: 0
M91: 0 | N91: -1000 | O91: 0 | Q91: 0 | R91: -1000 | S91: 0
M92: 0 | N92: -1000 | O92: 0 | Q92: 0 | R92: -1000 | S92: 0
M93: 0 | N93: -1000 | O93: 0 | Q93: 0 | R93: -1000 | S93: 0
M94: 0 | N94: -1000 | O94: 0 | Q94: 0 | R94: -1000 | S94: 0
M95: 0 | N95: -1000 | O95: 0 | Q95: 0 | R95: -1000 | S95: 0
M96: 0 | N96: -1000 | O96: 0 | Q96: 0 | R96: -1000 | S96: 0
M97: 0 | N97: -1000 | O97: 0 | Q97: 0 | R97: -1000 | S97: 0
M98: 0 | N98: -1000 | O98: 0 | Q98: 0 | R98: -1000 | S98: 0
M99: 0 | N99: -1000 | O99: 0 | Q99: 0 | R99: -1000 | S99: 0
M100: 0 | N100: -1000 | O100: 0 | Q100: 0 | R100: -1000 | S100: 0
M101: 0 | N101: -1000 | O101: 0 | Q101: 0 | R101: -1000 | S101: 0
M102: 0 | N102: -1000 | O102: 0 | Q102: 0 | R102: -1000 | S102: 0
M103: 0 | N103: -1000 | O103: 0 | Q103: 0 | R103: -1000 | S103: 0
M104: 0 | N104: -1000 | O104: 0 | Q104: 0 | R104: -1000 | S104: 0
M105: 0 | N105: -1000 | O105: 0 | Q105: 0 | R105: -1000 | S105: 0
M106: 0 | N106: -1000 | O106: 0 | Q106: 0 | R106: -1000 | S106: 0
M107: 0 | N107: -1000 | O107: 0 | Q107: 0 | R107: -1000 | S107: 0
M108: 0 | N108: -1000 | O108: 0 | Q108: 0 | R108: -1000 | S108: 0
M109: 0 | N109: -1000 | O109: 0 | Q109: 0 | R109: -1000 | S109: 0
M110: 0 | N110: -1000 | O110: 0 | Q110: 0 | R110: -1000 | S110: 0
M111: 0 | N111: -1000 | O111: 0 | Q111: 0 | R111: -1000 | S111: 0
M112: 0 | N112: -1000 | O112: 0 | Q112: 0 | R112: -1000 | S112: 0
M113: 0 | N113: -1000 | O113: 0 | Q113: 0 | R113: -1000 | S113: 0
M114: 0 | N114: -1000 | O114: 0 | Q114: 0 | R114: -1000 | S114: 0
M115: 0 | N115: -1000 | O115: 0 | Q115: 0 | R115: -1000 | S115: 0
M116: 0 | N116: -1000 | O116: 0 | Q116: 0 | R116: -1000 | S116: 0
M117: 0 | N117: -1000 | O117: 0 | Q117: 0 | R117: -1000 | S117: 0
M118: 0 | N118: -1000 | O118: 0 | Q118: 0 | R118: -1000 | S118: 0
M119: 0 | N119: -1000 | O119: 0 | Q119: 0 | R119: -1000 | S119: 0
M120: 0 | N120: -1000 | O120: 0 | Q120: 0 | R120: -1000 | S120: 0
M121: 0 | N121: -1000 | O121: 0 | Q121: 0 | R121: -1000 | S121: 0
M122: 0 | N122: -1000 | O122: 0 | Q122: 0 | R122: -1000 | S122: 0
M123: 0 | N123: -1000 | O123: 0 | Q123: 0 | R123: -1000 | S123: 0
M124: 0 | N124: -1000 | O124: 0 | Q124: 0 | R124: -1000 | S124: 0
M125: 0 | N125: -1000 | O125: 0 | Q125: 0 | R125: -1000 | S125: 0
M126: 0 | N126: -1000 | O126: 0 | Q126: 0 | R126: -1000 | S126: 0
M127: 0 | N127: -1000 | O127: 0 | Q127: 0 | R127: -1000 | S127: 0
M128: 0 | N128: -1000 | O128: 0 | Q128: 0 | R128: -1000 | S128: 0
M129: 0 | N129: -1000 | O129: 0 | Q129: 0 | R129: -1000 | S129: 0
M130: 0 | N130: -1000 | O130: 0 | Q130: 0 | R130: -1000 | S130: 0
M131: 0 | N131: -1000 | O131: 0 | Q131: 0 | R131: -1000 | S131: 0
M132: 0 | N132: -1000 | O132: 0 | Q132: 0 | R132: -1000 | S132: 0
M133: 0 | N133: -1000 | O133: 0 | Q133: 0 | R133: -1000 | S133: 0
M134: 0 | N134: -1000 | O134: 0 | Q134: 0 | R134: -1000 | S134: 0
M135: 0 | N135: -1000 | O135: 0 | Q135: 0 | R135: -1000 | S135: 0
M136: 0 | N136: -1000 | O136: 0 | Q136: 0 | R136: -1000 | S136: 0
M137: =(G137*$G$4+H137*$H$4+I137*$I$4+J137*$J$4+K137*$K$4+L137*$L$4) -> 0 | N137: =IF(M137>0,M137*-1,-1000) -> -1000 | O137: =IF(M137>0,RANK(N137,N:N),0) -> 0 | Q137: =IF((G137*$G$4+H137*$H$4+I137*$I$4+J137*$J$4+K137*$K$4+L137*$L$4)>0,(G137*$G$4+H137*$H$4+I137*$I$4+J137*$J$4+K137*$K$4+L137*$L$4)/(IF(G137>0,1*$G$4,0)+IF(H137>0,1*$H$4,0)+IF(I137>0,1*$I$4,0)+IF(J137>0,1*$J$4,0)+IF(K137>0,1*$K$4,0)+IF(L137>0,1*$L$4,0)),0) -> 0 | R137: =IF(Q137>0,Q137*-1,-1000) -> -1000 | S137: =IF(Q137>0,RANK(R137,R:R),0) -> 0
M138: 0 | N138: -1000 | O138: 0 | Q138: 0 | R138: -1000 | S138: 0
M139: 0 | N139: -1000 | O139: 0 | Q139: 0 | R139: -1000 | S139: 0
M140: 0 | N140: -1000 | O140: 0 | Q140: 0 | R140: -1000 | S140: 0
M141: 0 | N141: -1000 | O141: 0 | Q141: 0 | R141: -1000 | S141: 0
M142: 0 | N142: -1000 | O142: 0 | Q142: 0 | R142: -1000 | S142: 0
M143: 0 | N143: -1000 | O143: 0 | Q143: 0 | R143: -1000 | S143: 0
M144: 0 | N144: -1000 | O144: 0 | Q144: 0 | R144: -1000 | S144: 0
M145: 0 | N145: -1000 | O145: 0 | Q145: 0 | R145: -1000 | S145: 0
M146: 0 | N146: -1000 | O146: 0 | Q146: 0 | R146: -1000 | S146: 0
M147: 0 | N147: -1000 | O147: 0 | Q147: 0 | R147: -1000 | S147: 0
M148: 0 | N148: -1000 | O148: 0 | Q148: 0 | R148: -1000 | S148: 0
M149: 0 | N149: -1000 | O149: 0 | Q149: 0 | R149: -1000 | S149: 0

Sheet EEM-XL
A1: DSKD 69. Deutsche Meisterschaft und 19. Europameisterschaft 2017 Mettingen ESKD
A2: EM - Endläufe in der Elite XL - Klasse
S3: Bestzeit
A4: Wird der Lauf gewertet? dann 0 oder 1 eintragen | G4: 1 | H4: 1 | I4: 0 | J4: 1 | K4: 1 | L4: 1 | S4: in Vorläufen
E5: Bestzeit je Lauf | G5: =MIN(G9:G149) -> 36.79 | H5: 36.87 | I5: 36.93 | J5: 0 | K5: 0 | L5: 0 | S5: =MIN((IF(G4=1,G5,99)), (IF(H4=1,H5,99)), (IF(I4=1,I5,99)), (IF(J4=1,J5,99)), (IF(K4=1,K5,99)), (IF(L4=1,L5,99)) ) -> 0
E6: Mittelwert je Lauf | G6: =IF(G5>0,AVERAGE(G9:G149),0) -> 37.12666667 | H6: 37.21666667 | I6: 37.30444444 | J6: 0 | K6: 0 | L6: 0
A7: Start Nummer | B7: Gruppe | C7: startet | D7: Name | E7: Vorname | F7: Verein | G7: Lauf 1 | H7: Lauf 2 | I7: Lauf 3 | J7: Lauf 4 | K7: Lauf 5 | L7: Lauf 6 | M7: Summe der gewerteten Läufe | O7: Platz | Q7: Mittelwert | S7: Platz
A9: 210 | B9: Elite XL | D9: Strohmaier | E9: Sebastian | F9: SV Losaurach | G9: 36.79 | H9: 36.87 | I9: 36.93 | M9: =(G9*$G$4+H9*$H$4+I9*$I$4+J9*$J$4+K9*$K$4+L9*$L$4) -> 73.66 | N9: =IF(M9>0,M9*-1,-1000) -> -73.66 | O9: =IF(M9>0,RANK(N9,N:N),0) -> 1 | Q9: =IF((G9*$G$4+H9*$H$4+I9*$I$4+J9*$J$4+K9*$K$4+L9*$L$4)>0,(G9*$G$4+H9*$H$4+I9*$I$4+J9*$J$4+K9*$K$4+L9*$L$4)/(IF(G9>0,1*$G$4,0)+IF(H9>0,1*$H$4,0)+IF(I9>0,1*$I$4,0)+IF(J9>0,1*$J$4,0)+IF(K9>0,1*$K$4,0)+IF(L9>0,1*$L$4,0)),0) -> 36.83 | R9: =IF(Q9>0,Q9*-1,-1000) -> -36.83 | S9: =IF(Q9>0,RANK(R9,R:R),0) -> 1
A10: 205 | B10: Elite XL | D10: Braun | E10: Armin | F10: MSVg Gerolzhofen | G10: 37.06 | H10: 37.03 | I10: 37.24 | M10: 74.09 | N10: -74.09 | O10: 2 | Q10: 37.045 | R10: -37.045 | S10: 2
A11: 209 | B11: Elite XL | D11: Nießen | E11: Nicolas | F11: Eifeler-Seifenkistenfreunde Simmerath | G11: 37.05 | H11: 37.12 | I11: 37.2 | M11: 74.17 | N11: -74.17 | O11: 3 | Q11: 37.085 | R11: -37.085 | S11: 3
A12: 203 | B12: Elite XL | D12: Reinicke | E12: Tim | F12: Power Crew Berlin | G12: 37.05 | H12: 37.21 | I12: 37.24 | M12: 74.26 | N12: -74.26 | O12: 4 | Q12: 37.13 | R12: -37.13 | S12: 4
A13: 212 | B13: Elite XL | D13: Ricker | E13: Jana-Lena | F13: Berkel Raser Billerbeck | G13: 37.17 | H13: 37.31 | I13: 37.43 | M13: 74.48 | N13: -74.48 | O13: 5 | Q13: 37.24 | R13: -37.24 | S13: 5
A14: 202 | B14: Elite XL | D14: Schmidt | E14: Marvin | F14: Friesenflitzer Varel | G14: 37.21 | H14: 37.34 | I14: 37.39 | M14: 74.55 | N14: -74.55 | O14: 6 | Q14: 37.275 | R14: -37.275 | S14: 6
A15: 207 | B15: Elite XL | D15: Herberth | E15: Yannick | F15: SK-Verband Baden-Württemberg | G15: 37.17 | H15: 37.38 | I15: 37.31 | M15: 74.55 | N15: -74.55 | O15: 6 | Q15: 37.275 | R15: -37.275 | S15: 6
A16: 201 | B16: Elite XL | D16: Herberth | E16: Laura | F16: SK-Verband Baden-Württemberg | G16: 37.21 | H16: 37.37 | I16: 37.27 | M16: 74.58 | N16: -74.58 | O16: 8 | Q16: 37.29 | R16: -37.29 | S16: 8
A17: 204 | B17: Elite XL | D17: Fischer | E17: Moritz | F17: Joker-Team Berlin | G17: 37.43 | H17: 37.32 | I17: 37.73 | M17: 74.75 | N17: -74.75 | O17: 9 | Q17: 37.375 | R17: -37.375 | S17: 9
M18: 0 | N18: -1000 | O18: 0 | Q18: 0 | R18: -1000 | S18: 0
M19: 0 | N19: -1000 | O19: 0 | Q19: 0 | R19: -1000 | S19: 0
M20: 0 | N20: -1000 | O20: 0 | Q20: 0 | R20: -1000 | S20: 0
M21: 0 | N21: -1000 | O21: 0 | Q21: 0 | R21: -1000 | S21: 0
M22: 0 | N22: -1000 | O22: 0 | Q22: 0 | R22: -1000 | S22: 0
M23: 0 | N23: -1000 | O23: 0 | Q23: 0 | R23: -1000 | S23: 0
M24: 0 | N24: -1000 | O24: 0 | Q24: 0 | R24: -1000 | S24: 0
M25: 0 | N25: -1000 | O25: 0 | Q25: 0 | R25: -1000 | S25: 0
M26: 0 | N26: -1000 | O26: 0 | Q26: 0 | R26: -1000 | S26: 0
M27: 0 | N27: -1000 | O27: 0 | Q27: 0 | R27: -1000 | S27: 0
M28: 0 | N28: -1000 | O28: 0 | Q28: 0 | R28: -1000 | S28: 0
M29: 0 | N29: -1000 | O29: 0 | Q29: 0 | R29: -1000 | S29: 0
M30: 0 | N30: -1000 | O30: 0 | Q30: 0 | R30: -1000 | S30: 0
M31: 0 | N31: -1000 | O31: 0 | Q31: 0 | R31: -1000 | S31: 0
M32: 0 | N32: -1000 | O32: 0 | Q32: 0 | R32: -1000 | S32: 0
M33: 0 | N33: -1000 | O33: 0 | Q33: 0 | R33: -1000 | S33: 0
M34: 0 | N34: -1000 | O34: 0 | Q34: 0 | R34: -1000 | S34: 0
M35: 0 | N35: -1000 | O35: 0 | Q35: 0 | R35: -1000 | S35: 0
M36: 0 | N36: -1000 | O36: 0 | Q36: 0 | R36: -1000 | S36: 0
M37: 0 | N37: -1000 | O37: 0 | Q37: 0 | R37: -1000 | S37: 0
M38: 0 | N38: -1000 | O38: 0 | Q38: 0 | R38: -1000 | S38: 0
M39: 0 | N39: -1000 | O39: 0 | Q39: 0 | R39: -1000 | S39: 0
M40: 0 | N40: -1000 | O40: 0 | Q40: 0 | R40: -1000 | S40: 0
M41: 0 | N41: -1000 | O41: 0 | Q41: 0 | R41: -1000 | S41: 0
M42: 0 | N42: -1000 | O42: 0 | Q42: 0 | R42: -1000 | S42: 0
M43: 0 | N43: -1000 | O43: 0 | Q43: 0 | R43: -1000 | S43: 0
M44: 0 | N44: -1000 | O44: 0 | Q44: 0 | R44: -1000 | S44: 0
M45: 0 | N45: -1000 | O45: 0 | Q45: 0 | R45: -1000 | S45: 0
M46: 0 | N46: -1000 | O46: 0 | Q46: 0 | R46: -1000 | S46: 0
M47: 0 | N47: -1000 | O47: 0 | Q47: 0 | R47: -1000 | S47: 0
M48: 0 | N48: -1000 | O48: 0 | Q48: 0 | R48: -1000 | S48: 0
M49: 0 | N49: -1000 | O49: 0 | Q49: 0 | R49: -1000 | S49: 0
M50: 0 | N50: -1000 | O50: 0 | Q50: 0 | R50: -1000 | S50: 0
M51: 0 | N51: -1000 | O51: 0 | Q51: 0 | R51: -1000 | S51: 0
M52: 0 | N52: -1000 | O52: 0 | Q52: 0 | R52: -1000 | S52: 0
M53: 0 | N53: -1000 | O53: 0 | Q53: 0 | R53: -1000 | S53: 0
M54: 0 | N54: -1000 | O54: 0 | Q54: 0 | R54: -1000 | S54: 0
M55: 0 | N55: -1000 | O55: 0 | Q55: 0 | R55: -1000 | S55: 0
M56: 0 | N56: -1000 | O56: 0 | Q56: 0 | R56: -1000 | S56: 0
M57: 0 | N57: -1000 | O57: 0 | Q57: 0 | R57: -1000 | S57: 0
M58: 0 | N58: -1000 | O58: 0 | Q58: 0 | R58: -1000 | S58: 0
M59: 0 | N59: -1000 | O59: 0 | Q59: 0 | R59: -1000 | S59: 0
M60: 0 | N60: -1000 | O60: 0 | Q60: 0 | R60: -1000 | S60: 0
M61: 0 | N61: -1000 | O61: 0 | Q61: 0 | R61: -1000 | S61: 0
M62: 0 | N62: -1000 | O62: 0 | Q62: 0 | R62: -1000 | S62: 0
M63: 0 | N63: -1000 | O63: 0 | Q63: 0 | R63: -1000 | S63: 0
M64: 0 | N64: -1000 | O64: 0 | Q64: 0 | R64: -1000 | S64: 0
M65: 0 | N65: -1000 | O65: 0 | Q65: 0 | R65: -1000 | S65: 0
M66: 0 | N66: -1000 | O66: 0 | Q66: 0 | R66: -1000 | S66: 0
M67: 0 | N67: -1000 | O67: 0 | Q67: 0 | R67: -1000 | S67: 0
M68: 0 | N68: -1000 | O68: 0 | Q68: 0 | R68: -1000 | S68: 0
M69: 0 | N69: -1000 | O69: 0 | Q69: 0 | R69: -1000 | S69: 0
M70: 0 | N70: -1000 | O70: 0 | Q70: 0 | R70: -1000 | S70: 0
M71: 0 | N71: -1000 | O71: 0 | Q71: 0 | R71: -1000 | S71: 0
M72: 0 | N72: -1000 | O72: 0 | Q72: 0 | R72: -1000 | S72: 0
M73: =(G73*$G$4+H73*$H$4+I73*$I$4+J73*$J$4+K73*$K$4+L73*$L$4) -> 0 | N73: =IF(M73>0,M73*-1,-1000) -> -1000 | O73: =IF(M73>0,RANK(N73,N:N),0) -> 0 | Q73: =IF((G73*$G$4+H73*$H$4+I73*$I$4+J73*$J$4+K73*$K$4+L73*$L$4)>0,(G73*$G$4+H73*$H$4+I73*$I$4+J73*$J$4+K73*$K$4+L73*$L$4)/(IF(G73>0,1*$G$4,0)+IF(H73>0,1*$H$4,0)+IF(I73>0,1*$I$4,0)+IF(J73>0,1*$J$4,0)+IF(K73>0,1*$K$4,0)+IF(L73>0,1*$L$4,0)),0) -> 0 | R73: =IF(Q73>0,Q73*-1,-1000) -> -1000 | S73: =IF(Q73>0,RANK(R73,R:R),0) -> 0
M74: 0 | N74: -1000 | O74: 0 | Q74: 0 | R74: -1000 | S74: 0
M75: 0 | N75: -1000 | O75: 0 | Q75: 0 | R75: -1000 | S75: 0
M76: 0 | N76: -1000 | O76: 0 | Q76: 0 | R76: -1000 | S76: 0
M77: 0 | N77: -1000 | O77: 0 | Q77: 0 | R77: -1000 | S77: 0
M78: 0 | N78: -1000 | O78: 0 | Q78: 0 | R78: -1000 | S78: 0
M79: 0 | N79: -1000 | O79: 0 | Q79: 0 | R79: -1000 | S79: 0
M80: 0 | N80: -1000 | O80: 0 | Q80: 0 | R80: -1000 | S80: 0
M81: 0 | N81: -1000 | O81: 0 | Q81: 0 | R81: -1000 | S81: 0
M82: 0 | N82: -1000 | O82: 0 | Q82: 0 | R82: -1000 | S82: 0
M83: 0 | N83: -1000 | O83: 0 | Q83: 0 | R83: -1000 | S83: 0
M84: 0 | N84: -1000 | O84: 0 | Q84: 0 | R84: -1000 | S84: 0
M85: 0 | N85: -1000 | O85: 0 | Q85: 0 | R85: -1000 | S85: 0
M86: 0 | N86: -1000 | O86: 0 | Q86: 0 | R86: -1000 | S86: 0
M87: 0 | N87: -1000 | O87: 0 | Q87: 0 | R87: -1000 | S87: 0
M88: 0 | N88: -1000 | O88: 0 | Q88: 0 | R88: -1000 | S88: 0
M89: 0 | N89: -1000 | O89: 0 | Q89: 0 | R89: -1000 | S89: 0
M90: 0 | N90: -1000 | O90: 0 | Q90: 0 | R90: -1000 | S90: 0
M91: 0 | N91: -1000 | O91: 0 | Q91: 0 | R91: -1000 | S91: 0
M92: 0 | N92: -1000 | O92: 0 | Q92: 0 | R92: -1000 | S92: 0
M93: 0 | N93: -1000 | O93: 0 | Q93: 0 | R93: -1000 | S93: 0
M94: 0 | N94: -1000 | O94: 0 | Q94: 0 | R94: -1000 | S94: 0
M95: 0 | N95: -1000 | O95: 0 | Q95: 0 | R95: -1000 | S95: 0
M96: 0 | N96: -1000 | O96: 0 | Q96: 0 | R96: -1000 | S96: 0
M97: 0 | N97: -1000 | O97: 0 | Q97: 0 | R97: -1000 | S97: 0
M98: 0 | N98: -1000 | O98: 0 | Q98: 0 | R98: -1000 | S98: 0
M99: 0 | N99: -1000 | O99: 0 | Q99: 0 | R99: -1000 | S99: 0
M100: 0 | N100: -1000 | O100: 0 | Q100: 0 | R100: -1000 | S100: 0
M101: 0 | N101: -1000 | O101: 0 | Q101: 0 | R101: -1000 | S101: 0
M102: 0 | N102: -1000 | O102: 0 | Q102: 0 | R102: -1000 | S102: 0
M103: 0 | N103: -1000 | O103: 0 | Q103: 0 | R103: -1000 | S103: 0
M104: 0 | N104: -1000 | O104: 0 | Q104: 0 | R104: -1000 | S104: 0
M105: 0 | N105: -1000 | O105: 0 | Q105: 0 | R105: -1000 | S105: 0
M106: 0 | N106: -1000 | O106: 0 | Q106: 0 | R106: -1000 | S106: 0
M107: 0 | N107: -1000 | O107: 0 | Q107: 0 | R107: -1000 | S107: 0
M108: 0 | N108: -1000 | O108: 0 | Q108: 0 | R108: -1000 | S108: 0
M109: 0 | N109: -1000 | O109: 0 | Q109: 0 | R109: -1000 | S109: 0
M110: 0 | N110: -1000 | O110: 0 | Q110: 0 | R110: -1000 | S110: 0
M111: 0 | N111: -1000 | O111: 0 | Q111: 0 | R111: -1000 | S111: 0
M112: 0 | N112: -1000 | O112: 0 | Q112: 0 | R112: -1000 | S112: 0
M113: 0 | N113: -1000 | O113: 0 | Q113: 0 | R113: -1000 | S113: 0
M114: 0 | N114: -1000 | O114: 0 | Q114: 0 | R114: -1000 | S114: 0
M115: 0 | N115: -1000 | O115: 0 | Q115: 0 | R115: -1000 | S115: 0
M116: 0 | N116: -1000 | O116: 0 | Q116: 0 | R116: -1000 | S116: 0
M117: 0 | N117: -1000 | O117: 0 | Q117: 0 | R117: -1000 | S117: 0
M118: 0 | N118: -1000 | O118: 0 | Q118: 0 | R118: -1000 | S118: 0
M119: 0 | N119: -1000 | O119: 0 | Q119: 0 | R119: -1000 | S119: 0
M120: 0 | N120: -1000 | O120: 0 | Q120: 0 | R120: -1000 | S120: 0
M121: 0 | N121: -1000 | O121: 0 | Q121: 0 | R121: -1000 | S121: 0
M122: 0 | N122: -1000 | O122: 0 | Q122: 0 | R122: -1000 | S122: 0
M123: 0 | N123: -1000 | O123: 0 | Q123: 0 | R123: -1000 | S123: 0
M124: 0 | N124: -1000 | O124: 0 | Q124: 0 | R124: -1000 | S124: 0
M125: 0 | N125: -1000 | O125: 0 | Q125: 0 | R125: -1000 | S125: 0
M126: 0 | N126: -1000 | O126: 0 | Q126: 0 | R126: -1000 | S126: 0
M127: 0 | N127: -1000 | O127: 0 | Q127: 0 | R127: -1000 | S127: 0
M128: 0 | N128: -1000 | O128: 0 | Q128: 0 | R128: -1000 | S128: 0
M129: 0 | N129: -1000 | O129: 0 | Q129: 0 | R129: -1000 | S129: 0
M130: 0 | N130: -1000 | O130: 0 | Q130: 0 | R130: -1000 | S130: 0
M131: 0 | N131: -1000 | O131: 0 | Q131: 0 | R131: -1000 | S131: 0
M132: 0 | N132: -1000 | O132: 0 | Q132: 0 | R132: -1000 | S132: 0
M133: 0 | N133: -1000 | O133: 0 | Q133: 0 | R133: -1000 | S133: 0
M134: 0 | N134: -1000 | O134: 0 | Q134: 0 | R134: -1000 | S134: 0
M135: 0 | N135: -1000 | O135: 0 | Q135: 0 | R135: -1000 | S135: 0
M136: 0 | N136: -1000 | O136: 0 | Q136: 0 | R136: -1000 | S136: 0
M137: =(G137*$G$4+H137*$H$4+I137*$I$4+J137*$J$4+K137*$K$4+L137*$L$4) -> 0 | N137: =IF(M137>0,M137*-1,-1000) -> -1000 | O137: =IF(M137>0,RANK(N137,N:N),0) -> 0 | Q137: =IF((G137*$G$4+H137*$H$4+I137*$I$4+J137*$J$4+K137*$K$4+L137*$L$4)>0,(G137*$G$4+H137*$H$4+I137*$I$4+J137*$J$4+K137*$K$4+L137*$L$4)/(IF(G137>0,1*$G$4,0)+IF(H137>0,1*$H$4,0)+IF(I137>0,1*$I$4,0)+IF(J137>0,1*$J$4,0)+IF(K137>0,1*$K$4,0)+IF(L137>0,1*$L$4,0)),0) -> 0 | R137: =IF(Q137>0,Q137*-1,-1000) -> -1000 | S137: =IF(Q137>0,RANK(R137,R:R),0) -> 0
M138: 0 | N138: -1000 | O138: 0 | Q138: 0 | R138: -1000 | S138: 0
M139: 0 | N139: -1000 | O139: 0 | Q139: 0 | R139: -1000 | S139: 0
M140: 0 | N140: -1000 | O140: 0 | Q140: 0 | R140: -1000 | S140: 0
M141: 0 | N141: -1000 | O141: 0 | Q141: 0 | R141: -1000 | S141: 0
M142: 0 | N142: -1000 | O142: 0 | Q142: 0 | R142: -1000 | S142: 0
M143: 0 | N143: -1000 | O143: 0 | Q143: 0 | R143: -1000 | S143: 0
M144: 0 | N144: -1000 | O144: 0 | Q144: 0 | R144: -1000 | S144: 0
M145: 0 | N145: -1000 | O145: 0 | Q145: 0 | R145: -1000 | S145: 0
M146: 0 | N146: -1000 | O146: 0 | Q146: 0 | R146: -1000 | S146: 0
M147: 0 | N147: -1000 | O147: 0 | Q147: 0 | R147: -1000 | S147: 0
M148: 0 | N148: -1000 | O148: 0 | Q148: 0 | R148: -1000 | S148: 0
M149: 0 | N149: -1000 | O149: 0 | Q149: 0 | R149: -1000 | S149: 0

Sheet EEM-XL18
A1: DSKD 69. Deutsche Meisterschaft und 19. Europameisterschaft 2017 Mettingen ESKD
A2: EM - Endläufe in der XL Ü18 - Klasse
S3: Bestzeit
A4: Wird der Lauf gewertet? dann 0 oder 1 eintragen | G4: 1 | H4: 1 | I4: 0 | J4: 1 | K4: 1 | L4: 1 | S4: in Vorläufen
E5: Bestzeit je Lauf | G5: =MIN(G9:G149) -> 36.76 | H5: 36.93 | I5: 37.01 | J5: 0 | K5: 0 | L5: 0 | S5: =MIN((IF(G4=1,G5,99)), (IF(H4=1,H5,99)), (IF(I4=1,I5,99)), (IF(J4=1,J5,99)), (IF(K4=1,K5,99)), (IF(L4=1,L5,99)) ) -> 0
E6: Mittelwert je Lauf | G6: =IF(G5>0,AVERAGE(G9:G149),0) -> 37.09181818 | H6: 37.15636364 | I6: 37.286 | J6: 0 | K6: 0 | L6: 0
A7: Start Nummer | B7: Gruppe | C7: startet | D7: Name | E7: Vorname | F7: Verein | G7: Lauf 1 | H7: Lauf 2 | I7: Lauf 3 | J7: Lauf 4 | K7: Lauf 5 | L7: Lauf 6 | M7: Summe der gewerteten Läufe | O7: Platz | Q7: Mittelwert | S7: Platz
A9: 304 | B9: Ü18 | D9: Lange | E9: Florian | F9: Jugendclub Mettinger SK-Derby | G9: 36.76 | H9: 36.98 | I9: 37.01 | M9: =(G9*$G$4+H9*$H$4+I9*$I$4+J9*$J$4+K9*$K$4+L9*$L$4) -> 73.74 | N9: =IF(M9>0,M9*-1,-1000) -> -73.74 | O9: =IF(M9>0,RANK(N9,N:N),0) -> 1 | Q9: =IF((G9*$G$4+H9*$H$4+I9*$I$4+J9*$J$4+K9*$K$4+L9*$L$4)>0,(G9*$G$4+H9*$H$4+I9*$I$4+J9*$J$4+K9*$K$4+L9*$L$4)/(IF(G9>0,1*$G$4,0)+IF(H9>0,1*$H$4,0)+IF(I9>0,1*$I$4,0)+IF(J9>0,1*$J$4,0)+IF(K9>0,1*$K$4,0)+IF(L9>0,1*$L$4,0)),0) -> 36.87 | R9: =IF(Q9>0,Q9*-1,-1000) -> -36.87 | S9: =IF(Q9>0,RANK(R9,R:R),0) -> 1
A10: 308 | B10: Ü18 | D10: Leismann | E10: Pascal | F10: SV Losaurach | G10: 36.9 | H10: 36.93 | I10: 37.08 | M10: 73.83 | N10: -73.83 | O10: 2 | Q10: 36.915 | R10: -36.915 | S10: 2
A11: 316 | B11: Ü18 | D11: Bontjes | E11: Sabine | F11: Power Crew Berlin | G11: 37 | H11: 36.99 | I11: 37.18 | M11: 73.99 | N11: -73.99 | O11: 3 | Q11: 36.995 | R11: -36.995 | S11: 3
A12: 315 | B12: Ü18 | D12: Schmidt | E12: Imke | F12: Friesenflitzer Varel | G12: 37.07 | H12: 37.06 | I12: 37.24 | M12: 74.13 | N12: -74.13 | O12: 4 | Q12: 37.065 | R12: -37.065 | S12: 4
A13: 313 | B13: Ü18 | D13: Rohls | E13: Sebastian | F13: Seifenkistengruppe Stromberg | G13: 37.06 | H13: 37.2 | M13: 74.26 | N13: -74.26 | O13: 5 | Q13: 37.13 | R13: -37.13 | S13: 5
A14: 302 | B14: Ü18 | D14: Wetter | E14: Sebastian | F14: Berkel Raser Billerbeck | G14: 37.1 | H14: 37.18 | I14: 37.33 | M14: 74.28 | N14: -74.28 | O14: 6 | Q14: 37.14 | R14: -37.14 | S14: 6
A15: 305 | B15: Ü18 | D15: Voß | E15: Marie-Charlotte | F15: Immer auf Achse Bergkamen | G15: 37.19 | H15: 37.17 | I15: 37.4 | M15: 74.36 | N15: -74.36 | O15: 7 | Q15: 37.18 | R15: -37.18 | S15: 7
A16: 303 | B16: Ü18 | D16: Gudlowski | E16: Svea | F16: Joker-Team Berlin | G16: 37.21 | H16: 37.28 | I16: 37.33 | M16: 74.49 | N16: -74.49 | O16: 8 | Q16: 37.245 | R16: -37.245 | S16: 8
A17: 317 | B17: Ü18 | D17: Bataljevs | E17: Maris | F17: Lettland | G17: 37.23 | H17: 37.29 | I17: 37.33 | M17: 74.52 | N17: -74.52 | O17: 9 | Q17: 37.26 | R17: -37.26 | S17: 9
A18: 301 | B18: Ü18 | D18: Loo van | E18: Julian | F18: Belgien | G18: 37.24 | H18: 37.32 | I18: 37.47 | M18: 74.56 | N18: -74.56 | O18: 10 | Q18: 37.28 | R18: -37.28 | S18: 10
A19: 318 | B19: Ü18 | D19: Nicolescu | E19: Bogdan | F19: Rumänien | G19: 37.25 | H19: 37.32 | I19: 37.49 | M19: 74.57 | N19: -74.57 | O19: 11 | Q19: 37.285 | R19: -37.285 | S19: 11
M20: 0 | N20: -1000 | O20: 0 | Q20: 0 | R20: -1000 | S20: 0
M21: 0 | N21: -1000 | O21: 0 | Q21: 0 | R21: -1000 | S21: 0
M22: 0 | N22: -1000 | O22: 0 | Q22: 0 | R22: -1000 | S22: 0
M23: 0 | N23: -1000 | O23: 0 | Q23: 0 | R23: -1000 | S23: 0
M24: 0 | N24: -1000 | O24: 0 | Q24: 0 | R24: -1000 | S24: 0
M25: 0 | N25: -1000 | O25: 0 | Q25: 0 | R25: -1000 | S25: 0
M26: 0 | N26: -1000 | O26: 0 | Q26: 0 | R26: -1000 | S26: 0
M27: 0 | N27: -1000 | O27: 0 | Q27: 0 | R27: -1000 | S27: 0
M28: 0 | N28: -1000 | O28: 0 | Q28: 0 | R28: -1000 | S28: 0
M29: 0 | N29: -1000 | O29: 0 | Q29: 0 | R29: -1000 | S29: 0
M30: 0 | N30: -1000 | O30: 0 | Q30: 0 | R30: -1000 | S30: 0
M31: 0 | N31: -1000 | O31: 0 | Q31: 0 | R31: -1000 | S31: 0
M32: 0 | N32: -1000 | O32: 0 | Q32: 0 | R32: -1000 | S32: 0
M33: 0 | N33: -1000 | O33: 0 | Q33: 0 | R33: -1000 | S33: 0
M34: 0 | N34: -1000 | O34: 0 | Q34: 0 | R34: -1000 | S34: 0
M35: 0 | N35: -1000 | O35: 0 | Q35: 0 | R35: -1000 | S35: 0
M36: 0 | N36: -1000 | O36: 0 | Q36: 0 | R36: -1000 | S36: 0
M37: 0 | N37: -1000 | O37: 0 | Q37: 0 | R37: -1000 | S37: 0
M38: 0 | N38: -1000 | O38: 0 | Q38: 0 | R38: -1000 | S38: 0
M39: 0 | N39: -1000 | O39: 0 | Q39: 0 | R39: -1000 | S39: 0
M40: 0 | N40: -1000 | O40: 0 | Q40: 0 | R40: -1000 | S40: 0
M41: 0 | N41: -1000 | O41: 0 | Q41: 0 | R41: -1000 | S41: 0
M42: 0 | N42: -1000 | O42: 0 | Q42: 0 | R42: -1000 | S42: 0
M43: 0 | N43: -1000 | O43: 0 | Q43: 0 | R43: -1000 | S43: 0
M44: 0 | N44: -1000 | O44: 0 | Q44: 0 | R44: -1000 | S44: 0
M45: 0 | N45: -1000 | O45: 0 | Q45: 0 | R45: -1000 | S45: 0
M46: 0 | N46: -1000 | O46: 0 | Q46: 0 | R46: -1000 | S46: 0
M47: 0 | N47: -1000 | O47: 0 | Q47: 0 | R47: -1000 | S47: 0
M48: 0 | N48: -1000 | O48: 0 | Q48: 0 | R48: -1000 | S48: 0
M49: 0 | N49: -1000 | O49: 0 | Q49: 0 | R49: -1000 | S49: 0
M50: 0 | N50: -1000 | O50: 0 | Q50: 0 | R50: -1000 | S50: 0
M51: 0 | N51: -1000 | O51: 0 | Q51: 0 | R51: -1000 | S51: 0
M52: 0 | N52: -1000 | O52: 0 | Q52: 0 | R52: -1000 | S52: 0
M53: 0 | N53: -1000 | O53: 0 | Q53: 0 | R53: -1000 | S53: 0
M54: 0 | N54: -1000 | O54: 0 | Q54: 0 | R54: -1000 | S54: 0
M55: 0 | N55: -1000 | O55: 0 | Q55: 0 | R55: -1000 | S55: 0
M56: 0 | N56: -1000 | O56: 0 | Q56: 0 | R56: -1000 | S56: 0
M57: 0 | N57: -1000 | O57: 0 | Q57: 0 | R57: -1000 | S57: 0
M58: 0 | N58: -1000 | O58: 0 | Q58: 0 | R58: -1000 | S58: 0
M59: 0 | N59: -1000 | O59: 0 | Q59: 0 | R59: -1000 | S59: 0
M60: 0 | N60: -1000 | O60: 0 | Q60: 0 | R60: -1000 | S60: 0
M61: 0 | N61: -1000 | O61: 0 | Q61: 0 | R61: -1000 | S61: 0
M62: 0 | N62: -1000 | O62: 0 | Q62: 0 | R62: -1000 | S62: 0
M63: 0 | N63: -1000 | O63: 0 | Q63: 0 | R63: -1000 | S63: 0
M64: 0 | N64: -1000 | O64: 0 | Q64: 0 | R64: -1000 | S64: 0
M65: 0 | N65: -1000 | O65: 0 | Q65: 0 | R65: -1000 | S65: 0
M66: 0 | N66: -1000 | O66: 0 | Q66: 0 | R66: -1000 | S66: 0
M67: 0 | N67: -1000 | O67: 0 | Q67: 0 | R67: -1000 | S67: 0
M68: 0 | N68: -1000 | O68: 0 | Q68: 0 | R68: -1000 | S68: 0
M69: 0 | N69: -1000 | O69: 0 | Q69: 0 | R69: -1000 | S69: 0
M70: 0 | N70: -1000 | O70: 0 | Q70: 0 | R70: -1000 | S70: 0
M71: 0 | N71: -1000 | O71: 0 | Q71: 0 | R71: -1000 | S71: 0
M72: 0 | N72: -1000 | O72: 0 | Q72: 0 | R72: -1000 | S72: 0
M73: =(G73*$G$4+H73*$H$4+I73*$I$4+J73*$J$4+K73*$K$4+L73*$L$4) -> 0 | N73: =IF(M73>0,M73*-1,-1000) -> -1000 | O73: =IF(M73>0,RANK(N73,N:N),0) -> 0 | Q73: =IF((G73*$G$4+H73*$H$4+I73*$I$4+J73*$J$4+K73*$K$4+L73*$L$4)>0,(G73*$G$4+H73*$H$4+I73*$I$4+J73*$J$4+K73*$K$4+L73*$L$4)/(IF(G73>0,1*$G$4,0)+IF(H73>0,1*$H$4,0)+IF(I73>0,1*$I$4,0)+IF(J73>0,1*$J$4,0)+IF(K73>0,1*$K$4,0)+IF(L73>0,1*$L$4,0)),0) -> 0 | R73: =IF(Q73>0,Q73*-1,-1000) -> -1000 | S73: =IF(Q73>0,RANK(R73,R:R),0) -> 0
M74: 0 | N74: -1000 | O74: 0 | Q74: 0 | R74: -1000 | S74: 0
M75: 0 | N75: -1000 | O75: 0 | Q75: 0 | R75: -1000 | S75: 0
M76: 0 | N76: -1000 | O76: 0 | Q76: 0 | R76: -1000 | S76: 0
M77: 0 | N77: -1000 | O77: 0 | Q77: 0 | R77: -1000 | S77: 0
M78: 0 | N78: -1000 | O78: 0 | Q78: 0 | R78: -1000 | S78: 0
M79: 0 | N79: -1000 | O79: 0 | Q79: 0 | R79: -1000 | S79: 0
M80: 0 | N80: -1000 | O80: 0 | Q80: 0 | R80: -1000 | S80: 0
M81: 0 | N81: -1000 | O81: 0 | Q81: 0 | R81: -1000 | S81: 0
M82: 0 | N82: -1000 | O82: 0 | Q82: 0 | R82: -1000 | S82: 0
M83: 0 | N83: -1000 | O83: 0 | Q83: 0 | R83: -1000 | S83: 0
M84: 0 | N84: -1000 | O84: 0 | Q84: 0 | R84: -1000 | S84: 0
M85: 0 | N85: -1000 | O85: 0 | Q85: 0 | R85: -1000 | S85: 0
M86: 0 | N86: -1000 | O86: 0 | Q86: 0 | R86: -1000 | S86: 0
M87: 0 | N87: -1000 | O87: 0 | Q87: 0 | R87: -1000 | S87: 0
M88: 0 | N88: -1000 | O88: 0 | Q88: 0 | R88: -1000 | S88: 0
M89: 0 | N89: -1000 | O89: 0 | Q89: 0 | R89: -1000 | S89: 0
M90: 0 | N90: -1000 | O90: 0 | Q90: 0 | R90: -1000 | S90: 0
M91: 0 | N91: -1000 | O91: 0 | Q91: 0 | R91: -1000 | S91: 0
M92: 0 | N92: -1000 | O92: 0 | Q92: 0 | R92: -1000 | S92: 0
M93: 0 | N93: -1000 | O93: 0 | Q93: 0 | R93: -1000 | S93: 0
M94: 0 | N94: -1000 | O94: 0 | Q94: 0 | R94: -1000 | S94: 0
M95: 0 | N95: -1000 | O95: 0 | Q95: 0 | R95: -1000 | S95: 0
M96: 0 | N96: -1000 | O96: 0 | Q96: 0 | R96: -1000 | S96: 0
M97: 0 | N97: -1000 | O97: 0 | Q97: 0 | R97: -1000 | S97: 0
M98: 0 | N98: -1000 | O98: 0 | Q98: 0 | R98: -1000 | S98: 0
M99: 0 | N99: -1000 | O99: 0 | Q99: 0 | R99: -1000 | S99: 0
M100: 0 | N100: -1000 | O100: 0 | Q100: 0 | R100: -1000 | S100: 0
M101: 0 | N101: -1000 | O101: 0 | Q101: 0 | R101: -1000 | S101: 0
M102: 0 | N102: -1000 | O102: 0 | Q102: 0 | R102: -1000 | S102: 0
M103: 0 | N103: -1000 | O103: 0 | Q103: 0 | R103: -1000 | S103: 0
M104: 0 | N104: -1000 | O104: 0 | Q104: 0 | R104: -1000 | S104: 0
M105: 0 | N105: -1000 | O105: 0 | Q105: 0 | R105: -1000 | S105: 0
M106: 0 | N106: -1000 | O106: 0 | Q106: 0 | R106: -1000 | S106: 0
M107: 0 | N107: -1000 | O107: 0 | Q107: 0 | R107: -1000 | S107: 0
M108: 0 | N108: -1000 | O108: 0 | Q108: 0 | R108: -1000 | S108: 0
M109: 0 | N109: -1000 | O109: 0 | Q109: 0 | R109: -1000 | S109: 0
M110: 0 | N110: -1000 | O110: 0 | Q110: 0 | R110: -1000 | S110: 0
M111: 0 | N111: -1000 | O111: 0 | Q111: 0 | R111: -1000 | S111: 0
M112: 0 | N112: -1000 | O112: 0 | Q112: 0 | R112: -1000 | S112: 0
M113: 0 | N113: -1000 | O113: 0 | Q113: 0 | R113: -1000 | S113: 0
M114: 0 | N114: -1000 | O114: 0 | Q114: 0 | R114: -1000 | S114: 0
M115: 0 | N115: -1000 | O115: 0 | Q115: 0 | R115: -1000 | S115: 0
M116: 0 | N116: -1000 | O116: 0 | Q116: 0 | R116: -1000 | S116: 0
M117: 0 | N117: -1000 | O117: 0 | Q117: 0 | R117: -1000 | S117: 0
M118: 0 | N118: -1000 | O118: 0 | Q118: 0 | R118: -1000 | S118: 0
M119: 0 | N119: -1000 | O119: 0 | Q119: 0 | R119: -1000 | S119: 0
M120: 0 | N120: -1000 | O120: 0 | Q120: 0 | R120: -1000 | S120: 0
M121: 0 | N121: -1000 | O121: 0 | Q121: 0 | R121: -1000 | S121: 0
M122: 0 | N122: -1000 | O122: 0 | Q122: 0 | R122: -1000 | S122: 0
M123: 0 | N123: -1000 | O123: 0 | Q123: 0 | R123: -1000 | S123: 0
M124: 0 | N124: -1000 | O124: 0 | Q124: 0 | R124: -1000 | S124: 0
M125: 0 | N125: -1000 | O125: 0 | Q125: 0 | R125: -1000 | S125: 0
M126: 0 | N126: -1000 | O126: 0 | Q126: 0 | R126: -1000 | S126: 0
M127: 0 | N127: -1000 | O127: 0 | Q127: 0 | R127: -1000 | S127: 0
M128: 0 | N128: -1000 | O128: 0 | Q128: 0 | R128: -1000 | S128: 0
M129: 0 | N129: -1000 | O129: 0 | Q129: 0 | R129: -1000 | S129: 0
M130: 0 | N130: -1000 | O130: 0 | Q130: 0 | R130: -1000 | S130: 0
M131: 0 | N131: -1000 | O131: 0 | Q131: 0 | R131: -1000 | S131: 0
M132: 0 | N132: -1000 | O132: 0 | Q132: 0 | R132: -1000 | S132: 0
M133: 0 | N133: -1000 | O133: 0 | Q133: 0 | R133: -1000 | S133: 0
M134: 0 | N134: -1000 | O134: 0 | Q134: 0 | R134: -1000 | S134: 0
M135: 0 | N135: -1000 | O135: 0 | Q135: 0 | R135: -1000 | S135: 0
M136: 0 | N136: -1000 | O136: 0 | Q136: 0 | R136: -1000 | S136: 0
M137: =(G137*$G$4+H137*$H$4+I137*$I$4+J137*$J$4+K137*$K$4+L137*$L$4) -> 0 | N137: =IF(M137>0,M137*-1,-1000) -> -1000 | O137: =IF(M137>0,RANK(N137,N:N),0) -> 0 | Q137: =IF((G137*$G$4+H137*$H$4+I137*$I$4+J137*$J$4+K137*$K$4+L137*$L$4)>0,(G137*$G$4+H137*$H$4+I137*$I$4+J137*$J$4+K137*$K$4+L137*$L$4)/(IF(G137>0,1*$G$4,0)+IF(H137>0,1*$H$4,0)+IF(I137>0,1*$I$4,0)+IF(J137>0,1*$J$4,0)+IF(K137>0,1*$K$4,0)+IF(L137>0,1*$L$4,0)),0) -> 0 | R137: =IF(Q137>0,Q137*-1,-1000) -> -1000 | S137: =IF(Q137>0,RANK(R137,R:R),0) -> 0
M138: 0 | N138: -1000 | O138: 0 | Q138: 0 | R138: -1000 | S138: 0
M139: 0 | N139: -1000 | O139: 0 | Q139: 0 | R139: -1000 | S139: 0
M140: 0 | N140: -1000 | O140: 0 | Q140: 0 | R140: -1000 | S140: 0
M141: 0 | N141: -1000 | O141: 0 | Q141: 0 | R141: -1000 | S141: 0
M142: 0 | N142: -1000 | O142: 0 | Q142: 0 | R142: -1000 | S142: 0
M143: 0 | N143: -1000 | O143: 0 | Q143: 0 | R143: -1000 | S143: 0
M144: 0 | N144: -1000 | O144: 0 | Q144: 0 | R144: -1000 | S144: 0
M145: 0 | N145: -1000 | O145: 0 | Q145: 0 | R145: -1000 | S145: 0
M146: 0 | N146: -1000 | O146: 0 | Q146: 0 | R146: -1000 | S146: 0
M147: 0 | N147: -1000 | O147: 0 | Q147: 0 | R147: -1000 | S147: 0
M148: 0 | N148: -1000 | O148: 0 | Q148: 0 | R148: -1000 | S148: 0
M149: 0 | N149: -1000 | O149: 0 | Q149: 0 | R149: -1000 | S149: 0

Sheet EEMOpen
A1: DSKD 69. Deutsche Meisterschaft und 19. Europameisterschaft 2017 Mettingen ESKD
A2: EM - Endläufe in der DSKD-Open - Klasse
G4: 1 | H4: 1 | I4: 1 | J4: 1 | K4: 1 | L4: 0 | M4: 1
A5: Bestzeit je Lauf | G5: =MIN(G9:G202) -> 36.28 | H5: 36.27 | I5: 0 | J5: 0 | K5: 0 | L5: 0 | M5: 0
A7: Start Nummer | B7: Gruppe | C7: startet | D7: Name | E7: Vorname | F7: Verein | G7: Lauf 1 | H7: Lauf 2 | I7: Lauf 3 | J7: Lauf 4 | K7: Lauf 5 | L7: Lauf 6 | M7: Summe | O7: Platz
A9: 507 | B9: Open | D9: Hollweck | E9: Laura | F9: MSVg Gerolzhofen | G9: 39.03 | H9: 39.03 | M9: =IF($G$4=1, IF(H9>1,(ABS(G9-H9)),0)+ IF(I9>1,(ABS(G9-I9)),0)+ IF(J9>1,(ABS(G9-J9)),0)+ IF(K9>1,(ABS(G9-K9)),0)+ IF(L9>1,(ABS(G9-L9)),0), IF(I9>1,(ABS(H9-I9)),0)+ IF(J9>1,(ABS(H9-J9)),0)+ IF(K9>1,(ABS(H9-K9)),0) ) -> 0 | N9: =IF(M9>0,M9*-1,-1000) -> -1000 | O9: 1
A10: 508 | B10: Open | D10: Schleuß | E10: Susan | F10: SK-Verband Baden-Württemberg | G10: 36.28 | H10: 36.27 | M10: 0.01 | N10: -0.01 | O10: 2
A11: 505 | B11: Open | D11: Ohla | E11: Thorben | F11: SKK Moselflitzer Klüsserath | G11: 37.53 | H11: 37.5 | M11: 0.03 | N11: -0.03 | O11: 3
A12: 512 | B12: Open | D12: Schmidt | E12: Michael | F12: Friesenflitzer Varel | G12: 37.62 | H12: 37.51 | M12: 0.11 | N12: -0.11 | O12: 4
A13: 511 | B13: Open | D13: Schneider | E13: Gabriele | F13: Joker-Team Berlin | G13: 46.12 | H13: 45.95 | M13: 0.17 | N13: -0.17 | O13: 5
A14: 509 | B14: Open | D14: Klimpel | E14: Corinna | F14: Power Crew Berlin | G14: 37.62 | H14: 37.41 | M14: 0.21 | N14: -0.21 | O14: 6
A15: 501 | B15: Open | D15: Feinauer | E15: Louis | F15: SV Losaurach | G15: 39.01 | H15: 38.72 | M15: 0.29 | N15: -0.29 | O15: 7
M16: 0 | N16: -1000 | O16: =IF(M16>0,RANK(N16,N:N),0) -> 0
A17: 515 | B17: Open | D17: Crook | E17: Florian | F17: Jugendclub Mettinger SK-Derby | G17: 37.83 | H17: 37.52 | M17: 0.31 | N17: -0.31 | O17: 8
A18: 510 | B18: Open | D18: Ricker | E18: Andreas | F18: Berkel Raser Billerbeck | G18: 41.09 | H18: 40.55 | M18: 0.54 | N18: -0.54 | O18: 9
M19: 0 | N19: -1000 | O19: =IF(M19>0,RANK(N19,N:N),0) -> 0
M20: 0 | N20: -1000 | O20: 0
M21: 0 | N21: -1000 | O21: 0
M22: 0 | N22: -1000 | O22: 0
M23: 0 | N23: -1000 | O23: 0
M24: 0 | N24: -1000 | O24: 0
M25: 0 | N25: -1000 | O25: 0
M26: 0 | N26: -1000 | O26: 0
M27: 0 | N27: -1000 | O27: 0
M28: 0 | N28: -1000 | O28: 0
M29: 0 | N29: -1000 | O29: 0
M30: 0 | N30: -1000 | O30: 0
M31: 0 | N31: -1000 | O31: 0
M32: 0 | N32: -1000 | O32: 0
M33: 0 | N33: -1000 | O33: 0
M34: 0 | N34: -1000 | O34: 0
M35: 0 | N35: -1000 | O35: 0
M36: 0 | N36: -1000 | O36: 0
M37: 0 | N37: -1000 | O37: 0
M38: 0 | N38: -1000 | O38: 0
M39: 0 | N39: -1000 | O39: 0
M40: 0 | N40: -1000 | O40: 0
M41: 0 | N41: -1000 | O41: 0
M42: 0 | N42: -1000 | O42: 0
M43: 0 | N43: -1000 | O43: 0
M44: 0 | N44: -1000 | O44: 0
M45: 0 | N45: -1000 | O45: 0
M46: 0 | N46: -1000 | O46: 0
M47: 0 | N47: -1000 | O47: 0
M48: 0 | N48: -1000 | O48: 0
M49: 0 | N49: -1000 | O49: 0
M50: 0 | N50: -1000 | O50: 0
M51: 0 | N51: -1000 | O51: 0
M52: 0 | N52: -1000 | O52: 0
M53: 0 | N53: -1000 | O53: 0
M54: 0 | N54: -1000 | O54: 0
M55: 0 | N55: -1000 | O55: 0
M56: 0 | N56: -1000 | O56: 0
M57: 0 | N57: -1000 | O57: 0
M58: 0 | N58: -1000 | O58: 0
M59: 0 | N59: -1000 | O59: 0
M60: 0 | N60: -1000 | O60: 0
M61: 0 | N61: -1000 | O61: 0
M62: 0 | N62: -1000 | O62: 0
M63: 0 | N63: -1000 | O63: 0
M64: 0 | N64: -1000 | O64: 0
M65: 0 | N65: -1000 | O65: 0
M66: 0 | N66: -1000 | O66: 0
M67: 0 | N67: -1000 | O67: 0
M68: 0 | N68: -1000 | O68: 0
M69: 0 | N69: -1000 | O69: 0
M70: 0 | N70: -1000 | O70: 0
M71: 0 | N71: -1000 | O71: 0
M72: 0 | N72: -1000 | O72: 0
M73: =IF($G$4=1, IF(H73>1,(ABS(G73-H73)),0)+ IF(I73>1,(ABS(G73-I73)),0)+ IF(J73>1,(ABS(G73-J73)),0)+ IF(K73>1,(ABS(G73-K73)),0)+ IF(L73>1,(ABS(G73-L73)),0), IF(I73>1,(ABS(H73-I73)),0)+ IF(J73>1,(ABS(H73-J73)),0)+ IF(K73>1,(ABS(H73-K73)),0) ) -> 0 | N73: =IF(M73>0,M73*-1,-1000) -> -1000 | O73: 0
M74: 0 | N74: -1000 | O74: 0
M75: 0 | N75: -1000 | O75: 0
M76: 0 | N76: -1000 | O76: 0
M77: 0 | N77: -1000 | O77: 0
M78: 0 | N78: -1000 | O78: 0
M79: 0 | N79: -1000 | O79: 0
M80: 0 | N80: -1000 | O80: 0
M81: 0 | N81: -1000 | O81: 0
M82: 0 | N82: -1000 | O82: 0
M83: 0 | N83: -1000 | O83: =IF(M83>0,RANK(N83,N:N),0) -> 0
M84: 0 | N84: -1000 | O84: 0
M85: 0 | N85: -1000 | O85: 0
M86: 0 | N86: -1000 | O86: 0
M87: 0 | N87: -1000 | O87: 0
M88: 0 | N88: -1000 | O88: 0
M89: 0 | N89: -1000 | O89: 0
M90: 0 | N90: -1000 | O90: 0
M91: 0 | N91: -1000 | O91: 0
M92: 0 | N92: -1000 | O92: 0
M93: 0 | N93: -1000 | O93: 0
M94: 0 | N94: -1000 | O94: 0
M95: 0 | N95: -1000 | O95: 0
M96: 0 | N96: -1000 | O96: 0
M97: 0 | N97: -1000 | O97: 0
M98: 0 | N98: -1000 | O98: 0
M99: 0 | N99: -1000 | O99: 0
M100: 0 | N100: -1000 | O100: 0
M101: 0 | N101: -1000 | O101: 0
M102: 0 | N102: -1000 | O102: 0
M103: 0 | N103: -1000 | O103: 0
M104: 0 | N104: -1000 | O104: 0
M105: 0 | N105: -1000 | O105: 0
M106: 0 | N106: -1000 | O106: 0
M107: 0 | N107: -1000 | O107: 0
M108: 0 | N108: -1000 | O108: 0
M109: 0 | N109: -1000 | O109: 0
M110: 0 | N110: -1000 | O110: 0
M111: 0 | N111: -1000 | O111: 0
M112: 0 | N112: -1000 | O112: 0
M113: 0 | N113: -1000 | O113: 0
M114: 0 | N114: -1000 | O114: 0
M115: 0 | N115: -1000 | O115: 0
M116: 0 | N116: -1000 | O116: 0
M117: 0 | N117: -1000 | O117: 0
M118: 0 | N118: -1000 | O118: 0
M119: 0 | N119: -1000 | O119: 0
M120: 0 | N120: -1000 | O120: 0
M121: 0 | N121: -1000 | O121: 0
M122: 0 | N122: -1000 | O122: 0
M123: 0 | N123: -1000 | O123: 0
M124: 0 | N124: -1000 | O124: 0
M125: 0 | N125: -1000 | O125: 0
M126: 0 | N126: -1000 | O126: 0
M127: 0 | N127: -1000 | O127: 0
M128: 0 | N128: -1000 | O128: 0
M129: 0 | N129: -1000 | O129: 0
M130: 0 | N130: -1000 | O130: 0
M131: 0 | N131: -1000 | O131: 0
M132: 0 | N132: -1000 | O132: 0
M133: 0 | N133: -1000 | O133: 0
M134: 0 | N134: -1000 | O134: 0
M135: 0 | N135: -1000 | O135: 0
M136: 0 | N136: -1000 | O136: 0
M137: =IF($G$4=1, IF(H137>1,(ABS(G137-H137)),0)+ IF(I137>1,(ABS(G137-I137)),0)+ IF(J137>1,(ABS(G137-J137)),0)+ IF(K137>1,(ABS(G137-K137)),0)+ IF(L137>1,(ABS(G137-L137)),0), IF(I137>1,(ABS(H137-I137)),0)+ IF(J137>1,(ABS(H137-J137)),0)+ IF(K137>1,(ABS(H137-K137)),0) ) -> 0 | N137: =IF(M137>0,M137*-1,-1000) -> -1000 | O137: 0
M138: 0 | N138: -1000 | O138: 0
M139: 0 | N139: -1000 | O139: 0
M140: 0 | N140: -1000 | O140: 0
M141: 0 | N141: -1000 | O141: 0
M142: 0 | N142: -1000 | O142: 0
M143: 0 | N143: -1000 | O143: 0
M144: 0 | N144: -1000 | O144: 0
M145: 0 | N145: -1000 | O145: 0
M146: 0 | N146: -1000 | O146: 0
M147: 0 | N147: -1000 | O147: =IF(M147>0,RANK(N147,N:N),0) -> 0
M148: 0 | N148: -1000 | O148: 0
M149: 0 | N149: -1000 | O149: 0
M150: 0 | N150: -1000 | O150: 0
M151: 0 | N151: -1000 | O151: 0
M152: 0 | N152: -1000 | O152: 0
M153: 0 | N153: -1000 | O153: 0
M154: 0 | N154: -1000 | O154: 0
M155: 0 | N155: -1000 | O155: 0
M156: 0 | N156: -1000 | O156: 0
M157: 0 | N157: -1000 | O157: 0
M158: 0 | N158: -1000 | O158: 0
M159: 0 | N159: -1000 | O159: 0
M160: 0 | N160: -1000 | O160: 0
M161: 0 | N161: -1000 | O161: 0
M162: 0 | N162: -1000 | O162: 0
M163: 0 | N163: -1000 | O163: 0
M164: 0 | N164: -1000 | O164: 0
M165: 0 | N165: -1000 | O165: 0
M166: 0 | N166: -1000 | O166: 0
M167: 0 | N167: -1000 | O167: 0
M168: 0 | N168: -1000 | O168: 0
M169: 0 | N169: -1000 | O169: 0
M170: 0 | N170: -1000 | O170: 0
M171: 0 | N171: -1000 | O171: 0
M172: 0 | N172: -1000 | O172: 0
M173: 0 | N173: -1000 | O173: 0
M174: 0 | N174: -1000 | O174: 0
M175: 0 | N175: -1000 | O175: 0
M176: 0 | N176: -1000 | O176: 0
M177: 0 | N177: -1000 | O177: 0
M178: 0 | N178: -1000 | O178: 0
M179: 0 | N179: -1000 | O179: 0
M180: 0 | N180: -1000 | O180: 0
M181: 0 | N181: -1000 | O181: 0
M182: 0 | N182: -1000 | O182: 0
M183: 0 | N183: -1000 | O183: 0
M184: 0 | N184: -1000 | O184: 0
M185: 0 | N185: -1000 | O185: 0
M186: 0 | N186: -1000 | O186: 0
M187: 0 | N187: -1000 | O187: 0
M188: 0 | N188: -1000 | O188: 0
M189: 0 | N189: -1000 | O189: 0
M190: 0 | N190: -1000 | O190: 0
M191: 0 | N191: -1000 | O191: 0
M192: 0 | N192: -1000 | O192: 0
M193: 0 | N193: -1000 | O193: 0
M194: 0 | N194: -1000 | O194: 0
M195: 0 | N195: -1000 | O195: 0
M196: 0 | N196: -1000 | O196: 0
M197: 0 | N197: -1000 | O197: 0
M198: 0 | N198: -1000 | O198: 0
M199: 0 | N199: -1000 | O199: 0
M200: 0 | N200: -1000 | O200: 0
M201: =IF($G$4=1, IF(H201>1,(ABS(G201-H201)),0)+ IF(I201>1,(ABS(G201-I201)),0)+ IF(J201>1,(ABS(G201-J201)),0)+ IF(K201>1,(ABS(G201-K201)),0)+ IF(L201>1,(ABS(G201-L201)),0), IF(I201>1,(ABS(H201-I201)),0)+ IF(J201>1,(ABS(H201-J201)),0)+ IF(K201>1,(ABS(H201-K201)),0) ) -> 0 | N201: =IF(M201>0,M201*-1,-1000) -> -1000 | O201: 0
M202: 0 | N202: -1000 | O202: 0
